Workbook

Sheet CE-SP-CF semestrale PPT (hidden)
A1: =+IF(ROUND(H83+H121,2)=0,"OK","Error") -> 
A2: Project RED - Financials
D4: =In_Lin!D4 -> BoP | J4: =In_Lin!J4 -> 2024-12-01 | K4: =In_Lin!K4 -> 2025-01-01 | L4: =In_Lin!L4 -> 2025-07-01 | M4: =In_Lin!M4 -> 2026-01-01 | N4: =In_Lin!N4 -> 2026-07-01 | O4: =In_Lin!O4 -> 2027-01-01 | P4: =In_Lin!P4 -> 2027-07-01 | Q4: =In_Lin!Q4 -> 2028-01-01 | R4: =In_Lin!R4 -> 2028-07-01 | S4: =In_Lin!S4 -> 2029-01-01 | T4: =In_Lin!T4 -> 2029-07-01 | U4: =In_Lin!U4 -> 2030-01-01 | V4: =In_Lin!V4 -> 2030-07-01 | W4: =In_Lin!W4 -> 2031-01-01 | X4: =In_Lin!X4 -> 2031-07-01 | Y4: =In_Lin!Y4 -> 2032-01-01 | Z4: =In_Lin!Z4 -> 2032-07-01 | AA4: =In_Lin!#REF! ->  | AB4: =In_Lin!#REF! ->  | AC4: =In_Lin!#REF! ->  | AD4: =In_Lin!#REF! ->  | AE4: =In_Lin!#REF! ->  | AF4: =In_Lin!#REF! ->  | AG4: =In_Lin!#REF! ->  | AH4: =In_Lin!#REF! ->  | AI4: =In_Lin!#REF! ->  | AJ4: =In_Lin!#REF! ->  | AK4: =In_Lin!#REF! ->  | AL4: =In_Lin!#REF! ->  | AM4: =In_Lin!#REF! ->  | AN4: =In_Lin!#REF! ->  | AO4: =In_Lin!#REF! ->  | AP4: =In_Lin!#REF! ->  | AQ4: =In_Lin!#REF! ->  | AR4: =In_Lin!#REF! ->  | AS4: =In_Lin!#REF! ->  | AT4: =In_Lin!#REF! ->  | AU4: =In_Lin!#REF! ->  | AV4: =In_Lin!#REF! ->  | AW4: =In_Lin!#REF! ->  | AX4: =In_Lin!#REF! ->  | AY4: =In_Lin!#REF! ->  | AZ4: =In_Lin!#REF! ->  | BA4: =In_Lin!#REF! ->  | BB4: =In_Lin!#REF! ->  | BC4: =In_Lin!#REF! ->  | BD4: =In_Lin!#REF! ->  | BE4: =In_Lin!#REF! ->  | BF4: =In_Lin!#REF! ->  | BG4: =In_Lin!#REF! ->  | BH4: =In_Lin!#REF! ->  | BI4: =In_Lin!#REF! ->  | BJ4: =In_Lin!#REF! ->  | BK4: =In_Lin!#REF! ->  | BL4: =In_Lin!#REF! ->  | BM4: =In_Lin!#REF! ->  | BN4: =In_Lin!#REF! ->  | BO4: =In_Lin!#REF! ->  | BP4: =In_Lin!#REF! ->  | BQ4: =In_Lin!#REF! ->  | BR4: =In_Lin!#REF! ->  | BS4: =In_Lin!#REF! ->  | BT4: =In_Lin!#REF! ->  | BU4: =In_Lin!#REF! ->  | BV4: =In_Lin!#REF! ->  | BW4: =In_Lin!#REF! ->  | BX4: =In_Lin!#REF! ->  | BY4: =In_Lin!#REF! ->  | BZ4: =In_Lin!#REF! ->  | CA4: =In_Lin!#REF! ->  | CB4: =In_Lin!#REF! ->  | CC4: =In_Lin!#REF! ->  | CD4: =In_Lin!#REF! ->  | CE4: =In_Lin!#REF! ->  | CF4: =In_Lin!#REF! ->  | CG4: =In_Lin!#REF! ->  | CH4: =In_Lin!#REF! ->  | CI4: =In_Lin!#REF! ->  | CJ4: =In_Lin!#REF! ->  | CK4: =In_Lin!#REF! ->  | CL4: =In_Lin!#REF! ->  | CM4: =In_Lin!#REF! ->  | CN4: =In_Lin!#REF! -> 
D5: =In_Lin!D5 -> EoP | J5: =In_Lin!J5 -> 2024-12-31 | K5: =In_Lin!K5 -> 2025-06-30 | L5: =In_Lin!L5 -> 2025-12-31 | M5: =In_Lin!M5 -> 2026-06-30 | N5: =In_Lin!N5 -> 2026-12-31 | O5: =In_Lin!O5 -> 2027-06-30 | P5: =In_Lin!P5 -> 2027-12-31 | Q5: =In_Lin!Q5 -> 2028-06-30 | R5: =In_Lin!R5 -> 2028-12-31 | S5: =In_Lin!S5 -> 2029-06-30 | T5: =In_Lin!T5 -> 2029-12-31 | U5: =In_Lin!U5 -> 2030-06-30 | V5: =In_Lin!V5 -> 2030-12-31 | W5: =In_Lin!W5 -> 2031-06-30 | X5: =In_Lin!X5 -> 2031-12-31 | Y5: =In_Lin!Y5 -> 2032-06-30 | Z5: =In_Lin!Z5 -> 2032-12-31 | AA5: =In_Lin!#REF! ->  | AB5: =In_Lin!#REF! ->  | AC5: =In_Lin!#REF! ->  | AD5: =In_Lin!#REF! ->  | AE5: =In_Lin!#REF! ->  | AF5: =In_Lin!#REF! ->  | AG5: =In_Lin!#REF! ->  | AH5: =In_Lin!#REF! ->  | AI5: =In_Lin!#REF! ->  | AJ5: =In_Lin!#REF! ->  | AK5: =In_Lin!#REF! ->  | AL5: =In_Lin!#REF! ->  | AM5: =In_Lin!#REF! ->  | AN5: =In_Lin!#REF! ->  | AO5: =In_Lin!#REF! ->  | AP5: =In_Lin!#REF! ->  | AQ5: =In_Lin!#REF! ->  | AR5: =In_Lin!#REF! ->  | AS5: =In_Lin!#REF! ->  | AT5: =In_Lin!#REF! ->  | AU5: =In_Lin!#REF! ->  | AV5: =In_Lin!#REF! ->  | AW5: =In_Lin!#REF! ->  | AX5: =In_Lin!#REF! ->  | AY5: =In_Lin!#REF! ->  | AZ5: =In_Lin!#REF! ->  | BA5: =In_Lin!#REF! ->  | BB5: =In_Lin!#REF! ->  | BC5: =In_Lin!#REF! ->  | BD5: =In_Lin!#REF! ->  | BE5: =In_Lin!#REF! ->  | BF5: =In_Lin!#REF! ->  | BG5: =In_Lin!#REF! ->  | BH5: =In_Lin!#REF! ->  | BI5: =In_Lin!#REF! ->  | BJ5: =In_Lin!#REF! ->  | BK5: =In_Lin!#REF! ->  | BL5: =In_Lin!#REF! ->  | BM5: =In_Lin!#REF! ->  | BN5: =In_Lin!#REF! ->  | BO5: =In_Lin!#REF! ->  | BP5: =In_Lin!#REF! ->  | BQ5: =In_Lin!#REF! ->  | BR5: =In_Lin!#REF! ->  | BS5: =In_Lin!#REF! ->  | BT5: =In_Lin!#REF! ->  | BU5: =In_Lin!#REF! ->  | BV5: =In_Lin!#REF! ->  | BW5: =In_Lin!#REF! ->  | BX5: =In_Lin!#REF! ->  | BY5: =In_Lin!#REF! ->  | BZ5: =In_Lin!#REF! ->  | CA5: =In_Lin!#REF! ->  | CB5: =In_Lin!#REF! ->  | CC5: =In_Lin!#REF! ->  | CD5: =In_Lin!#REF! ->  | CE5: =In_Lin!#REF! ->  | CF5: =In_Lin!#REF! ->  | CG5: =In_Lin!#REF! ->  | CH5: =In_Lin!#REF! ->  | CI5: =In_Lin!#REF! ->  | CJ5: =In_Lin!#REF! ->  | CK5: =In_Lin!#REF! ->  | CL5: =In_Lin!#REF! ->  | CM5: =In_Lin!#REF! ->  | CN5: =In_Lin!#REF! -> 
D6: =In_Lin!D6 -> Giorni nell'anno | J6: =In_Lin!J6 -> 31 | K6: =In_Lin!K6 -> 365 | L6: =In_Lin!L6 -> 365 | M6: =In_Lin!M6 -> 365 | N6: =In_Lin!N6 -> 365 | O6: =In_Lin!O6 -> 365 | P6: =In_Lin!P6 -> 365 | Q6: =In_Lin!Q6 -> 366 | R6: =In_Lin!R6 -> 366 | S6: =In_Lin!S6 -> 365 | T6: =In_Lin!T6 -> 365 | U6: =In_Lin!U6 -> 365 | V6: =In_Lin!V6 -> 365 | W6: =In_Lin!W6 -> 365 | X6: =In_Lin!X6 -> 365 | Y6: =In_Lin!Y6 -> 366 | Z6: =In_Lin!Z6 -> 366 | AA6: =In_Lin!#REF! ->  | AB6: =In_Lin!#REF! ->  | AC6: =In_Lin!#REF! ->  | AD6: =In_Lin!#REF! ->  | AE6: =In_Lin!#REF! ->  | AF6: =In_Lin!#REF! ->  | AG6: =In_Lin!#REF! ->  | AH6: =In_Lin!#REF! ->  | AI6: =In_Lin!#REF! ->  | AJ6: =In_Lin!#REF! ->  | AK6: =In_Lin!#REF! ->  | AL6: =In_Lin!#REF! ->  | AM6: =In_Lin!#REF! ->  | AN6: =In_Lin!#REF! ->  | AO6: =In_Lin!#REF! ->  | AP6: =In_Lin!#REF! ->  | AQ6: =In_Lin!#REF! ->  | AR6: =In_Lin!#REF! ->  | AS6: =In_Lin!#REF! ->  | AT6: =In_Lin!#REF! ->  | AU6: =In_Lin!#REF! ->  | AV6: =In_Lin!#REF! ->  | AW6: =In_Lin!#REF! ->  | AX6: =In_Lin!#REF! ->  | AY6: =In_Lin!#REF! ->  | AZ6: =In_Lin!#REF! ->  | BA6: =In_Lin!#REF! ->  | BB6: =In_Lin!#REF! ->  | BC6: =In_Lin!#REF! ->  | BD6: =In_Lin!#REF! ->  | BE6: =In_Lin!#REF! ->  | BF6: =In_Lin!#REF! ->  | BG6: =In_Lin!#REF! ->  | BH6: =In_Lin!#REF! ->  | BI6: =In_Lin!#REF! ->  | BJ6: =In_Lin!#REF! ->  | BK6: =In_Lin!#REF! ->  | BL6: =In_Lin!#REF! ->  | BM6: =In_Lin!#REF! ->  | BN6: =In_Lin!#REF! ->  | BO6: =In_Lin!#REF! ->  | BP6: =In_Lin!#REF! ->  | BQ6: =In_Lin!#REF! ->  | BR6: =In_Lin!#REF! ->  | BS6: =In_Lin!#REF! ->  | BT6: =In_Lin!#REF! ->  | BU6: =In_Lin!#REF! ->  | BV6: =In_Lin!#REF! ->  | BW6: =In_Lin!#REF! ->  | BX6: =In_Lin!#REF! ->  | BY6: =In_Lin!#REF! ->  | BZ6: =In_Lin!#REF! ->  | CA6: =In_Lin!#REF! ->  | CB6: =In_Lin!#REF! ->  | CC6: =In_Lin!#REF! ->  | CD6: =In_Lin!#REF! ->  | CE6: =In_Lin!#REF! ->  | CF6: =In_Lin!#REF! ->  | CG6: =In_Lin!#REF! ->  | CH6: =In_Lin!#REF! ->  | CI6: =In_Lin!#REF! ->  | CJ6: =In_Lin!#REF! ->  | CK6: =In_Lin!#REF! ->  | CL6: =In_Lin!#REF! ->  | CM6: =In_Lin!#REF! ->  | CN6: =In_Lin!#REF! -> 
D7: =In_Lin!D7 -> Giorni nel periodo | J7: =In_Lin!J7 -> 31 | K7: =In_Lin!K7 -> 181 | L7: =In_Lin!L7 -> 184 | M7: =In_Lin!M7 -> 181 | N7: =In_Lin!N7 -> 184 | O7: =In_Lin!O7 -> 181 | P7: =In_Lin!P7 -> 184 | Q7: =In_Lin!Q7 -> 182 | R7: =In_Lin!R7 -> 184 | S7: =In_Lin!S7 -> 181 | T7: =In_Lin!T7 -> 184 | U7: =In_Lin!U7 -> 181 | V7: =In_Lin!V7 -> 184 | W7: =In_Lin!W7 -> 181 | X7: =In_Lin!X7 -> 184 | Y7: =In_Lin!Y7 -> 182 | Z7: =In_Lin!Z7 -> 184 | AA7: =In_Lin!#REF! ->  | AB7: =In_Lin!#REF! ->  | AC7: =In_Lin!#REF! ->  | AD7: =In_Lin!#REF! ->  | AE7: =In_Lin!#REF! ->  | AF7: =In_Lin!#REF! ->  | AG7: =In_Lin!#REF! ->  | AH7: =In_Lin!#REF! ->  | AI7: =In_Lin!#REF! ->  | AJ7: =In_Lin!#REF! ->  | AK7: =In_Lin!#REF! ->  | AL7: =In_Lin!#REF! ->  | AM7: =In_Lin!#REF! ->  | AN7: =In_Lin!#REF! ->  | AO7: =In_Lin!#REF! ->  | AP7: =In_Lin!#REF! ->  | AQ7: =In_Lin!#REF! ->  | AR7: =In_Lin!#REF! ->  | AS7: =In_Lin!#REF! ->  | AT7: =In_Lin!#REF! ->  | AU7: =In_Lin!#REF! ->  | AV7: =In_Lin!#REF! ->  | AW7: =In_Lin!#REF! ->  | AX7: =In_Lin!#REF! ->  | AY7: =In_Lin!#REF! ->  | AZ7: =In_Lin!#REF! ->  | BA7: =In_Lin!#REF! ->  | BB7: =In_Lin!#REF! ->  | BC7: =In_Lin!#REF! ->  | BD7: =In_Lin!#REF! ->  | BE7: =In_Lin!#REF! ->  | BF7: =In_Lin!#REF! ->  | BG7: =In_Lin!#REF! ->  | BH7: =In_Lin!#REF! ->  | BI7: =In_Lin!#REF! ->  | BJ7: =In_Lin!#REF! ->  | BK7: =In_Lin!#REF! ->  | BL7: =In_Lin!#REF! ->  | BM7: =In_Lin!#REF! ->  | BN7: =In_Lin!#REF! ->  | BO7: =In_Lin!#REF! ->  | BP7: =In_Lin!#REF! ->  | BQ7: =In_Lin!#REF! ->  | BR7: =In_Lin!#REF! ->  | BS7: =In_Lin!#REF! ->  | BT7: =In_Lin!#REF! ->  | BU7: =In_Lin!#REF! ->  | BV7: =In_Lin!#REF! ->  | BW7: =In_Lin!#REF! ->  | BX7: =In_Lin!#REF! ->  | BY7: =In_Lin!#REF! ->  | BZ7: =In_Lin!#REF! ->  | CA7: =In_Lin!#REF! ->  | CB7: =In_Lin!#REF! ->  | CC7: =In_Lin!#REF! ->  | CD7: =In_Lin!#REF! ->  | CE7: =In_Lin!#REF! ->  | CF7: =In_Lin!#REF! ->  | CG7: =In_Lin!#REF! ->  | CH7: =In_Lin!#REF! ->  | CI7: =In_Lin!#REF! ->  | CJ7: =In_Lin!#REF! ->  | CK7: =In_Lin!#REF! ->  | CL7: =In_Lin!#REF! ->  | CM7: =In_Lin!#REF! ->  | CN7: =In_Lin!#REF! -> 
D8: =In_Lin!D8 -> Anno | J8: =In_Lin!J8 -> 2024 | K8: =In_Lin!K8 -> 2025 | L8: =In_Lin!L8 -> 2025 | M8: =In_Lin!M8 -> 2026 | N8: =In_Lin!N8 -> 2026 | O8: =In_Lin!O8 -> 2027 | P8: =In_Lin!P8 -> 2027 | Q8: =In_Lin!Q8 -> 2028 | R8: =In_Lin!R8 -> 2028 | S8: =In_Lin!S8 -> 2029 | T8: =In_Lin!T8 -> 2029 | U8: =In_Lin!U8 -> 2030 | V8: =In_Lin!V8 -> 2030 | W8: =In_Lin!W8 -> 2031 | X8: =In_Lin!X8 -> 2031 | Y8: =In_Lin!Y8 -> 2032 | Z8: =In_Lin!Z8 -> 2032 | AA8: =In_Lin!#REF! ->  | AB8: =In_Lin!#REF! ->  | AC8: =In_Lin!#REF! ->  | AD8: =In_Lin!#REF! ->  | AE8: =In_Lin!#REF! ->  | AF8: =In_Lin!#REF! ->  | AG8: =In_Lin!#REF! ->  | AH8: =In_Lin!#REF! ->  | AI8: =In_Lin!#REF! ->  | AJ8: =In_Lin!#REF! ->  | AK8: =In_Lin!#REF! ->  | AL8: =In_Lin!#REF! ->  | AM8: =In_Lin!#REF! ->  | AN8: =In_Lin!#REF! ->  | AO8: =In_Lin!#REF! ->  | AP8: =In_Lin!#REF! ->  | AQ8: =In_Lin!#REF! ->  | AR8: =In_Lin!#REF! ->  | AS8: =In_Lin!#REF! ->  | AT8: =In_Lin!#REF! ->  | AU8: =In_Lin!#REF! ->  | AV8: =In_Lin!#REF! ->  | AW8: =In_Lin!#REF! ->  | AX8: =In_Lin!#REF! ->  | AY8: =In_Lin!#REF! ->  | AZ8: =In_Lin!#REF! ->  | BA8: =In_Lin!#REF! ->  | BB8: =In_Lin!#REF! ->  | BC8: =In_Lin!#REF! ->  | BD8: =In_Lin!#REF! ->  | BE8: =In_Lin!#REF! ->  | BF8: =In_Lin!#REF! ->  | BG8: =In_Lin!#REF! ->  | BH8: =In_Lin!#REF! ->  | BI8: =In_Lin!#REF! ->  | BJ8: =In_Lin!#REF! ->  | BK8: =In_Lin!#REF! ->  | BL8: =In_Lin!#REF! ->  | BM8: =In_Lin!#REF! ->  | BN8: =In_Lin!#REF! ->  | BO8: =In_Lin!#REF! ->  | BP8: =In_Lin!#REF! ->  | BQ8: =In_Lin!#REF! ->  | BR8: =In_Lin!#REF! ->  | BS8: =In_Lin!#REF! ->  | BT8: =In_Lin!#REF! ->  | BU8: =In_Lin!#REF! ->  | BV8: =In_Lin!#REF! ->  | BW8: =In_Lin!#REF! ->  | BX8: =In_Lin!#REF! ->  | BY8: =In_Lin!#REF! ->  | BZ8: =In_Lin!#REF! ->  | CA8: =In_Lin!#REF! ->  | CB8: =In_Lin!#REF! ->  | CC8: =In_Lin!#REF! ->  | CD8: =In_Lin!#REF! ->  | CE8: =In_Lin!#REF! ->  | CF8: =In_Lin!#REF! ->  | CG8: =In_Lin!#REF! ->  | CH8: =In_Lin!#REF! ->  | CI8: =In_Lin!#REF! ->  | CJ8: =In_Lin!#REF! ->  | CK8: =In_Lin!#REF! ->  | CL8: =In_Lin!#REF! ->  | CM8: =In_Lin!#REF! ->  | CN8: =In_Lin!#REF! -> 
A10: 1 | B10: Timing
D12: Vita utile della concessione | E12: flag | G12: =end_conc -> 2034-11-30 | J12: =(J$5<=$G12)*1 -> 1 | K12: =(K$5<=$G12)*1 -> 1 | L12: 1 | M12: 1 | N12: 1 | O12: 1 | P12: 1 | Q12: 1 | R12: 1 | S12: 1 | T12: 1 | U12: 1 | V12: 1 | W12: 1 | X12: 1 | Y12: 1 | Z12: 1
D13: Dati storici | E13: flag | G13: =In!$G$13 -> 2023-12-31 | J13: =IF($G13>=J$4,1,0) -> 0 | K13: =IF($G13>=K$4,1,0) -> 0 | L13: 0 | M13: 0 | N13: 0 | O13: 0 | P13: 0 | Q13: 0 | R13: 0 | S13: 0 | T13: 0 | U13: 0 | V13: 0 | W13: 0 | X13: 0 | Y13: 0 | Z13: 0 | BW13: =IF($G13>=BW$4,1,0) -> 
H15: Tot. | L15: 2020 | N15: 2021 | P15: 2022 | R15: 2023 | T15: 2024 | V15: 2025 | X15: 2026 | Z15: 2027 | AB15: 2028 | AD15: 2029 | AF15: 2030 | AH15: 2031 | AJ15: 2032 | AL15: 2033 | AN15: 2034 | AP15: 2035 | AR15: 2036
A17: =A10+1 -> 2 | D17: Conto economico | J17: =IF(J$13=1,"Actual","Piano") -> Piano | K17: =IF(K$13=1,"Actual","Piano") -> Piano | AS17: =IF(AS$13=1,"Actual","Piano") ->  | BV17: =IF(BV$13=1,"Actual","Piano") -> 
D19: Ricavi da locazione | E19: € | H19: =SUM(J19:CP19) ->  | J19: =+Op!#REF! ->  | K19: =+Op!#REF! ->  | L19: =+Op!#REF! ->  | M19: =+Op!#REF! ->  | N19: =+Op!#REF! ->  | O19: =+Op!#REF! ->  | P19: =+Op!#REF! ->  | Q19: =+Op!#REF! ->  | R19: =+Op!#REF! ->  | S19: =+Op!#REF! ->  | T19: =+Op!#REF! ->  | U19: =+Op!#REF! ->  | V19: =+Op!#REF! ->  | W19: =+Op!#REF! ->  | X19: =+Op!#REF! ->  | Y19: =+Op!#REF! ->  | Z19: =+Op!#REF! ->  | AA19: =+Op!#REF! ->  | AB19: =+Op!#REF! ->  | AC19: =+Op!#REF! ->  | AD19: =+Op!#REF! ->  | AE19: =+Op!#REF! ->  | AF19: =+Op!#REF! ->  | AG19: =+Op!#REF! ->  | AH19: =+Op!#REF! ->  | AI19: =+Op!#REF! ->  | AJ19: =+Op!#REF! ->  | AK19: =+Op!#REF! ->  | AL19: =+Op!#REF! ->  | AM19: =+Op!#REF! ->  | AN19: =+Op!#REF! ->  | AO19: =+Op!#REF! ->  | AP19: =+Op!#REF! ->  | AQ19: =+Op!#REF! ->  | AR19: =+Op!#REF! ->  | AS19: =+Op!#REF! ->  | AT19: =+Op!#REF! ->  | AU19: =+Op!#REF! ->  | AV19: =+Op!#REF! ->  | AW19: =+Op!#REF! ->  | AX19: =+Op!#REF! ->  | AY19: =+Op!#REF! ->  | AZ19: =+Op!#REF! ->  | BA19: =+Op!#REF! ->  | BB19: =+Op!#REF! ->  | BC19: =+Op!#REF! ->  | BD19: =+Op!#REF! ->  | BE19: =+Op!#REF! ->  | BF19: =+Op!#REF! ->  | BG19: =+Op!#REF! ->  | BH19: =+Op!#REF! ->  | BI19: =+Op!#REF! ->  | BJ19: =+Op!#REF! ->  | BK19: =+Op!#REF! ->  | BL19: =+Op!#REF! ->  | BM19: =+Op!#REF! ->  | BN19: =+Op!#REF! ->  | BO19: =+Op!#REF! ->  | BP19: =+Op!#REF! ->  | BQ19: =+Op!#REF! ->  | BR19: =+Op!#REF! ->  | BS19: =+Op!#REF! ->  | BT19: =+Op!#REF! ->  | BU19: =+Op!#REF! ->  | BV19: =+Op!#REF! ->  | BW19: =+Op!#REF! ->  | BX19: =+Op!#REF! ->  | BY19: =+Op!#REF! ->  | BZ19: =+Op!#REF! ->  | CA19: =+Op!#REF! ->  | CB19: =+Op!#REF! ->  | CC19: =+Op!#REF! ->  | CD19: =+Op!#REF! ->  | CE19: =+Op!#REF! ->  | CF19: =+Op!#REF! ->  | CG19: =+Op!#REF! ->  | CH19: =+Op!#REF! ->  | CI19: =+Op!#REF! ->  | CJ19: =+Op!#REF! ->  | CK19: =+Op!#REF! ->  | CL19: =+Op!#REF! ->  | CM19: =+Op!#REF! ->  | CN19: =+Op!#REF! -> 
D20: Ricavi fotovoltaico | E20: € | H20: =SUM(J20:CP20) ->  | J20: =Op!#REF! ->  | K20: =Op!#REF! ->  | L20: =Op!#REF! ->  | M20: =Op!#REF! ->  | N20: =Op!#REF! ->  | O20: =Op!#REF! ->  | P20: =Op!#REF! ->  | Q20: =Op!#REF! ->  | R20: =Op!#REF! ->  | S20: =Op!#REF! ->  | T20: =Op!#REF! ->  | U20: =Op!#REF! ->  | V20: =Op!#REF! ->  | W20: =Op!#REF! ->  | X20: =Op!#REF! ->  | Y20: =Op!#REF! ->  | Z20: =Op!#REF! ->  | AA20: =Op!#REF! ->  | AB20: =Op!#REF! ->  | AC20: =Op!#REF! ->  | AD20: =Op!#REF! ->  | AE20: =Op!#REF! ->  | AF20: =Op!#REF! ->  | AG20: =Op!#REF! ->  | AH20: =Op!#REF! ->  | AI20: =Op!#REF! ->  | AJ20: =Op!#REF! ->  | AK20: =Op!#REF! ->  | AL20: =Op!#REF! ->  | AM20: =Op!#REF! ->  | AN20: =Op!#REF! ->  | AO20: =Op!#REF! ->  | AP20: =Op!#REF! ->  | AQ20: =Op!#REF! ->  | AR20: =Op!#REF! ->  | AS20: =Op!#REF! ->  | AT20: =Op!#REF! ->  | AU20: =Op!#REF! ->  | AV20: =Op!#REF! ->  | AW20: =Op!#REF! ->  | AX20: =Op!#REF! ->  | AY20: =Op!#REF! ->  | AZ20: =Op!#REF! ->  | BA20: =Op!#REF! ->  | BB20: =Op!#REF! ->  | BC20: =Op!#REF! ->  | BD20: =Op!#REF! ->  | BE20: =Op!#REF! ->  | BF20: =Op!#REF! ->  | BG20: =Op!#REF! ->  | BH20: =Op!#REF! ->  | BI20: =Op!#REF! ->  | BJ20: =Op!#REF! ->  | BK20: =Op!#REF! ->  | BL20: =Op!#REF! ->  | BM20: =Op!#REF! ->  | BN20: =Op!#REF! ->  | BO20: =Op!#REF! ->  | BP20: =Op!#REF! ->  | BQ20: =Op!#REF! ->  | BR20: =Op!#REF! ->  | BS20: =Op!#REF! ->  | BT20: =Op!#REF! ->  | BU20: =Op!#REF! ->  | BV20: =Op!#REF! ->  | BW20: =Op!#REF! ->  | BX20: =Op!#REF! ->  | BY20: =Op!#REF! ->  | BZ20: =Op!#REF! ->  | CA20: =Op!#REF! ->  | CB20: =Op!#REF! ->  | CC20: =Op!#REF! ->  | CD20: =Op!#REF! ->  | CE20: =Op!#REF! ->  | CF20: =Op!#REF! ->  | CG20: =Op!#REF! ->  | CH20: =Op!#REF! ->  | CI20: =Op!#REF! ->  | CJ20: =Op!#REF! ->  | CK20: =Op!#REF! ->  | CL20: =Op!#REF! ->  | CM20: =Op!#REF! ->  | CN20: =Op!#REF! -> 
D21: Altri ricavi | E21: € | H21: =SUM(J21:CP21) ->  | J21: =+Op!#REF! ->  | K21: =+Op!#REF! ->  | L21: =+Op!#REF! ->  | M21: =+Op!#REF! ->  | N21: =+Op!#REF! ->  | O21: =+Op!#REF! ->  | P21: =+Op!#REF! ->  | Q21: =+Op!J52 -> 0 | R21: =+Op!K52 -> 0 | S21: =+Op!L52 -> 0 | T21: =+Op!M52 -> 0 | U21: =+Op!N52 -> 0 | V21: =+Op!O52 -> 0 | W21: =+Op!P52 -> 0 | X21: =+Op!Q52 -> 0 | Y21: =+Op!R52 -> 0 | Z21: =+Op!S52 -> 0 | AA21: =+Op!T52 -> 0 | AB21: =+Op!U52 -> 0 | AC21: =+Op!V52 -> 0 | AD21: =+Op!W52 -> 0 | AE21: =+Op!X52 -> 0 | AF21: =+Op!Y52 -> 0 | AG21: =+Op!Z52 -> 0 | AH21: =+Op!#REF! ->  | AI21: =+Op!#REF! ->  | AJ21: =+Op!#REF! ->  | AK21: =+Op!#REF! ->  | AL21: =+Op!#REF! ->  | AM21: =+Op!#REF! ->  | AN21: =+Op!#REF! ->  | AO21: =+Op!#REF! ->  | AP21: =+Op!#REF! ->  | AQ21: =+Op!#REF! ->  | AR21: =+Op!#REF! ->  | AS21: =+Op!#REF! ->  | AT21: =+Op!#REF! ->  | AU21: =+Op!#REF! ->  | AV21: =+Op!#REF! ->  | AW21: =+Op!#REF! ->  | AX21: =+Op!#REF! ->  | AY21: =+Op!#REF! ->  | AZ21: =+Op!#REF! ->  | BA21: =+Op!#REF! ->  | BB21: =+Op!#REF! ->  | BC21: =+Op!#REF! ->  | BD21: =+Op!#REF! ->  | BE21: =+Op!#REF! ->  | BF21: =+Op!#REF! ->  | BG21: =+Op!#REF! ->  | BH21: =+Op!#REF! ->  | BI21: =+Op!#REF! ->  | BJ21: =+Op!#REF! ->  | BK21: =+Op!#REF! ->  | BL21: =+Op!#REF! ->  | BM21: =+Op!#REF! ->  | BN21: =+Op!#REF! ->  | BO21: =+Op!#REF! ->  | BP21: =+Op!#REF! ->  | BQ21: =+Op!#REF! ->  | BR21: =+Op!#REF! ->  | BS21: =+Op!#REF! ->  | BT21: =+Op!#REF! ->  | BU21: =+Op!#REF! ->  | BV21: =+Op!#REF! ->  | BW21: =+Op!#REF! ->  | BX21: =+Op!#REF! ->  | BY21: =+Op!#REF! ->  | BZ21: =+Op!#REF! ->  | CA21: =+Op!#REF! ->  | CB21: =+Op!#REF! ->  | CC21: =+Op!#REF! ->  | CD21: =+Op!#REF! ->  | CE21: =+Op!#REF! ->  | CF21: =+Op!#REF! ->  | CG21: =+Op!#REF! ->  | CH21: =+Op!#REF! ->  | CI21: =+Op!#REF! ->  | CJ21: =+Op!#REF! ->  | CK21: =+Op!#REF! ->  | CL21: =+Op!#REF! ->  | CM21: =+Op!#REF! ->  | CN21: =+Op!#REF! -> 
D22: Ricavi | E22: =+E19 -> € | H22: =SUM(J22:CP22) ->  | J22: =SUM(J19:J21) ->  | K22: =SUM(K19:K21) ->  | BW22: =SUM(BW19:BW21) -> 
D24: Costi O&M | E24: € | H24: =SUM(J24:CP24) ->  | J24: =-Op!#REF! ->  | K24: =-Op!#REF! ->  | L24: =-Op!#REF! ->  | M24: =-Op!#REF! ->  | N24: =-Op!#REF! ->  | O24: =-Op!#REF! ->  | P24: =-Op!#REF! ->  | Q24: =-Op!J68 -> -583.4033333 | R24: =-Op!K68 -> -3500.42 | S24: =-Op!L68 -> -3500.42 | T24: =-Op!M68 -> -3587.9305 | U24: =-Op!N68 -> -3587.9305 | V24: =-Op!O68 -> -3677.628762 | W24: =-Op!P68 -> -3677.628762 | X24: =-Op!Q68 -> -3769.569482 | Y24: =-Op!R68 -> -3769.569482 | Z24: =-Op!S68 -> -3863.808719 | AA24: =-Op!T68 -> -3863.808719 | AB24: =-Op!U68 -> -3960.403937 | AC24: =-Op!V68 -> -3960.403937 | AD24: =-Op!W68 -> -4059.414035 | AE24: =-Op!X68 -> -4059.414035 | AF24: =-Op!Y68 -> -4160.899386 | AG24: =-Op!Z68 -> -4160.899386 | AH24: =-Op!#REF! ->  | AI24: =-Op!#REF! ->  | AJ24: =-Op!#REF! ->  | AK24: =-Op!#REF! ->  | AL24: =-Op!#REF! ->  | AM24: =-Op!#REF! ->  | AN24: =-Op!#REF! ->  | AO24: =-Op!#REF! ->  | AP24: =-Op!#REF! ->  | AQ24: =-Op!#REF! ->  | AR24: =-Op!#REF! ->  | AS24: =-Op!#REF! ->  | AT24: =-Op!#REF! ->  | AU24: =-Op!#REF! ->  | AV24: =-Op!#REF! ->  | AW24: =-Op!#REF! ->  | AX24: =-Op!#REF! ->  | AY24: =-Op!#REF! ->  | AZ24: =-Op!#REF! ->  | BA24: =-Op!#REF! ->  | BB24: =-Op!#REF! ->  | BC24: =-Op!#REF! ->  | BD24: =-Op!#REF! ->  | BE24: =-Op!#REF! ->  | BF24: =-Op!#REF! ->  | BG24: =-Op!#REF! ->  | BH24: =-Op!#REF! ->  | BI24: =-Op!#REF! ->  | BJ24: =-Op!#REF! ->  | BK24: =-Op!#REF! ->  | BL24: =-Op!#REF! ->  | BM24: =-Op!#REF! ->  | BN24: =-Op!#REF! ->  | BO24: =-Op!#REF! ->  | BP24: =-Op!#REF! ->  | BQ24: =-Op!#REF! ->  | BR24: =-Op!#REF! ->  | BS24: =-Op!#REF! ->  | BT24: =-Op!#REF! ->  | BU24: =-Op!#REF! ->  | BV24: =-Op!#REF! ->  | BW24: =-Op!#REF! ->  | BX24: =-Op!#REF! ->  | BY24: =-Op!#REF! ->  | BZ24: =-Op!#REF! ->  | CA24: =-Op!#REF! ->  | CB24: =-Op!#REF! ->  | CC24: =-Op!#REF! ->  | CD24: =-Op!#REF! ->  | CE24: =-Op!#REF! ->  | CF24: =-Op!#REF! ->  | CG24: =-Op!#REF! ->  | CH24: =-Op!#REF! ->  | CI24: =-Op!#REF! ->  | CJ24: =-Op!#REF! ->  | CK24: =-Op!#REF! ->  | CL24: =-Op!#REF! ->  | CM24: =-Op!#REF! ->  | CN24: =-Op!#REF! -> 
D25: Spese assicurative | E25: € | H25: =SUM(J25:CP25) ->  | J25: =-Op!#REF! ->  | K25: =-Op!#REF! ->  | L25: =-Op!#REF! ->  | M25: =-Op!#REF! ->  | N25: =-Op!#REF! ->  | O25: =-Op!#REF! ->  | P25: =-Op!#REF! ->  | Q25: =-Op!#REF! ->  | R25: =-Op!#REF! ->  | S25: =-Op!#REF! ->  | T25: =-Op!#REF! ->  | U25: =-Op!#REF! ->  | V25: =-Op!#REF! ->  | W25: =-Op!#REF! ->  | X25: =-Op!#REF! ->  | Y25: =-Op!#REF! ->  | Z25: =-Op!#REF! ->  | AA25: =-Op!#REF! ->  | AB25: =-Op!#REF! ->  | AC25: =-Op!#REF! ->  | AD25: =-Op!#REF! ->  | AE25: =-Op!#REF! ->  | AF25: =-Op!#REF! ->  | AG25: =-Op!#REF! ->  | AH25: =-Op!#REF! ->  | AI25: =-Op!#REF! ->  | AJ25: =-Op!#REF! ->  | AK25: =-Op!#REF! ->  | AL25: =-Op!#REF! ->  | AM25: =-Op!#REF! ->  | AN25: =-Op!#REF! ->  | AO25: =-Op!#REF! ->  | AP25: =-Op!#REF! ->  | AQ25: =-Op!#REF! ->  | AR25: =-Op!#REF! ->  | AS25: =-Op!#REF! ->  | AT25: =-Op!#REF! ->  | AU25: =-Op!#REF! ->  | AV25: =-Op!#REF! ->  | AW25: =-Op!#REF! ->  | AX25: =-Op!#REF! ->  | AY25: =-Op!#REF! ->  | AZ25: =-Op!#REF! ->  | BA25: =-Op!#REF! ->  | BB25: =-Op!#REF! ->  | BC25: =-Op!#REF! ->  | BD25: =-Op!#REF! ->  | BE25: =-Op!#REF! ->  | BF25: =-Op!#REF! ->  | BG25: =-Op!#REF! ->  | BH25: =-Op!#REF! ->  | BI25: =-Op!#REF! ->  | BJ25: =-Op!#REF! ->  | BK25: =-Op!#REF! ->  | BL25: =-Op!#REF! ->  | BM25: =-Op!#REF! ->  | BN25: =-Op!#REF! ->  | BO25: =-Op!#REF! ->  | BP25: =-Op!#REF! ->  | BQ25: =-Op!#REF! ->  | BR25: =-Op!#REF! ->  | BS25: =-Op!#REF! ->  | BT25: =-Op!#REF! ->  | BU25: =-Op!#REF! ->  | BV25: =-Op!#REF! ->  | BW25: =-Op!#REF! ->  | BX25: =-Op!#REF! ->  | BY25: =-Op!#REF! ->  | BZ25: =-Op!#REF! ->  | CA25: =-Op!#REF! ->  | CB25: =-Op!#REF! ->  | CC25: =-Op!#REF! ->  | CD25: =-Op!#REF! ->  | CE25: =-Op!#REF! ->  | CF25: =-Op!#REF! ->  | CG25: =-Op!#REF! ->  | CH25: =-Op!#REF! ->  | CI25: =-Op!#REF! ->  | CJ25: =-Op!#REF! ->  | CK25: =-Op!#REF! ->  | CL25: =-Op!#REF! ->  | CM25: =-Op!#REF! ->  | CN25: =-Op!#REF! -> 
D26: =+Op!#REF! ->  | E26: € | J26: =-Op!#REF! ->  | K26: =-Op!#REF! ->  | L26: =-Op!#REF! ->  | M26: =-Op!#REF! ->  | N26: =-Op!#REF! ->  | O26: =-Op!#REF! ->  | P26: =-Op!#REF! ->  | Q26: =-Op!#REF! ->  | R26: =-Op!#REF! ->  | S26: =-Op!#REF! ->  | T26: =-Op!#REF! ->  | U26: =-Op!#REF! ->  | V26: =-Op!#REF! ->  | W26: =-Op!#REF! ->  | X26: =-Op!#REF! ->  | Y26: =-Op!#REF! ->  | Z26: =-Op!#REF! ->  | AA26: =-Op!#REF! ->  | AB26: =-Op!#REF! ->  | AC26: =-Op!#REF! ->  | AD26: =-Op!#REF! ->  | AE26: =-Op!#REF! ->  | AF26: =-Op!#REF! ->  | AG26: =-Op!#REF! ->  | AH26: =-Op!#REF! ->  | AI26: =-Op!#REF! ->  | AJ26: =-Op!#REF! ->  | AK26: =-Op!#REF! ->  | AL26: =-Op!#REF! ->  | AM26: =-Op!#REF! ->  | AN26: =-Op!#REF! ->  | AO26: =-Op!#REF! ->  | AP26: =-Op!#REF! ->  | AQ26: =-Op!#REF! ->  | AR26: =-Op!#REF! ->  | AS26: =-Op!#REF! ->  | AT26: =-Op!#REF! ->  | AU26: =-Op!#REF! ->  | AV26: =-Op!#REF! ->  | AW26: =-Op!#REF! ->  | AX26: =-Op!#REF! ->  | AY26: =-Op!#REF! ->  | AZ26: =-Op!#REF! ->  | BA26: =-Op!#REF! ->  | BB26: =-Op!#REF! ->  | BC26: =-Op!#REF! ->  | BD26: =-Op!#REF! ->  | BE26: =-Op!#REF! ->  | BF26: =-Op!#REF! ->  | BG26: =-Op!#REF! ->  | BH26: =-Op!#REF! ->  | BI26: =-Op!#REF! ->  | BJ26: =-Op!#REF! ->  | BK26: =-Op!#REF! ->  | BL26: =-Op!#REF! ->  | BM26: =-Op!#REF! ->  | BN26: =-Op!#REF! ->  | BO26: =-Op!#REF! ->  | BP26: =-Op!#REF! ->  | BQ26: =-Op!#REF! ->  | BR26: =-Op!#REF! ->  | BS26: =-Op!#REF! ->  | BT26: =-Op!#REF! ->  | BU26: =-Op!#REF! ->  | BV26: =-Op!#REF! ->  | BW26: =-Op!#REF! ->  | BX26: =-Op!#REF! ->  | BY26: =-Op!#REF! ->  | BZ26: =-Op!#REF! ->  | CA26: =-Op!#REF! ->  | CB26: =-Op!#REF! ->  | CC26: =-Op!#REF! ->  | CD26: =-Op!#REF! ->  | CE26: =-Op!#REF! ->  | CF26: =-Op!#REF! ->  | CG26: =-Op!#REF! ->  | CH26: =-Op!#REF! ->  | CI26: =-Op!#REF! ->  | CJ26: =-Op!#REF! ->  | CK26: =-Op!#REF! ->  | CL26: =-Op!#REF! ->  | CM26: =-Op!#REF! ->  | CN26: =-Op!#REF! -> 
D27: =+Op!#REF! ->  | E27: € | J27: =-Op!#REF! ->  | K27: =-Op!#REF! ->  | L27: =-Op!#REF! ->  | M27: =-Op!#REF! ->  | N27: =-Op!#REF! ->  | O27: =-Op!#REF! ->  | P27: =-Op!#REF! ->  | Q27: =-Op!#REF! ->  | R27: =-Op!#REF! ->  | S27: =-Op!#REF! ->  | T27: =-Op!#REF! ->  | U27: =-Op!#REF! ->  | V27: =-Op!#REF! ->  | W27: =-Op!#REF! ->  | X27: =-Op!#REF! ->  | Y27: =-Op!#REF! ->  | Z27: =-Op!#REF! ->  | AA27: =-Op!#REF! ->  | AB27: =-Op!#REF! ->  | AC27: =-Op!#REF! ->  | AD27: =-Op!#REF! ->  | AE27: =-Op!#REF! ->  | AF27: =-Op!#REF! ->  | AG27: =-Op!#REF! ->  | AH27: =-Op!#REF! ->  | AI27: =-Op!#REF! ->  | AJ27: =-Op!#REF! ->  | AK27: =-Op!#REF! ->  | AL27: =-Op!#REF! ->  | AM27: =-Op!#REF! ->  | AN27: =-Op!#REF! ->  | AO27: =-Op!#REF! ->  | AP27: =-Op!#REF! ->  | AQ27: =-Op!#REF! ->  | AR27: =-Op!#REF! ->  | AS27: =-Op!#REF! ->  | AT27: =-Op!#REF! ->  | AU27: =-Op!#REF! ->  | AV27: =-Op!#REF! ->  | AW27: =-Op!#REF! ->  | AX27: =-Op!#REF! ->  | AY27: =-Op!#REF! ->  | AZ27: =-Op!#REF! ->  | BA27: =-Op!#REF! ->  | BB27: =-Op!#REF! ->  | BC27: =-Op!#REF! ->  | BD27: =-Op!#REF! ->  | BE27: =-Op!#REF! ->  | BF27: =-Op!#REF! ->  | BG27: =-Op!#REF! ->  | BH27: =-Op!#REF! ->  | BI27: =-Op!#REF! ->  | BJ27: =-Op!#REF! ->  | BK27: =-Op!#REF! ->  | BL27: =-Op!#REF! ->  | BM27: =-Op!#REF! ->  | BN27: =-Op!#REF! ->  | BO27: =-Op!#REF! ->  | BP27: =-Op!#REF! ->  | BQ27: =-Op!#REF! ->  | BR27: =-Op!#REF! ->  | BS27: =-Op!#REF! ->  | BT27: =-Op!#REF! ->  | BU27: =-Op!#REF! ->  | BV27: =-Op!#REF! ->  | BW27: =-Op!#REF! ->  | BX27: =-Op!#REF! ->  | BY27: =-Op!#REF! ->  | BZ27: =-Op!#REF! ->  | CA27: =-Op!#REF! ->  | CB27: =-Op!#REF! ->  | CC27: =-Op!#REF! ->  | CD27: =-Op!#REF! ->  | CE27: =-Op!#REF! ->  | CF27: =-Op!#REF! ->  | CG27: =-Op!#REF! ->  | CH27: =-Op!#REF! ->  | CI27: =-Op!#REF! ->  | CJ27: =-Op!#REF! ->  | CK27: =-Op!#REF! ->  | CL27: =-Op!#REF! ->  | CM27: =-Op!#REF! ->  | CN27: =-Op!#REF! -> 
D28: =+Op!#REF! ->  | E28: € | J28: =-Op!#REF! ->  | K28: =-Op!#REF! ->  | L28: =-Op!#REF! ->  | M28: =-Op!#REF! ->  | N28: =-Op!#REF! ->  | O28: =-Op!#REF! ->  | P28: =-Op!#REF! ->  | Q28: =-Op!#REF! ->  | R28: =-Op!#REF! ->  | S28: =-Op!#REF! ->  | T28: =-Op!#REF! ->  | U28: =-Op!#REF! ->  | V28: =-Op!#REF! ->  | W28: =-Op!#REF! ->  | X28: =-Op!#REF! ->  | Y28: =-Op!#REF! ->  | Z28: =-Op!#REF! ->  | AA28: =-Op!#REF! ->  | AB28: =-Op!#REF! ->  | AC28: =-Op!#REF! ->  | AD28: =-Op!#REF! ->  | AE28: =-Op!#REF! ->  | AF28: =-Op!#REF! ->  | AG28: =-Op!#REF! ->  | AH28: =-Op!#REF! ->  | AI28: =-Op!#REF! ->  | AJ28: =-Op!#REF! ->  | AK28: =-Op!#REF! ->  | AL28: =-Op!#REF! ->  | AM28: =-Op!#REF! ->  | AN28: =-Op!#REF! ->  | AO28: =-Op!#REF! ->  | AP28: =-Op!#REF! ->  | AQ28: =-Op!#REF! ->  | AR28: =-Op!#REF! ->  | AS28: =-Op!#REF! ->  | AT28: =-Op!#REF! ->  | AU28: =-Op!#REF! ->  | AV28: =-Op!#REF! ->  | AW28: =-Op!#REF! ->  | AX28: =-Op!#REF! ->  | AY28: =-Op!#REF! ->  | AZ28: =-Op!#REF! ->  | BA28: =-Op!#REF! ->  | BB28: =-Op!#REF! ->  | BC28: =-Op!#REF! ->  | BD28: =-Op!#REF! ->  | BE28: =-Op!#REF! ->  | BF28: =-Op!#REF! ->  | BG28: =-Op!#REF! ->  | BH28: =-Op!#REF! ->  | BI28: =-Op!#REF! ->  | BJ28: =-Op!#REF! ->  | BK28: =-Op!#REF! ->  | BL28: =-Op!#REF! ->  | BM28: =-Op!#REF! ->  | BN28: =-Op!#REF! ->  | BO28: =-Op!#REF! ->  | BP28: =-Op!#REF! ->  | BQ28: =-Op!#REF! ->  | BR28: =-Op!#REF! ->  | BS28: =-Op!#REF! ->  | BT28: =-Op!#REF! ->  | BU28: =-Op!#REF! ->  | BV28: =-Op!#REF! ->  | BW28: =-Op!#REF! ->  | BX28: =-Op!#REF! ->  | BY28: =-Op!#REF! ->  | BZ28: =-Op!#REF! ->  | CA28: =-Op!#REF! ->  | CB28: =-Op!#REF! ->  | CC28: =-Op!#REF! ->  | CD28: =-Op!#REF! ->  | CE28: =-Op!#REF! ->  | CF28: =-Op!#REF! ->  | CG28: =-Op!#REF! ->  | CH28: =-Op!#REF! ->  | CI28: =-Op!#REF! ->  | CJ28: =-Op!#REF! ->  | CK28: =-Op!#REF! ->  | CL28: =-Op!#REF! ->  | CM28: =-Op!#REF! ->  | CN28: =-Op!#REF! -> 
D29: =+Op!#REF! ->  | E29: € | J29: =-Op!#REF! ->  | K29: =-Op!#REF! ->  | L29: =-Op!#REF! ->  | M29: =-Op!#REF! ->  | N29: =-Op!#REF! ->  | O29: =-Op!#REF! ->  | P29: =-Op!#REF! ->  | Q29: =-Op!#REF! ->  | R29: =-Op!#REF! ->  | S29: =-Op!#REF! ->  | T29: =-Op!#REF! ->  | U29: =-Op!#REF! ->  | V29: =-Op!#REF! ->  | W29: =-Op!#REF! ->  | X29: =-Op!#REF! ->  | Y29: =-Op!#REF! ->  | Z29: =-Op!#REF! ->  | AA29: =-Op!#REF! ->  | AB29: =-Op!#REF! ->  | AC29: =-Op!#REF! ->  | AD29: =-Op!#REF! ->  | AE29: =-Op!#REF! ->  | AF29: =-Op!#REF! ->  | AG29: =-Op!#REF! ->  | AH29: =-Op!#REF! ->  | AI29: =-Op!#REF! ->  | AJ29: =-Op!#REF! ->  | AK29: =-Op!#REF! ->  | AL29: =-Op!#REF! ->  | AM29: =-Op!#REF! ->  | AN29: =-Op!#REF! ->  | AO29: =-Op!#REF! ->  | AP29: =-Op!#REF! ->  | AQ29: =-Op!#REF! ->  | AR29: =-Op!#REF! ->  | AS29: =-Op!#REF! ->  | AT29: =-Op!#REF! ->  | AU29: =-Op!#REF! ->  | AV29: =-Op!#REF! ->  | AW29: =-Op!#REF! ->  | AX29: =-Op!#REF! ->  | AY29: =-Op!#REF! ->  | AZ29: =-Op!#REF! ->  | BA29: =-Op!#REF! ->  | BB29: =-Op!#REF! ->  | BC29: =-Op!#REF! ->  | BD29: =-Op!#REF! ->  | BE29: =-Op!#REF! ->  | BF29: =-Op!#REF! ->  | BG29: =-Op!#REF! ->  | BH29: =-Op!#REF! ->  | BI29: =-Op!#REF! ->  | BJ29: =-Op!#REF! ->  | BK29: =-Op!#REF! ->  | BL29: =-Op!#REF! ->  | BM29: =-Op!#REF! ->  | BN29: =-Op!#REF! ->  | BO29: =-Op!#REF! ->  | BP29: =-Op!#REF! ->  | BQ29: =-Op!#REF! ->  | BR29: =-Op!#REF! ->  | BS29: =-Op!#REF! ->  | BT29: =-Op!#REF! ->  | BU29: =-Op!#REF! ->  | BV29: =-Op!#REF! ->  | BW29: =-Op!#REF! ->  | BX29: =-Op!#REF! ->  | BY29: =-Op!#REF! ->  | BZ29: =-Op!#REF! ->  | CA29: =-Op!#REF! ->  | CB29: =-Op!#REF! ->  | CC29: =-Op!#REF! ->  | CD29: =-Op!#REF! ->  | CE29: =-Op!#REF! ->  | CF29: =-Op!#REF! ->  | CG29: =-Op!#REF! ->  | CH29: =-Op!#REF! ->  | CI29: =-Op!#REF! ->  | CJ29: =-Op!#REF! ->  | CK29: =-Op!#REF! ->  | CL29: =-Op!#REF! ->  | CM29: =-Op!#REF! ->  | CN29: =-Op!#REF! -> 
D30: Costi fotovoltaico | E30: € | J30: =-Op!#REF! ->  | K30: =-Op!#REF! ->  | L30: =-Op!#REF! ->  | M30: =-Op!#REF! ->  | N30: =-Op!#REF! ->  | O30: =-Op!#REF! ->  | P30: =-Op!#REF! ->  | Q30: =-Op!#REF! ->  | R30: =-Op!#REF! ->  | S30: =-Op!#REF! ->  | T30: =-Op!#REF! ->  | U30: =-Op!#REF! ->  | V30: =-Op!#REF! ->  | W30: =-Op!#REF! ->  | X30: =-Op!#REF! ->  | Y30: =-Op!#REF! ->  | Z30: =-Op!#REF! ->  | AA30: =-Op!#REF! ->  | AB30: =-Op!#REF! ->  | AC30: =-Op!#REF! ->  | AD30: =-Op!#REF! ->  | AE30: =-Op!#REF! ->  | AF30: =-Op!#REF! ->  | AG30: =-Op!#REF! ->  | AH30: =-Op!#REF! ->  | AI30: =-Op!#REF! ->  | AJ30: =-Op!#REF! ->  | AK30: =-Op!#REF! ->  | AL30: =-Op!#REF! ->  | AM30: =-Op!#REF! ->  | AN30: =-Op!#REF! ->  | AO30: =-Op!#REF! ->  | AP30: =-Op!#REF! ->  | AQ30: =-Op!#REF! ->  | AR30: =-Op!#REF! ->  | AS30: =-Op!#REF! ->  | AT30: =-Op!#REF! ->  | AU30: =-Op!#REF! ->  | AV30: =-Op!#REF! ->  | AW30: =-Op!#REF! ->  | AX30: =-Op!#REF! ->  | AY30: =-Op!#REF! ->  | AZ30: =-Op!#REF! ->  | BA30: =-Op!#REF! ->  | BB30: =-Op!#REF! ->  | BC30: =-Op!#REF! ->  | BD30: =-Op!#REF! ->  | BE30: =-Op!#REF! ->  | BF30: =-Op!#REF! ->  | BG30: =-Op!#REF! ->  | BH30: =-Op!#REF! ->  | BI30: =-Op!#REF! ->  | BJ30: =-Op!#REF! ->  | BK30: =-Op!#REF! ->  | BL30: =-Op!#REF! ->  | BM30: =-Op!#REF! ->  | BN30: =-Op!#REF! ->  | BO30: =-Op!#REF! ->  | BP30: =-Op!#REF! ->  | BQ30: =-Op!#REF! ->  | BR30: =-Op!#REF! ->  | BS30: =-Op!#REF! ->  | BT30: =-Op!#REF! ->  | BU30: =-Op!#REF! ->  | BV30: =-Op!#REF! ->  | BW30: =-Op!#REF! ->  | BX30: =-Op!#REF! ->  | BY30: =-Op!#REF! ->  | BZ30: =-Op!#REF! ->  | CA30: =-Op!#REF! ->  | CB30: =-Op!#REF! ->  | CC30: =-Op!#REF! ->  | CD30: =-Op!#REF! ->  | CE30: =-Op!#REF! ->  | CF30: =-Op!#REF! ->  | CG30: =-Op!#REF! ->  | CH30: =-Op!#REF! ->  | CI30: =-Op!#REF! ->  | CJ30: =-Op!#REF! ->  | CK30: =-Op!#REF! ->  | CL30: =-Op!#REF! ->  | CM30: =-Op!#REF! ->  | CN30: =-Op!#REF! -> 
D31: Totale costi | E31: € | J31: =+SUM(J24:J30) ->  | AP31: =+SUM(AP24:AP30) ->  | BV31: =+SUM(BV24:BV30) -> 
D33: EBITDA | E33: € | H33: =SUM(J33:CN33) ->  | J33: =J22+J31 ->  | BV33: =BV22+BV31 -> 
C34: =+SUM(J34:CN34) ->  | J34: =+ROUND(J33-Op!#REF!,2) ->  | K34: =+ROUND(K33-Op!#REF!,2) ->  | L34: =+ROUND(L33-Op!#REF!,2) ->  | M34: =+ROUND(M33-Op!#REF!,2) ->  | N34: =+ROUND(N33-Op!#REF!,2) ->  | O34: =+ROUND(O33-Op!#REF!,2) ->  | P34: =+ROUND(P33-Op!#REF!,2) ->  | Q34: =+ROUND(Q33-Op!J98,2) ->  | R34: =+ROUND(R33-Op!K98,2) ->  | S34: =+ROUND(S33-Op!L98,2) ->  | T34: =+ROUND(T33-Op!M98,2) ->  | U34: =+ROUND(U33-Op!N98,2) ->  | V34: =+ROUND(V33-Op!O98,2) ->  | W34: =+ROUND(W33-Op!P98,2) ->  | X34: =+ROUND(X33-Op!Q98,2) ->  | Y34: =+ROUND(Y33-Op!R98,2) ->  | Z34: =+ROUND(Z33-Op!S98,2) ->  | AA34: =+ROUND(AA33-Op!T98,2) ->  | AB34: =+ROUND(AB33-Op!U98,2) ->  | AC34: =+ROUND(AC33-Op!V98,2) ->  | AD34: =+ROUND(AD33-Op!W98,2) ->  | AE34: =+ROUND(AE33-Op!X98,2) ->  | AF34: =+ROUND(AF33-Op!Y98,2) ->  | AG34: =+ROUND(AG33-Op!Z98,2) ->  | AH34: =+ROUND(AH33-Op!#REF!,2) ->  | AI34: =+ROUND(AI33-Op!#REF!,2) ->  | AJ34: =+ROUND(AJ33-Op!#REF!,2) ->  | AK34: =+ROUND(AK33-Op!#REF!,2) ->  | AL34: =+ROUND(AL33-Op!#REF!,2) ->  | AM34: =+ROUND(AM33-Op!#REF!,2) ->  | AN34: =+ROUND(AN33-Op!#REF!,2) ->  | AO34: =+ROUND(AO33-Op!#REF!,2) ->  | AP34: =+ROUND(AP33-Op!#REF!,2) ->  | AQ34: =+ROUND(AQ33-Op!#REF!,2) ->  | AR34: =+ROUND(AR33-Op!#REF!,2) ->  | AS34: =+ROUND(AS33-Op!#REF!,2) ->  | AT34: =+ROUND(AT33-Op!#REF!,2) ->  | AU34: =+ROUND(AU33-Op!#REF!,2) ->  | AV34: =+ROUND(AV33-Op!#REF!,2) ->  | AW34: =+ROUND(AW33-Op!#REF!,2) ->  | AX34: =+ROUND(AX33-Op!#REF!,2) ->  | AY34: =+ROUND(AY33-Op!#REF!,2) ->  | AZ34: =+ROUND(AZ33-Op!#REF!,2) ->  | BA34: =+ROUND(BA33-Op!#REF!,2) ->  | BB34: =+ROUND(BB33-Op!#REF!,2) ->  | BC34: =+ROUND(BC33-Op!#REF!,2) ->  | BD34: =+ROUND(BD33-Op!#REF!,2) ->  | BE34: =+ROUND(BE33-Op!#REF!,2) ->  | BF34: =+ROUND(BF33-Op!#REF!,2) ->  | BG34: =+ROUND(BG33-Op!#REF!,2) ->  | BH34: =+ROUND(BH33-Op!#REF!,2) ->  | BI34: =+ROUND(BI33-Op!#REF!,2) ->  | BJ34: =+ROUND(BJ33-Op!#REF!,2) ->  | BK34: =+ROUND(BK33-Op!#REF!,2) ->  | BL34: =+ROUND(BL33-Op!#REF!,2) ->  | BM34: =+ROUND(BM33-Op!#REF!,2) ->  | BN34: =+ROUND(BN33-Op!#REF!,2) ->  | BO34: =+ROUND(BO33-Op!#REF!,2) ->  | BP34: =+ROUND(BP33-Op!#REF!,2) ->  | BQ34: =+ROUND(BQ33-Op!#REF!,2) ->  | BR34: =+ROUND(BR33-Op!#REF!,2) ->  | BS34: =+ROUND(BS33-Op!#REF!,2) ->  | BT34: =+ROUND(BT33-Op!#REF!,2) ->  | BU34: =+ROUND(BU33-Op!#REF!,2) ->  | BV34: =+ROUND(BV33-Op!#REF!,2) ->  | BW34: =+ROUND(BW33-Op!#REF!,2) ->  | BX34: =+ROUND(BX33-Op!#REF!,2) ->  | BY34: =+ROUND(BY33-Op!#REF!,2) ->  | BZ34: =+ROUND(BZ33-Op!#REF!,2) ->  | CA34: =+ROUND(CA33-Op!#REF!,2) ->  | CB34: =+ROUND(CB33-Op!#REF!,2) ->  | CC34: =+ROUND(CC33-Op!#REF!,2) ->  | CD34: =+ROUND(CD33-Op!#REF!,2) ->  | CE34: =+ROUND(CE33-Op!#REF!,2) ->  | CF34: =+ROUND(CF33-Op!#REF!,2) ->  | CG34: =+ROUND(CG33-Op!#REF!,2) ->  | CH34: =+ROUND(CH33-Op!#REF!,2) ->  | CI34: =+ROUND(CI33-Op!#REF!,2) ->  | CJ34: =+ROUND(CJ33-Op!#REF!,2) ->  | CK34: =+ROUND(CK33-Op!#REF!,2) ->  | CL34: =+ROUND(CL33-Op!#REF!,2) ->  | CM34: =+ROUND(CM33-Op!#REF!,2) ->  | CN34: =+ROUND(CN33-Op!#REF!,2) -> 
D35: Ammortamento | E35: € | H35: =SUM(J35:CP35) ->  | J35: =+#REF! ->  | K35: =+'T&A'!K107+'T&A'!K115 -> -14929.29543 | L35: =+'T&A'!L107+'T&A'!L115 -> -14929.29543 | M35: =+'T&A'!M107+'T&A'!M115 -> -14929.29543 | N35: =+'T&A'!N107+'T&A'!N115 -> -14929.29543 | O35: =+'T&A'!O107+'T&A'!O115 -> -14929.29543 | P35: =+'T&A'!P107+'T&A'!P115 -> -14929.29543 | Q35: =+'T&A'!Q107+'T&A'!Q115 -> -14929.29543 | R35: =+'T&A'!R107+'T&A'!R115 -> -14929.29543 | S35: =+'T&A'!S107+'T&A'!S115 -> -14929.29543 | T35: =+'T&A'!T107+'T&A'!T115 -> -14929.29543 | U35: =+'T&A'!U107+'T&A'!U115 -> -14929.29543 | V35: =+'T&A'!V107+'T&A'!V115 -> -14929.29543 | W35: =+'T&A'!W107+'T&A'!W115 -> -14929.29543 | X35: =+'T&A'!X107+'T&A'!X115 -> -14929.29543 | Y35: =+'T&A'!Y107+'T&A'!Y115 -> -14929.29543 | Z35: =+'T&A'!Z107+'T&A'!Z115 -> -14929.29543 | AA35: =+'T&A'!#REF!+'T&A'!#REF! ->  | AB35: =+'T&A'!#REF!+'T&A'!#REF! ->  | AC35: =+'T&A'!#REF!+'T&A'!#REF! ->  | AD35: =+'T&A'!#REF!+'T&A'!#REF! ->  | AE35: =+'T&A'!#REF!+'T&A'!#REF! ->  | AF35: =+'T&A'!#REF!+'T&A'!#REF! ->  | AG35: =+'T&A'!#REF!+'T&A'!#REF! ->  | AH35: =+'T&A'!#REF!+'T&A'!#REF! ->  | AI35: =+'T&A'!#REF!+'T&A'!#REF! ->  | AJ35: =+'T&A'!#REF!+'T&A'!#REF! ->  | AK35: =+'T&A'!#REF!+'T&A'!#REF! ->  | AL35: =+'T&A'!#REF!+'T&A'!#REF! ->  | AM35: =+'T&A'!#REF!+'T&A'!#REF! ->  | AN35: =+'T&A'!#REF!+'T&A'!#REF! ->  | AO35: =+'T&A'!#REF!+'T&A'!#REF! ->  | AP35: =+'T&A'!#REF!+'T&A'!#REF! ->  | AQ35: =+'T&A'!#REF!+'T&A'!#REF! ->  | AR35: =+'T&A'!#REF!+'T&A'!#REF! ->  | AS35: =+'T&A'!#REF!+'T&A'!#REF! ->  | AT35: =+'T&A'!#REF!+'T&A'!#REF! ->  | AU35: =+'T&A'!#REF!+'T&A'!#REF! ->  | AV35: =+'T&A'!#REF!+'T&A'!#REF! ->  | AW35: =+'T&A'!#REF!+'T&A'!#REF! ->  | AX35: =+'T&A'!#REF!+'T&A'!#REF! ->  | AY35: =+'T&A'!#REF!+'T&A'!#REF! ->  | AZ35: =+'T&A'!#REF!+'T&A'!#REF! ->  | BA35: =+'T&A'!#REF!+'T&A'!#REF! ->  | BB35: =+'T&A'!#REF!+'T&A'!#REF! ->  | BC35: =+'T&A'!#REF!+'T&A'!#REF! ->  | BD35: =+'T&A'!#REF!+'T&A'!#REF! ->  | BE35: =+'T&A'!#REF!+'T&A'!#REF! ->  | BF35: =+'T&A'!#REF!+'T&A'!#REF! ->  | BG35: =+'T&A'!#REF!+'T&A'!#REF! ->  | BH35: =+'T&A'!#REF!+'T&A'!#REF! ->  | BI35: =+'T&A'!#REF!+'T&A'!#REF! ->  | BJ35: =+'T&A'!#REF!+'T&A'!#REF! ->  | BK35: =+'T&A'!#REF!+'T&A'!#REF! ->  | BL35: =+'T&A'!#REF!+'T&A'!#REF! ->  | BM35: =+'T&A'!#REF!+'T&A'!#REF! ->  | BN35: =+'T&A'!#REF!+'T&A'!#REF! ->  | BO35: =+'T&A'!#REF!+'T&A'!#REF! ->  | BP35: =+'T&A'!#REF!+'T&A'!#REF! ->  | BQ35: =+'T&A'!#REF!+'T&A'!#REF! ->  | BR35: =+'T&A'!#REF!+'T&A'!#REF! ->  | BS35: =+'T&A'!#REF!+'T&A'!#REF! ->  | BT35: =+'T&A'!#REF!+'T&A'!#REF! ->  | BU35: =+'T&A'!#REF!+'T&A'!#REF! ->  | BV35: =+'T&A'!#REF!+'T&A'!#REF! ->  | BW35: =+'T&A'!#REF!+'T&A'!#REF! ->  | BX35: =+'T&A'!#REF!+'T&A'!#REF! ->  | BY35: =+'T&A'!#REF!+'T&A'!#REF! ->  | BZ35: =+'T&A'!#REF!+'T&A'!#REF! ->  | CA35: =+'T&A'!#REF!+'T&A'!#REF! ->  | CB35: =+'T&A'!#REF!+'T&A'!#REF! ->  | CC35: =+'T&A'!#REF!+'T&A'!#REF! ->  | CD35: =+'T&A'!#REF!+'T&A'!#REF! ->  | CE35: =+'T&A'!#REF!+'T&A'!#REF! ->  | CF35: =+'T&A'!#REF!+'T&A'!#REF! ->  | CG35: =+'T&A'!#REF!+'T&A'!#REF! ->  | CH35: =+'T&A'!#REF!+'T&A'!#REF! ->  | CI35: =+'T&A'!#REF!+'T&A'!#REF! ->  | CJ35: =+'T&A'!#REF!+'T&A'!#REF! ->  | CK35: =+'T&A'!#REF!+'T&A'!#REF! ->  | CL35: =+'T&A'!AA107+'T&A'!AA115 -> -14929.29543 | CM35: =+'T&A'!AB107+'T&A'!AB115 -> -14929.29543 | CN35: =+'T&A'!AC107+'T&A'!AC115 -> -14929.29543
D36: EBIT | E36: € | H36: =SUM(J36:CP36) ->  | J36: =+J33+J35 ->  | T36: =+T33+T35 ->  | U36: =+U33+U35 ->  | CG36: =+CG33+CG35 -> 
D38: Oneri finanziari | E38: € | H38: =SUM(J38:CP38) ->  | J38: =+Fin!J61+Fin!J38 -> 0 | K38: =+Fin!K61+Fin!K38 -> 0 | L38: =+Fin!L61+Fin!L38 -> 0 | M38: =+Fin!M61+Fin!M38 -> 0 | N38: =+Fin!N61+Fin!N38 -> 0 | O38: =+Fin!O61+Fin!O38 -> 0 | P38: =+Fin!P61+Fin!P38 -> 0 | Q38: =+Fin!Q61+Fin!Q38 -> 0 | R38: =+Fin!R61+Fin!R38 -> 0 | S38: =+Fin!S61+Fin!S38 -> 0 | T38: =+Fin!T61+Fin!T38 -> 0 | U38: =+Fin!U61+Fin!U38 -> 0 | V38: =+Fin!V61+Fin!V38 -> 0 | W38: =+Fin!W61+Fin!W38 -> 0 | X38: =+Fin!X61+Fin!X38 -> 0 | Y38: =+Fin!Y61+Fin!Y38 -> 0 | Z38: =+Fin!Z61+Fin!Z38 -> 0 | AA38: =+Fin!#REF!+Fin!#REF! ->  | AB38: =+Fin!#REF!+Fin!#REF! ->  | AC38: =+Fin!#REF!+Fin!#REF! ->  | AD38: =+Fin!#REF!+Fin!#REF! ->  | AE38: =+Fin!#REF!+Fin!#REF! ->  | AF38: =+Fin!#REF!+Fin!#REF! ->  | AG38: =+Fin!#REF!+Fin!#REF! ->  | AH38: =+Fin!#REF!+Fin!#REF! ->  | AI38: =+Fin!#REF!+Fin!#REF! ->  | AJ38: =+Fin!#REF!+Fin!#REF! ->  | AK38: =+Fin!#REF!+Fin!#REF! ->  | AL38: =+Fin!#REF!+Fin!#REF! ->  | AM38: =+Fin!#REF!+Fin!#REF! ->  | AN38: =+Fin!#REF!+Fin!#REF! ->  | AO38: =+Fin!#REF!+Fin!#REF! ->  | AP38: =+Fin!#REF!+Fin!#REF! ->  | AQ38: =+Fin!#REF!+Fin!#REF! ->  | AR38: =+Fin!#REF!+Fin!#REF! ->  | AS38: =+Fin!#REF!+Fin!#REF! ->  | AT38: =+Fin!#REF!+Fin!#REF! ->  | AU38: =+Fin!#REF!+Fin!#REF! ->  | AV38: =+Fin!#REF!+Fin!#REF! ->  | AW38: =+Fin!#REF!+Fin!#REF! ->  | AX38: =+Fin!#REF!+Fin!#REF! ->  | AY38: =+Fin!#REF!+Fin!#REF! ->  | AZ38: =+Fin!#REF!+Fin!#REF! ->  | BA38: =+Fin!#REF!+Fin!#REF! ->  | BB38: =+Fin!#REF!+Fin!#REF! ->  | BC38: =+Fin!#REF!+Fin!#REF! ->  | BD38: =+Fin!#REF!+Fin!#REF! ->  | BE38: =+Fin!#REF!+Fin!#REF! ->  | BF38: =+Fin!#REF!+Fin!#REF! ->  | BG38: =+Fin!#REF!+Fin!#REF! ->  | BH38: =+Fin!#REF!+Fin!#REF! ->  | BI38: =+Fin!#REF!+Fin!#REF! ->  | BJ38: =+Fin!#REF!+Fin!#REF! ->  | BK38: =+Fin!#REF!+Fin!#REF! ->  | BL38: =+Fin!#REF!+Fin!#REF! ->  | BM38: =+Fin!#REF!+Fin!#REF! ->  | BN38: =+Fin!#REF!+Fin!#REF! ->  | BO38: =+Fin!#REF!+Fin!#REF! ->  | BP38: =+Fin!#REF!+Fin!#REF! ->  | BQ38: =+Fin!#REF!+Fin!#REF! ->  | BR38: =+Fin!#REF!+Fin!#REF! ->  | BS38: =+Fin!#REF!+Fin!#REF! ->  | BT38: =+Fin!#REF!+Fin!#REF! ->  | BU38: =+Fin!#REF!+Fin!#REF! ->  | BV38: =+Fin!#REF!+Fin!#REF! ->  | BW38: =+Fin!#REF!+Fin!#REF! ->  | BX38: =+Fin!#REF!+Fin!#REF! ->  | BY38: =+Fin!#REF!+Fin!#REF! ->  | BZ38: =+Fin!#REF!+Fin!#REF! ->  | CA38: =+Fin!#REF!+Fin!#REF! ->  | CB38: =+Fin!#REF!+Fin!#REF! ->  | CC38: =+Fin!#REF!+Fin!#REF! ->  | CD38: =+Fin!#REF!+Fin!#REF! ->  | CE38: =+Fin!#REF!+Fin!#REF! ->  | CF38: =+Fin!#REF!+Fin!#REF! ->  | CG38: =+Fin!#REF!+Fin!#REF! ->  | CH38: =+Fin!#REF!+Fin!#REF! ->  | CI38: =+Fin!#REF!+Fin!#REF! ->  | CJ38: =+Fin!#REF!+Fin!#REF! ->  | CK38: =+Fin!#REF!+Fin!#REF! ->  | CL38: =+Fin!#REF!+Fin!#REF! ->  | CM38: =+Fin!#REF!+Fin!#REF! ->  | CN38: =+Fin!#REF!+Fin!#REF! -> 
D39: Commissioni di primo utilizzo | E39: € | J39: =-Fin!J55 -> 0 | K39: =-Fin!K55 -> 0 | L39: =-Fin!L55 -> 0 | M39: =-Fin!M55 -> 0 | N39: =-Fin!N55 -> 0 | O39: =-Fin!O55 -> 0 | P39: =-Fin!P55 -> 0 | Q39: =-Fin!Q55 -> 0 | R39: =-Fin!R55 -> 0 | S39: =-Fin!S55 -> 0 | T39: =-Fin!T55 -> 0 | U39: =-Fin!U55 -> 0 | V39: =-Fin!V55 -> 0 | W39: =-Fin!W55 -> 0 | X39: =-Fin!X55 -> 0 | Y39: =-Fin!Y55 -> 0 | Z39: =-Fin!Z55 -> 0 | AA39: =-Fin!#REF! ->  | AB39: =-Fin!#REF! ->  | AC39: =-Fin!#REF! ->  | AD39: =-Fin!#REF! ->  | AE39: =-Fin!#REF! ->  | AF39: =-Fin!#REF! ->  | AG39: =-Fin!#REF! ->  | AH39: =-Fin!#REF! ->  | AI39: =-Fin!#REF! ->  | AJ39: =-Fin!#REF! ->  | AK39: =-Fin!#REF! ->  | AL39: =-Fin!#REF! ->  | AM39: =-Fin!#REF! ->  | AN39: =-Fin!#REF! ->  | AO39: =-Fin!#REF! ->  | AP39: =-Fin!#REF! ->  | AQ39: =-Fin!#REF! ->  | AR39: =-Fin!#REF! ->  | AS39: =-Fin!#REF! ->  | AT39: =-Fin!#REF! ->  | AU39: =-Fin!#REF! ->  | AV39: =-Fin!#REF! ->  | AW39: =-Fin!#REF! ->  | AX39: =-Fin!#REF! ->  | AY39: =-Fin!#REF! ->  | AZ39: =-Fin!#REF! ->  | BA39: =-Fin!#REF! ->  | BB39: =-Fin!#REF! ->  | BC39: =-Fin!#REF! ->  | BD39: =-Fin!#REF! ->  | BE39: =-Fin!#REF! ->  | BF39: =-Fin!#REF! ->  | BG39: =-Fin!#REF! ->  | BH39: =-Fin!#REF! ->  | BI39: =-Fin!#REF! ->  | BJ39: =-Fin!#REF! ->  | BK39: =-Fin!#REF! ->  | BL39: =-Fin!#REF! ->  | BM39: =-Fin!#REF! ->  | BN39: =-Fin!#REF! ->  | BO39: =-Fin!#REF! ->  | BP39: =-Fin!#REF! ->  | BQ39: =-Fin!#REF! ->  | BR39: =-Fin!#REF! ->  | BS39: =-Fin!#REF! ->  | BT39: =-Fin!#REF! ->  | BU39: =-Fin!#REF! ->  | BV39: =-Fin!#REF! ->  | BW39: =-Fin!#REF! ->  | BX39: =-Fin!#REF! ->  | BY39: =-Fin!#REF! ->  | BZ39: =-Fin!#REF! ->  | CA39: =-Fin!#REF! ->  | CB39: =-Fin!#REF! ->  | CC39: =-Fin!#REF! ->  | CD39: =-Fin!#REF! ->  | CE39: =-Fin!#REF! ->  | CF39: =-Fin!#REF! ->  | CG39: =-Fin!#REF! ->  | CH39: =-Fin!#REF! ->  | CI39: =-Fin!#REF! ->  | CJ39: =-Fin!#REF! ->  | CK39: =-Fin!#REF! ->  | CL39: =-Fin!#REF! ->  | CM39: =-Fin!#REF! ->  | CN39: =-Fin!#REF! -> 
D40: Commitment fee | E40: € | J40: =-Fin!J56 -> 0 | K40: =-Fin!K56 -> 0 | L40: =-Fin!L56 -> 0 | M40: =-Fin!M56 -> 0 | N40: =-Fin!N56 -> 0 | O40: =-Fin!O56 -> 0 | P40: =-Fin!P56 -> 0 | Q40: =-Fin!Q56 -> 0 | R40: =-Fin!R56 -> 0 | S40: =-Fin!S56 -> 0 | T40: =-Fin!T56 -> 0 | U40: =-Fin!U56 -> 0 | V40: =-Fin!V56 -> 0 | W40: =-Fin!W56 -> 0 | X40: =-Fin!X56 -> 0 | Y40: =-Fin!Y56 -> 0 | Z40: =-Fin!Z56 -> 0 | AA40: =-Fin!#REF! ->  | AB40: =-Fin!#REF! ->  | AC40: =-Fin!#REF! ->  | AD40: =-Fin!#REF! ->  | AE40: =-Fin!#REF! ->  | AF40: =-Fin!#REF! ->  | AG40: =-Fin!#REF! ->  | AH40: =-Fin!#REF! ->  | AI40: =-Fin!#REF! ->  | AJ40: =-Fin!#REF! ->  | AK40: =-Fin!#REF! ->  | AL40: =-Fin!#REF! ->  | AM40: =-Fin!#REF! ->  | AN40: =-Fin!#REF! ->  | AO40: =-Fin!#REF! ->  | AP40: =-Fin!#REF! ->  | AQ40: =-Fin!#REF! ->  | AR40: =-Fin!#REF! ->  | AS40: =-Fin!#REF! ->  | AT40: =-Fin!#REF! ->  | AU40: =-Fin!#REF! ->  | AV40: =-Fin!#REF! ->  | AW40: =-Fin!#REF! ->  | AX40: =-Fin!#REF! ->  | AY40: =-Fin!#REF! ->  | AZ40: =-Fin!#REF! ->  | BA40: =-Fin!#REF! ->  | BB40: =-Fin!#REF! ->  | BC40: =-Fin!#REF! ->  | BD40: =-Fin!#REF! ->  | BE40: =-Fin!#REF! ->  | BF40: =-Fin!#REF! ->  | BG40: =-Fin!#REF! ->  | BH40: =-Fin!#REF! ->  | BI40: =-Fin!#REF! ->  | BJ40: =-Fin!#REF! ->  | BK40: =-Fin!#REF! ->  | BL40: =-Fin!#REF! ->  | BM40: =-Fin!#REF! ->  | BN40: =-Fin!#REF! ->  | BO40: =-Fin!#REF! ->  | BP40: =-Fin!#REF! ->  | BQ40: =-Fin!#REF! ->  | BR40: =-Fin!#REF! ->  | BS40: =-Fin!#REF! ->  | BT40: =-Fin!#REF! ->  | BU40: =-Fin!#REF! ->  | BV40: =-Fin!#REF! ->  | BW40: =-Fin!#REF! ->  | BX40: =-Fin!#REF! ->  | BY40: =-Fin!#REF! ->  | BZ40: =-Fin!#REF! ->  | CA40: =-Fin!#REF! ->  | CB40: =-Fin!#REF! ->  | CC40: =-Fin!#REF! ->  | CD40: =-Fin!#REF! ->  | CE40: =-Fin!#REF! ->  | CF40: =-Fin!#REF! ->  | CG40: =-Fin!#REF! ->  | CH40: =-Fin!#REF! ->  | CI40: =-Fin!#REF! ->  | CJ40: =-Fin!#REF! ->  | CK40: =-Fin!#REF! ->  | CL40: =-Fin!#REF! ->  | CM40: =-Fin!#REF! ->  | CN40: =-Fin!#REF! -> 
D41: Imposta sostitutiva | E41: € | J41: =-Fin!J57 -> 0 | K41: =-Fin!K57 -> 0 | L41: =-Fin!L57 -> 0 | M41: =-Fin!M57 -> 0 | N41: =-Fin!N57 -> 0 | O41: =-Fin!O57 -> 0 | P41: =-Fin!P57 -> 0 | Q41: =-Fin!Q57 -> 0 | R41: =-Fin!R57 -> 0 | S41: =-Fin!S57 -> 0 | T41: =-Fin!T57 -> 0 | U41: =-Fin!U57 -> 0 | V41: =-Fin!V57 -> 0 | W41: =-Fin!W57 -> 0 | X41: =-Fin!X57 -> 0 | Y41: =-Fin!Y57 -> 0 | Z41: =-Fin!Z57 -> 0 | AA41: =-Fin!#REF! ->  | AB41: =-Fin!#REF! ->  | AC41: =-Fin!#REF! ->  | AD41: =-Fin!#REF! ->  | AE41: =-Fin!#REF! ->  | AF41: =-Fin!#REF! ->  | AG41: =-Fin!#REF! ->  | AH41: =-Fin!#REF! ->  | AI41: =-Fin!#REF! ->  | AJ41: =-Fin!#REF! ->  | AK41: =-Fin!#REF! ->  | AL41: =-Fin!#REF! ->  | AM41: =-Fin!#REF! ->  | AN41: =-Fin!#REF! ->  | AO41: =-Fin!#REF! ->  | AP41: =-Fin!#REF! ->  | AQ41: =-Fin!#REF! ->  | AR41: =-Fin!#REF! ->  | AS41: =-Fin!#REF! ->  | AT41: =-Fin!#REF! ->  | AU41: =-Fin!#REF! ->  | AV41: =-Fin!#REF! ->  | AW41: =-Fin!#REF! ->  | AX41: =-Fin!#REF! ->  | AY41: =-Fin!#REF! ->  | AZ41: =-Fin!#REF! ->  | BA41: =-Fin!#REF! ->  | BB41: =-Fin!#REF! ->  | BC41: =-Fin!#REF! ->  | BD41: =-Fin!#REF! ->  | BE41: =-Fin!#REF! ->  | BF41: =-Fin!#REF! ->  | BG41: =-Fin!#REF! ->  | BH41: =-Fin!#REF! ->  | BI41: =-Fin!#REF! ->  | BJ41: =-Fin!#REF! ->  | BK41: =-Fin!#REF! ->  | BL41: =-Fin!#REF! ->  | BM41: =-Fin!#REF! ->  | BN41: =-Fin!#REF! ->  | BO41: =-Fin!#REF! ->  | BP41: =-Fin!#REF! ->  | BQ41: =-Fin!#REF! ->  | BR41: =-Fin!#REF! ->  | BS41: =-Fin!#REF! ->  | BT41: =-Fin!#REF! ->  | BU41: =-Fin!#REF! ->  | BV41: =-Fin!#REF! ->  | BW41: =-Fin!#REF! ->  | BX41: =-Fin!#REF! ->  | BY41: =-Fin!#REF! ->  | BZ41: =-Fin!#REF! ->  | CA41: =-Fin!#REF! ->  | CB41: =-Fin!#REF! ->  | CC41: =-Fin!#REF! ->  | CD41: =-Fin!#REF! ->  | CE41: =-Fin!#REF! ->  | CF41: =-Fin!#REF! ->  | CG41: =-Fin!#REF! ->  | CH41: =-Fin!#REF! ->  | CI41: =-Fin!#REF! ->  | CJ41: =-Fin!#REF! ->  | CK41: =-Fin!#REF! ->  | CL41: =-Fin!#REF! ->  | CM41: =-Fin!#REF! ->  | CN41: =-Fin!#REF! -> 
D42: Commissioni di agenzia | E42: € | J42: =-Fin!J58-Fin!J59 -> 0 | K42: =-Fin!K58-Fin!K59 -> 0 | L42: =-Fin!L58-Fin!L59 -> 0 | M42: =-Fin!M58-Fin!M59 -> 0 | N42: =-Fin!N58-Fin!N59 -> 0 | O42: =-Fin!O58-Fin!O59 -> 0 | P42: =-Fin!P58-Fin!P59 -> 0 | Q42: =-Fin!Q58-Fin!Q59 -> 0 | R42: =-Fin!R58-Fin!R59 -> 0 | S42: =-Fin!S58-Fin!S59 -> 0 | T42: =-Fin!T58-Fin!T59 -> 0 | U42: =-Fin!U58-Fin!U59 -> 0 | V42: =-Fin!V58-Fin!V59 -> 0 | W42: =-Fin!W58-Fin!W59 -> 0 | X42: =-Fin!X58-Fin!X59 -> 0 | Y42: =-Fin!Y58-Fin!Y59 -> 0 | Z42: =-Fin!Z58-Fin!Z59 -> 0 | AA42: =-Fin!#REF!-Fin!#REF! ->  | AB42: =-Fin!#REF!-Fin!#REF! ->  | AC42: =-Fin!#REF!-Fin!#REF! ->  | AD42: =-Fin!#REF!-Fin!#REF! ->  | AE42: =-Fin!#REF!-Fin!#REF! ->  | AF42: =-Fin!#REF!-Fin!#REF! ->  | AG42: =-Fin!#REF!-Fin!#REF! ->  | AH42: =-Fin!#REF!-Fin!#REF! ->  | AI42: =-Fin!#REF!-Fin!#REF! ->  | AJ42: =-Fin!#REF!-Fin!#REF! ->  | AK42: =-Fin!#REF!-Fin!#REF! ->  | AL42: =-Fin!#REF!-Fin!#REF! ->  | AM42: =-Fin!#REF!-Fin!#REF! ->  | AN42: =-Fin!#REF!-Fin!#REF! ->  | AO42: =-Fin!#REF!-Fin!#REF! ->  | AP42: =-Fin!#REF!-Fin!#REF! ->  | AQ42: =-Fin!#REF!-Fin!#REF! ->  | AR42: =-Fin!#REF!-Fin!#REF! ->  | AS42: =-Fin!#REF!-Fin!#REF! ->  | AT42: =-Fin!#REF!-Fin!#REF! ->  | AU42: =-Fin!#REF!-Fin!#REF! ->  | AV42: =-Fin!#REF!-Fin!#REF! ->  | AW42: =-Fin!#REF!-Fin!#REF! ->  | AX42: =-Fin!#REF!-Fin!#REF! ->  | AY42: =-Fin!#REF!-Fin!#REF! ->  | AZ42: =-Fin!#REF!-Fin!#REF! ->  | BA42: =-Fin!#REF!-Fin!#REF! ->  | BB42: =-Fin!#REF!-Fin!#REF! ->  | BC42: =-Fin!#REF!-Fin!#REF! ->  | BD42: =-Fin!#REF!-Fin!#REF! ->  | BE42: =-Fin!#REF!-Fin!#REF! ->  | BF42: =-Fin!#REF!-Fin!#REF! ->  | BG42: =-Fin!#REF!-Fin!#REF! ->  | BH42: =-Fin!#REF!-Fin!#REF! ->  | BI42: =-Fin!#REF!-Fin!#REF! ->  | BJ42: =-Fin!#REF!-Fin!#REF! ->  | BK42: =-Fin!#REF!-Fin!#REF! ->  | BL42: =-Fin!#REF!-Fin!#REF! ->  | BM42: =-Fin!#REF!-Fin!#REF! ->  | BN42: =-Fin!#REF!-Fin!#REF! ->  | BO42: =-Fin!#REF!-Fin!#REF! ->  | BP42: =-Fin!#REF!-Fin!#REF! ->  | BQ42: =-Fin!#REF!-Fin!#REF! ->  | BR42: =-Fin!#REF!-Fin!#REF! ->  | BS42: =-Fin!#REF!-Fin!#REF! ->  | BT42: =-Fin!#REF!-Fin!#REF! ->  | BU42: =-Fin!#REF!-Fin!#REF! ->  | BV42: =-Fin!#REF!-Fin!#REF! ->  | BW42: =-Fin!#REF!-Fin!#REF! ->  | BX42: =-Fin!#REF!-Fin!#REF! ->  | BY42: =-Fin!#REF!-Fin!#REF! ->  | BZ42: =-Fin!#REF!-Fin!#REF! ->  | CA42: =-Fin!#REF!-Fin!#REF! ->  | CB42: =-Fin!#REF!-Fin!#REF! ->  | CC42: =-Fin!#REF!-Fin!#REF! ->  | CD42: =-Fin!#REF!-Fin!#REF! ->  | CE42: =-Fin!#REF!-Fin!#REF! ->  | CF42: =-Fin!#REF!-Fin!#REF! ->  | CG42: =-Fin!#REF!-Fin!#REF! ->  | CH42: =-Fin!#REF!-Fin!#REF! ->  | CI42: =-Fin!#REF!-Fin!#REF! ->  | CJ42: =-Fin!#REF!-Fin!#REF! ->  | CK42: =-Fin!#REF!-Fin!#REF! ->  | CL42: =-Fin!#REF!-Fin!#REF! ->  | CM42: =-Fin!#REF!-Fin!#REF! ->  | CN42: =-Fin!#REF!-Fin!#REF! -> 
D43: EBT | E43: € | J43: =J36+SUM(J38:J42) ->  | AP43: =AP36+SUM(AP38:AP42) ->  | BO43: =BO36+SUM(BO38:BO42) -> 
D45: Imposte correnti | E45: € | H45: =SUM(J45:CP45) ->  | J45: =-'T&A'!J73 -> -277.6643648 | K45: =-'T&A'!K73 -> 0 | L45: =-'T&A'!L73 -> -3331.972378 | M45: =-'T&A'!M73 -> 0 | N45: =-'T&A'!N73 -> -3642.631895 | O45: =-'T&A'!O73 -> 0 | P45: =-'T&A'!P73 -> -3947.965329 | Q45: =-'T&A'!Q73 -> 0 | R45: =-'T&A'!R73 -> -4260.932099 | S45: =-'T&A'!S73 -> 0 | T45: =-'T&A'!T73 -> -4581.723038 | U45: =-'T&A'!U73 -> 0 | V45: =-'T&A'!V73 -> -4910.533751 | W45: =-'T&A'!W73 -> 0 | X45: =-'T&A'!X73 -> -5247.564732 | Y45: =-'T&A'!Y73 -> 0 | Z45: =-'T&A'!Z73 -> -5593.021487 | AA45: =-'T&A'!#REF! ->  | AB45: =-'T&A'!#REF! ->  | AC45: =-'T&A'!#REF! ->  | AD45: =-'T&A'!#REF! ->  | AE45: =-'T&A'!#REF! ->  | AF45: =-'T&A'!#REF! ->  | AG45: =-'T&A'!#REF! ->  | AH45: =-'T&A'!#REF! ->  | AI45: =-'T&A'!#REF! ->  | AJ45: =-'T&A'!#REF! ->  | AK45: =-'T&A'!#REF! ->  | AL45: =-'T&A'!#REF! ->  | AM45: =-'T&A'!#REF! ->  | AN45: =-'T&A'!#REF! ->  | AO45: =-'T&A'!#REF! ->  | AP45: =-'T&A'!#REF! ->  | AQ45: =-'T&A'!#REF! ->  | AR45: =-'T&A'!#REF! ->  | AS45: =-'T&A'!#REF! ->  | AT45: =-'T&A'!#REF! ->  | AU45: =-'T&A'!#REF! ->  | AV45: =-'T&A'!#REF! ->  | AW45: =-'T&A'!#REF! ->  | AX45: =-'T&A'!#REF! ->  | AY45: =-'T&A'!#REF! ->  | AZ45: =-'T&A'!#REF! ->  | BA45: =-'T&A'!#REF! ->  | BB45: =-'T&A'!#REF! ->  | BC45: =-'T&A'!#REF! ->  | BD45: =-'T&A'!#REF! ->  | BE45: =-'T&A'!#REF! ->  | BF45: =-'T&A'!#REF! ->  | BG45: =-'T&A'!#REF! ->  | BH45: =-'T&A'!#REF! ->  | BI45: =-'T&A'!#REF! ->  | BJ45: =-'T&A'!#REF! ->  | BK45: =-'T&A'!#REF! ->  | BL45: =-'T&A'!#REF! ->  | BM45: =-'T&A'!#REF! ->  | BN45: =-'T&A'!#REF! ->  | BO45: =-'T&A'!#REF! ->  | BP45: =-'T&A'!#REF! ->  | BQ45: =-'T&A'!#REF! ->  | BR45: =-'T&A'!#REF! ->  | BS45: =-'T&A'!#REF! ->  | BT45: =-'T&A'!#REF! ->  | BU45: =-'T&A'!#REF! ->  | BV45: =-'T&A'!#REF! ->  | BW45: =-'T&A'!#REF! ->  | BX45: =-'T&A'!#REF! ->  | BY45: =-'T&A'!#REF! ->  | BZ45: =-'T&A'!#REF! ->  | CA45: =-'T&A'!#REF! ->  | CB45: =-'T&A'!#REF! ->  | CC45: =-'T&A'!#REF! ->  | CD45: =-'T&A'!#REF! ->  | CE45: =-'T&A'!#REF! ->  | CF45: =-'T&A'!#REF! ->  | CG45: =-'T&A'!#REF! ->  | CH45: =-'T&A'!#REF! ->  | CI45: =-'T&A'!#REF! ->  | CJ45: =-'T&A'!#REF! ->  | CK45: =-'T&A'!#REF! ->  | CL45: =-'T&A'!AA73 -> 0 | CM45: =-'T&A'!AB73 -> -5947.114661 | CN45: =-'T&A'!AC73 -> 0
D46: Imposte anticipate/differite | E46: € | H46: =SUM(J46:CP46) ->  | J46: ='T&A'!J96 -> 0 | K46: ='T&A'!K96 -> 0 | L46: ='T&A'!L96 -> 0 | M46: ='T&A'!M96 -> 0 | N46: ='T&A'!N96 -> 0 | O46: ='T&A'!O96 -> 0 | P46: ='T&A'!P96 -> 0 | Q46: ='T&A'!Q96 -> 0 | R46: ='T&A'!R96 -> 0 | S46: ='T&A'!S96 -> 0 | T46: ='T&A'!T96 -> 0 | U46: ='T&A'!U96 -> 0 | V46: ='T&A'!V96 -> 0 | W46: ='T&A'!W96 -> 0 | X46: ='T&A'!X96 -> 0 | Y46: ='T&A'!Y96 -> 0 | Z46: ='T&A'!Z96 -> 0 | AA46: ='T&A'!#REF! ->  | AB46: ='T&A'!#REF! ->  | AC46: ='T&A'!#REF! ->  | AD46: ='T&A'!#REF! ->  | AE46: ='T&A'!#REF! ->  | AF46: ='T&A'!#REF! ->  | AG46: ='T&A'!#REF! ->  | AH46: ='T&A'!#REF! ->  | AI46: ='T&A'!#REF! ->  | AJ46: ='T&A'!#REF! ->  | AK46: ='T&A'!#REF! ->  | AL46: ='T&A'!#REF! ->  | AM46: ='T&A'!#REF! ->  | AN46: ='T&A'!#REF! ->  | AO46: ='T&A'!#REF! ->  | AP46: ='T&A'!#REF! ->  | AQ46: ='T&A'!#REF! ->  | AR46: ='T&A'!#REF! ->  | AS46: ='T&A'!#REF! ->  | AT46: ='T&A'!#REF! ->  | AU46: ='T&A'!#REF! ->  | AV46: ='T&A'!#REF! ->  | AW46: ='T&A'!#REF! ->  | AX46: ='T&A'!#REF! ->  | AY46: ='T&A'!#REF! ->  | AZ46: ='T&A'!#REF! ->  | BA46: ='T&A'!#REF! ->  | BB46: ='T&A'!#REF! ->  | BC46: ='T&A'!#REF! ->  | BD46: ='T&A'!#REF! ->  | BE46: ='T&A'!#REF! ->  | BF46: ='T&A'!#REF! ->  | BG46: ='T&A'!#REF! ->  | BH46: ='T&A'!#REF! ->  | BI46: ='T&A'!#REF! ->  | BJ46: ='T&A'!#REF! ->  | BK46: ='T&A'!#REF! ->  | BL46: ='T&A'!#REF! ->  | BM46: ='T&A'!#REF! ->  | BN46: ='T&A'!#REF! ->  | BO46: ='T&A'!#REF! ->  | BP46: ='T&A'!#REF! ->  | BQ46: ='T&A'!#REF! ->  | BR46: ='T&A'!#REF! ->  | BS46: ='T&A'!#REF! ->  | BT46: ='T&A'!#REF! ->  | BU46: ='T&A'!#REF! ->  | BV46: ='T&A'!#REF! ->  | BW46: ='T&A'!#REF! ->  | BX46: ='T&A'!#REF! ->  | BY46: ='T&A'!#REF! ->  | BZ46: ='T&A'!#REF! ->  | CA46: ='T&A'!#REF! ->  | CB46: ='T&A'!#REF! ->  | CC46: ='T&A'!#REF! ->  | CD46: ='T&A'!#REF! ->  | CE46: ='T&A'!#REF! ->  | CF46: ='T&A'!#REF! ->  | CG46: ='T&A'!#REF! ->  | CH46: ='T&A'!#REF! ->  | CI46: ='T&A'!#REF! ->  | CJ46: ='T&A'!#REF! ->  | CK46: ='T&A'!#REF! ->  | CL46: ='T&A'!AA96 -> 0 | CM46: ='T&A'!AB96 -> 0 | CN46: ='T&A'!AC96 -> 0
D47: Utile | E47: € | H47: =SUM(J47:CP47) ->  | J47: =SUM(J43:J46) ->  | K47: =SUM(K43:K46) ->  | BW47: =SUM(BW43:BW46) -> 
H50: Tot. | L50: 2020 | N50: 2021 | P50: 2022 | R50: 2023 | T50: 2024 | V50: 2025 | X50: 2026 | Z50: 2027 | AB50: 2028 | AD50: 2029 | AF50: 2030 | AH50: 2031 | AJ50: 2032 | AL50: 2033 | AN50: 2034 | AP50: 2035 | AR50: 2036
A52: =A17+1 -> 3 | D52: Stato patrimoniale | J52: =IF(J$13=1,"Actual","Piano") -> Piano | K52: =IF(K$13=1,"Actual","Piano") -> Piano | Y52: =IF(Y$13=1,"Actual","Piano") -> Piano | AT52: =IF(AT$13=1,"Actual","Piano") -> 
D54: Immobilizzazioni materiali | E54: € | I54: ='T&A'!I108 -> 301074.1246 | J54: =+'T&A'!J108 -> 298585.9086 | K54: =+'T&A'!K108 -> 283656.6132 | L54: =+'T&A'!L108 -> 268727.3178 | M54: =+'T&A'!M108 -> 253798.0224 | N54: =+'T&A'!N108 -> 238868.7269 | O54: =+'T&A'!O108 -> 223939.4315 | P54: =+'T&A'!P108 -> 209010.1361 | Q54: =+'T&A'!Q108 -> 194080.8406 | R54: =+'T&A'!R108 -> 179151.5452 | S54: =+'T&A'!S108 -> 164222.2498 | T54: =+'T&A'!T108 -> 149292.9543 | U54: =+'T&A'!U108 -> 134363.6589 | V54: =+'T&A'!V108 -> 119434.3635 | W54: =+'T&A'!W108 -> 104505.068 | X54: =+'T&A'!X108 -> 89575.7726 | Y54: =+'T&A'!Y108 -> 74646.47716 | Z54: =+'T&A'!Z108 -> 59717.18173 | AA54: =+'T&A'!#REF! ->  | AB54: =+'T&A'!#REF! ->  | AC54: =+'T&A'!#REF! ->  | AD54: =+'T&A'!#REF! ->  | AE54: =+'T&A'!#REF! ->  | AF54: =+'T&A'!#REF! ->  | AG54: =+'T&A'!#REF! ->  | AH54: =+'T&A'!#REF! ->  | AI54: =+'T&A'!#REF! ->  | AJ54: =+'T&A'!#REF! ->  | AK54: =+'T&A'!#REF! ->  | AL54: =+'T&A'!#REF! ->  | AM54: =+'T&A'!#REF! ->  | AN54: =+'T&A'!#REF! ->  | AO54: =+'T&A'!#REF! ->  | AP54: =+'T&A'!#REF! ->  | AQ54: =+'T&A'!#REF! ->  | AR54: =+'T&A'!#REF! ->  | AS54: =+'T&A'!#REF! ->  | AT54: =+'T&A'!#REF! ->  | AU54: =+'T&A'!#REF! ->  | AV54: =+'T&A'!#REF! ->  | AW54: =+'T&A'!#REF! ->  | AX54: =+'T&A'!#REF! ->  | AY54: =+'T&A'!#REF! ->  | AZ54: =+'T&A'!#REF! ->  | BA54: =+'T&A'!#REF! ->  | BB54: =+'T&A'!#REF! ->  | BC54: =+'T&A'!#REF! ->  | BD54: =+'T&A'!#REF! ->  | BE54: =+'T&A'!#REF! ->  | BF54: =+'T&A'!#REF! ->  | BG54: =+'T&A'!#REF! ->  | BH54: =+'T&A'!#REF! ->  | BI54: =+'T&A'!#REF! ->  | BJ54: =+'T&A'!#REF! ->  | BK54: =+'T&A'!#REF! ->  | BL54: =+'T&A'!#REF! ->  | BM54: =+'T&A'!#REF! ->  | BN54: =+'T&A'!#REF! ->  | BO54: =+'T&A'!#REF! ->  | BP54: =+'T&A'!#REF! ->  | BQ54: =+'T&A'!#REF! ->  | BR54: =+'T&A'!#REF! ->  | BS54: =+'T&A'!#REF! ->  | BT54: =+'T&A'!#REF! ->  | BU54: =+'T&A'!#REF! ->  | BV54: =+'T&A'!#REF! ->  | BW54: =+'T&A'!#REF! ->  | BX54: =+'T&A'!#REF! ->  | BY54: =+'T&A'!#REF! ->  | BZ54: =+'T&A'!#REF! ->  | CA54: =+'T&A'!#REF! ->  | CB54: =+'T&A'!#REF! ->  | CC54: =+'T&A'!#REF! ->  | CD54: =+'T&A'!#REF! ->  | CE54: =+'T&A'!#REF! ->  | CF54: =+'T&A'!#REF! ->  | CG54: =+'T&A'!#REF! ->  | CH54: =+'T&A'!#REF! ->  | CI54: =+'T&A'!#REF! ->  | CJ54: =+'T&A'!#REF! ->  | CK54: =+'T&A'!#REF! ->  | CL54: =+'T&A'!AA108 -> 44787.8863 | CM54: =+'T&A'!AB108 -> 29858.59087 | CN54: =+'T&A'!AC108 -> 14929.29543
D55: Immobilizzazioni immateriali | E55: € | I55: ='T&A'!I109 -> 0 | J55: =+'T&A'!J116 -> 0 | K55: =+'T&A'!K116 -> 0 | L55: =+'T&A'!L116 -> 0 | M55: =+'T&A'!M116 -> 0 | N55: =+'T&A'!N116 -> 0 | O55: =+'T&A'!O116 -> 0 | P55: =+'T&A'!P116 -> 0 | Q55: =+'T&A'!Q116 -> 0 | R55: =+'T&A'!R116 -> 0 | S55: =+'T&A'!S116 -> 0 | T55: =+'T&A'!T116 -> 0 | U55: =+'T&A'!U116 -> 0 | V55: =+'T&A'!V116 -> 0 | W55: =+'T&A'!W116 -> 0 | X55: =+'T&A'!X116 -> 0 | Y55: =+'T&A'!Y116 -> 0 | Z55: =+'T&A'!Z116 -> 0 | AA55: =+'T&A'!#REF! ->  | AB55: =+'T&A'!#REF! ->  | AC55: =+'T&A'!#REF! ->  | AD55: =+'T&A'!#REF! ->  | AE55: =+'T&A'!#REF! ->  | AF55: =+'T&A'!#REF! ->  | AG55: =+'T&A'!#REF! ->  | AH55: =+'T&A'!#REF! ->  | AI55: =+'T&A'!#REF! ->  | AJ55: =+'T&A'!#REF! ->  | AK55: =+'T&A'!#REF! ->  | AL55: =+'T&A'!#REF! ->  | AM55: =+'T&A'!#REF! ->  | AN55: =+'T&A'!#REF! ->  | AO55: =+'T&A'!#REF! ->  | AP55: =+'T&A'!#REF! ->  | AQ55: =+'T&A'!#REF! ->  | AR55: =+'T&A'!#REF! ->  | AS55: =+'T&A'!#REF! ->  | AT55: =+'T&A'!#REF! ->  | AU55: =+'T&A'!#REF! ->  | AV55: =+'T&A'!#REF! ->  | AW55: =+'T&A'!#REF! ->  | AX55: =+'T&A'!#REF! ->  | AY55: =+'T&A'!#REF! ->  | AZ55: =+'T&A'!#REF! ->  | BA55: =+'T&A'!#REF! ->  | BB55: =+'T&A'!#REF! ->  | BC55: =+'T&A'!#REF! ->  | BD55: =+'T&A'!#REF! ->  | BE55: =+'T&A'!#REF! ->  | BF55: =+'T&A'!#REF! ->  | BG55: =+'T&A'!#REF! ->  | BH55: =+'T&A'!#REF! ->  | BI55: =+'T&A'!#REF! ->  | BJ55: =+'T&A'!#REF! ->  | BK55: =+'T&A'!#REF! ->  | BL55: =+'T&A'!#REF! ->  | BM55: =+'T&A'!#REF! ->  | BN55: =+'T&A'!#REF! ->  | BO55: =+'T&A'!#REF! ->  | BP55: =+'T&A'!#REF! ->  | BQ55: =+'T&A'!#REF! ->  | BR55: =+'T&A'!#REF! ->  | BS55: =+'T&A'!#REF! ->  | BT55: =+'T&A'!#REF! ->  | BU55: =+'T&A'!#REF! ->  | BV55: =+'T&A'!#REF! ->  | BW55: =+'T&A'!#REF! ->  | BX55: =+'T&A'!#REF! ->  | BY55: =+'T&A'!#REF! ->  | BZ55: =+'T&A'!#REF! ->  | CA55: =+'T&A'!#REF! ->  | CB55: =+'T&A'!#REF! ->  | CC55: =+'T&A'!#REF! ->  | CD55: =+'T&A'!#REF! ->  | CE55: =+'T&A'!#REF! ->  | CF55: =+'T&A'!#REF! ->  | CG55: =+'T&A'!#REF! ->  | CH55: =+'T&A'!#REF! ->  | CI55: =+'T&A'!#REF! ->  | CJ55: =+'T&A'!#REF! ->  | CK55: =+'T&A'!#REF! ->  | CL55: =+'T&A'!AA116 -> 0 | CM55: =+'T&A'!AB116 -> 0 | CN55: =+'T&A'!AC116 -> 0
D56: Attivo fisso | E56: € | J56: =+J54+J55 -> 298585.9086 | K56: =+K54+K55 -> 283656.6132 | L56: 268727.3178 | M56: 253798.0224 | N56: 238868.7269 | O56: 223939.4315 | P56: 209010.1361 | Q56: 194080.8406 | R56: 179151.5452 | S56: 164222.2498 | T56: 149292.9543 | U56: 134363.6589 | V56: 119434.3635 | W56: 104505.068 | X56: 89575.7726 | Y56: 74646.47716 | Z56: 59717.18173 | BW56: =+BW54+BW55 ->  | CL56: 44787.8863 | CM56: 29858.59087 | CN56: 14929.29543
D58: Crediti commerciali | E58: € | J58: =+Op!#REF! ->  | K58: =+Op!#REF! ->  | L58: =+Op!#REF! ->  | M58: =+Op!#REF! ->  | N58: =+Op!#REF! ->  | O58: =+Op!#REF! ->  | P58: =+Op!#REF! ->  | Q58: =+Op!J128 -> -9920.031291 | R58: =+Op!K128 -> 89108.03167 | S58: =+Op!L128 -> 188670.3333 | T58: =+Op!M128 -> 286798.4772 | U58: =+Op!N128 -> 385456.0049 | V58: =+Op!O128 -> 486037.3524 | W58: =+Op!P128 -> 587161.3183 | X58: =+Op!Q128 -> 690444.6314 | Y58: =+Op!R128 -> 794096.6964 | Z58: =+Op!S128 -> 899769.9747 | AA58: =+Op!T128 -> 1006013.341 | AB58: =+Op!U128 -> 1114328.452 | AC58: =+Op!V128 -> 1223227.902 | AD58: =+Op!W128 -> 1334250.89 | AE58: =+Op!X128 -> 1445872.827 | AF58: =+Op!Y128 -> 1559878.28 | AG58: =+Op!Z128 -> 1674290.765 | AH58: =+Op!#REF! ->  | AI58: =+Op!#REF! ->  | AJ58: =+Op!#REF! ->  | AK58: =+Op!#REF! ->  | AL58: =+Op!#REF! ->  | AM58: =+Op!#REF! ->  | AN58: =+Op!#REF! ->  | AO58: =+Op!#REF! ->  | AP58: =+Op!#REF! ->  | AQ58: =+Op!#REF! ->  | AR58: =+Op!#REF! ->  | AS58: =+Op!#REF! ->  | AT58: =+Op!#REF! ->  | AU58: =+Op!#REF! ->  | AV58: =+Op!#REF! ->  | AW58: =+Op!#REF! ->  | AX58: =+Op!#REF! ->  | AY58: =+Op!#REF! ->  | AZ58: =+Op!#REF! ->  | BA58: =+Op!#REF! ->  | BB58: =+Op!#REF! ->  | BC58: =+Op!#REF! ->  | BD58: =+Op!#REF! ->  | BE58: =+Op!#REF! ->  | BF58: =+Op!#REF! ->  | BG58: =+Op!#REF! ->  | BH58: =+Op!#REF! ->  | BI58: =+Op!#REF! ->  | BJ58: =+Op!#REF! ->  | BK58: =+Op!#REF! ->  | BL58: =+Op!#REF! ->  | BM58: =+Op!#REF! ->  | BN58: =+Op!#REF! ->  | BO58: =+Op!#REF! ->  | BP58: =+Op!#REF! ->  | BQ58: =+Op!#REF! ->  | BR58: =+Op!#REF! ->  | BS58: =+Op!#REF! ->  | BT58: =+Op!#REF! ->  | BU58: =+Op!#REF! ->  | BV58: =+Op!#REF! ->  | BW58: =+Op!#REF! ->  | BX58: =+Op!#REF! ->  | BY58: =+Op!#REF! ->  | BZ58: =+Op!#REF! ->  | CA58: =+Op!#REF! ->  | CB58: =+Op!#REF! ->  | CC58: =+Op!#REF! ->  | CD58: =+Op!#REF! ->  | CE58: =+Op!#REF! ->  | CF58: =+Op!#REF! ->  | CG58: =+Op!#REF! ->  | CH58: =+Op!#REF! ->  | CI58: =+Op!#REF! ->  | CJ58: =+Op!#REF! ->  | CK58: =+Op!#REF! ->  | CL58: =+Op!#REF! ->  | CM58: =+Op!#REF! ->  | CN58: =+Op!#REF! -> 
D59: Debiti commerciali | E59: € | J59: =-Op!#REF! ->  | K59: =-Op!#REF! ->  | L59: =-Op!#REF! ->  | M59: =-Op!#REF! ->  | N59: =-Op!#REF! ->  | O59: =-Op!#REF! ->  | P59: =-Op!#REF! ->  | Q59: =-Op!J120 -> 10142.04012 | R59: =-Op!K120 -> -71475.62836 | S59: =-Op!L120 -> -153573.3585 | T59: =-Op!M120 -> -234212.9132 | U59: =-Op!N120 -> -315320.1267 | V59: =-Op!O120 -> -397975.6703 | W59: =-Op!P120 -> -481110.5641 | X59: =-Op!Q120 -> -565998.0741 | Y59: =-Op!R120 -> -651211.3402 | Z59: =-Op!S120 -> -738051.3207 | AA59: =-Op!T120 -> -825394.9186 | AB59: =-Op!U120 -> -914405.8985 | AC59: =-Op!V120 -> -1003933.086 | AD59: =-Op!W120 -> -1095169.341 | AE59: =-Op!X120 -> -1186934.708 | AF59: =-Op!Y120 -> -1280634.636 | AG59: =-Op!Z120 -> -1374694.138 | AH59: =-Op!#REF! ->  | AI59: =-Op!#REF! ->  | AJ59: =-Op!#REF! ->  | AK59: =-Op!#REF! ->  | AL59: =-Op!#REF! ->  | AM59: =-Op!#REF! ->  | AN59: =-Op!#REF! ->  | AO59: =-Op!#REF! ->  | AP59: =-Op!#REF! ->  | AQ59: =-Op!#REF! ->  | AR59: =-Op!#REF! ->  | AS59: =-Op!#REF! ->  | AT59: =-Op!#REF! ->  | AU59: =-Op!#REF! ->  | AV59: =-Op!#REF! ->  | AW59: =-Op!#REF! ->  | AX59: =-Op!#REF! ->  | AY59: =-Op!#REF! ->  | AZ59: =-Op!#REF! ->  | BA59: =-Op!#REF! ->  | BB59: =-Op!#REF! ->  | BC59: =-Op!#REF! ->  | BD59: =-Op!#REF! ->  | BE59: =-Op!#REF! ->  | BF59: =-Op!#REF! ->  | BG59: =-Op!#REF! ->  | BH59: =-Op!#REF! ->  | BI59: =-Op!#REF! ->  | BJ59: =-Op!#REF! ->  | BK59: =-Op!#REF! ->  | BL59: =-Op!#REF! ->  | BM59: =-Op!#REF! ->  | BN59: =-Op!#REF! ->  | BO59: =-Op!#REF! ->  | BP59: =-Op!#REF! ->  | BQ59: =-Op!#REF! ->  | BR59: =-Op!#REF! ->  | BS59: =-Op!#REF! ->  | BT59: =-Op!#REF! ->  | BU59: =-Op!#REF! ->  | BV59: =-Op!#REF! ->  | BW59: =-Op!#REF! ->  | BX59: =-Op!#REF! ->  | BY59: =-Op!#REF! ->  | BZ59: =-Op!#REF! ->  | CA59: =-Op!#REF! ->  | CB59: =-Op!#REF! ->  | CC59: =-Op!#REF! ->  | CD59: =-Op!#REF! ->  | CE59: =-Op!#REF! ->  | CF59: =-Op!#REF! ->  | CG59: =-Op!#REF! ->  | CH59: =-Op!#REF! ->  | CI59: =-Op!#REF! ->  | CJ59: =-Op!#REF! ->  | CK59: =-Op!#REF! ->  | CL59: =-Op!#REF! ->  | CM59: =-Op!#REF! ->  | CN59: =-Op!#REF! -> 
D60: Altri crediti | E60: € | J60: =+Op!#REF! ->  | K60: =+Op!#REF! ->  | L60: =+Op!#REF! ->  | M60: =+Op!#REF! ->  | N60: =+Op!#REF! ->  | O60: =+Op!#REF! ->  | P60: =+Op!#REF! ->  | Q60: =+Op!J152 -> 0 | R60: =+Op!K152 -> 0 | S60: =+Op!L152 -> 0 | T60: =+Op!M152 -> 0 | U60: =+Op!N152 -> 0 | V60: =+Op!O152 -> 0 | W60: =+Op!P152 -> 0 | X60: =+Op!Q152 -> 0 | Y60: =+Op!R152 -> 0 | Z60: =+Op!S152 -> 0 | AA60: =+Op!T152 -> 0 | AB60: =+Op!U152 -> 0 | AC60: =+Op!V152 -> 0 | AD60: =+Op!W152 -> 0 | AE60: =+Op!X152 -> 0 | AF60: =+Op!Y152 -> 0 | AG60: =+Op!Z152 -> 0 | AH60: =+Op!#REF! ->  | AI60: =+Op!#REF! ->  | AJ60: =+Op!#REF! ->  | AK60: =+Op!#REF! ->  | AL60: =+Op!#REF! ->  | AM60: =+Op!#REF! ->  | AN60: =+Op!#REF! ->  | AO60: =+Op!#REF! ->  | AP60: =+Op!#REF! ->  | AQ60: =+Op!#REF! ->  | AR60: =+Op!#REF! ->  | AS60: =+Op!#REF! ->  | AT60: =+Op!#REF! ->  | AU60: =+Op!#REF! ->  | AV60: =+Op!#REF! ->  | AW60: =+Op!#REF! ->  | AX60: =+Op!#REF! ->  | AY60: =+Op!#REF! ->  | AZ60: =+Op!#REF! ->  | BA60: =+Op!#REF! ->  | BB60: =+Op!#REF! ->  | BC60: =+Op!#REF! ->  | BD60: =+Op!#REF! ->  | BE60: =+Op!#REF! ->  | BF60: =+Op!#REF! ->  | BG60: =+Op!#REF! ->  | BH60: =+Op!#REF! ->  | BI60: =+Op!#REF! ->  | BJ60: =+Op!#REF! ->  | BK60: =+Op!#REF! ->  | BL60: =+Op!#REF! ->  | BM60: =+Op!#REF! ->  | BN60: =+Op!#REF! ->  | BO60: =+Op!#REF! ->  | BP60: =+Op!#REF! ->  | BQ60: =+Op!#REF! ->  | BR60: =+Op!#REF! ->  | BS60: =+Op!#REF! ->  | BT60: =+Op!#REF! ->  | BU60: =+Op!#REF! ->  | BV60: =+Op!#REF! ->  | BW60: =+Op!#REF! ->  | BX60: =+Op!#REF! ->  | BY60: =+Op!#REF! ->  | BZ60: =+Op!#REF! ->  | CA60: =+Op!#REF! ->  | CB60: =+Op!#REF! ->  | CC60: =+Op!#REF! ->  | CD60: =+Op!#REF! ->  | CE60: =+Op!#REF! ->  | CF60: =+Op!#REF! ->  | CG60: =+Op!#REF! ->  | CH60: =+Op!#REF! ->  | CI60: =+Op!#REF! ->  | CJ60: =+Op!#REF! ->  | CK60: =+Op!#REF! ->  | CL60: =+Op!#REF! ->  | CM60: =+Op!#REF! ->  | CN60: =+Op!#REF! -> 
D61: IVA Credito/(Debito) | E61: € | J61: =+Op!#REF! ->  | K61: =+Op!#REF! ->  | L61: =+Op!#REF! ->  | M61: =+Op!#REF! ->  | N61: =+Op!#REF! ->  | O61: =+Op!#REF! ->  | P61: =+Op!#REF! ->  | Q61: =+Op!J148 -> 2160.037308 | R61: =+Op!K148 -> 12960.22385 | S61: =+Op!L148 -> 25920.4477 | T61: =+Op!M148 -> 11893.61077 | U61: =+Op!N148 -> 23787.22155 | V61: =+Op!O148 -> 12190.95104 | W61: =+Op!P148 -> 24381.90208 | X61: =+Op!Q148 -> 12495.72482 | Y61: =+Op!R148 -> 24991.44964 | Z61: =+Op!S148 -> 12808.11794 | AA61: =+Op!T148 -> 25616.23588 | AB61: =+Op!U148 -> 13128.32089 | AC61: =+Op!V148 -> 26256.64177 | AD61: =+Op!W148 -> 13456.52891 | AE61: =+Op!X148 -> 26913.05782 | AF61: =+Op!Y148 -> 13792.94213 | AG61: =+Op!Z148 -> 27585.88426 | AH61: =+Op!#REF! ->  | AI61: =+Op!#REF! ->  | AJ61: =+Op!#REF! ->  | AK61: =+Op!#REF! ->  | AL61: =+Op!#REF! ->  | AM61: =+Op!#REF! ->  | AN61: =+Op!#REF! ->  | AO61: =+Op!#REF! ->  | AP61: =+Op!#REF! ->  | AQ61: =+Op!#REF! ->  | AR61: =+Op!#REF! ->  | AS61: =+Op!#REF! ->  | AT61: =+Op!#REF! ->  | AU61: =+Op!#REF! ->  | AV61: =+Op!#REF! ->  | AW61: =+Op!#REF! ->  | AX61: =+Op!#REF! ->  | AY61: =+Op!#REF! ->  | AZ61: =+Op!#REF! ->  | BA61: =+Op!#REF! ->  | BB61: =+Op!#REF! ->  | BC61: =+Op!#REF! ->  | BD61: =+Op!#REF! ->  | BE61: =+Op!#REF! ->  | BF61: =+Op!#REF! ->  | BG61: =+Op!#REF! ->  | BH61: =+Op!#REF! ->  | BI61: =+Op!#REF! ->  | BJ61: =+Op!#REF! ->  | BK61: =+Op!#REF! ->  | BL61: =+Op!#REF! ->  | BM61: =+Op!#REF! ->  | BN61: =+Op!#REF! ->  | BO61: =+Op!#REF! ->  | BP61: =+Op!#REF! ->  | BQ61: =+Op!#REF! ->  | BR61: =+Op!#REF! ->  | BS61: =+Op!#REF! ->  | BT61: =+Op!#REF! ->  | BU61: =+Op!#REF! ->  | BV61: =+Op!#REF! ->  | BW61: =+Op!#REF! ->  | BX61: =+Op!#REF! ->  | BY61: =+Op!#REF! ->  | BZ61: =+Op!#REF! ->  | CA61: =+Op!#REF! ->  | CB61: =+Op!#REF! ->  | CC61: =+Op!#REF! ->  | CD61: =+Op!#REF! ->  | CE61: =+Op!#REF! ->  | CF61: =+Op!#REF! ->  | CG61: =+Op!#REF! ->  | CH61: =+Op!#REF! ->  | CI61: =+Op!#REF! ->  | CJ61: =+Op!#REF! ->  | CK61: =+Op!#REF! ->  | CL61: =+Op!#REF! ->  | CM61: =+Op!#REF! ->  | CN61: =+Op!#REF! -> 
D62: Credito/(Debiti) verso Erario | E62: € | I62: ='T&A'!I100 -> 0 | J62: =+'T&A'!J100 -> -277.6643648 | K62: =+'T&A'!K100 -> 1055.124586 | L62: =+'T&A'!L100 -> 3054.308013 | M62: =+'T&A'!M100 -> 1457.052758 | N62: =+'T&A'!N100 -> 0 | O62: =+'T&A'!O100 -> -3212.7 | P62: =+'T&A'!P100 -> -4791.886132 | Q62: =+'T&A'!Q100 -> -3087.513292 | R62: =+'T&A'!R100 -> -4791.886132 | S62: =+'T&A'!S100 -> -2959.196916 | T62: =+'T&A'!T100 -> -4791.886132 | U62: =+'T&A'!U100 -> -2827.672631 | V62: =+'T&A'!V100 -> -4791.886132 | W62: =+'T&A'!W100 -> -2692.860239 | X62: =+'T&A'!X100 -> -4791.886132 | Y62: =+'T&A'!Y100 -> -2554.677537 | Z62: =+'T&A'!Z100 -> -4791.886132 | AA62: =+'T&A'!#REF! ->  | AB62: =+'T&A'!#REF! ->  | AC62: =+'T&A'!#REF! ->  | AD62: =+'T&A'!#REF! ->  | AE62: =+'T&A'!#REF! ->  | AF62: =+'T&A'!#REF! ->  | AG62: =+'T&A'!#REF! ->  | AH62: =+'T&A'!#REF! ->  | AI62: =+'T&A'!#REF! ->  | AJ62: =+'T&A'!#REF! ->  | AK62: =+'T&A'!#REF! ->  | AL62: =+'T&A'!#REF! ->  | AM62: =+'T&A'!#REF! ->  | AN62: =+'T&A'!#REF! ->  | AO62: =+'T&A'!#REF! ->  | AP62: =+'T&A'!#REF! ->  | AQ62: =+'T&A'!#REF! ->  | AR62: =+'T&A'!#REF! ->  | AS62: =+'T&A'!#REF! ->  | AT62: =+'T&A'!#REF! ->  | AU62: =+'T&A'!#REF! ->  | AV62: =+'T&A'!#REF! ->  | AW62: =+'T&A'!#REF! ->  | AX62: =+'T&A'!#REF! ->  | AY62: =+'T&A'!#REF! ->  | AZ62: =+'T&A'!#REF! ->  | BA62: =+'T&A'!#REF! ->  | BB62: =+'T&A'!#REF! ->  | BC62: =+'T&A'!#REF! ->  | BD62: =+'T&A'!#REF! ->  | BE62: =+'T&A'!#REF! ->  | BF62: =+'T&A'!#REF! ->  | BG62: =+'T&A'!#REF! ->  | BH62: =+'T&A'!#REF! ->  | BI62: =+'T&A'!#REF! ->  | BJ62: =+'T&A'!#REF! ->  | BK62: =+'T&A'!#REF! ->  | BL62: =+'T&A'!#REF! ->  | BM62: =+'T&A'!#REF! ->  | BN62: =+'T&A'!#REF! ->  | BO62: =+'T&A'!#REF! ->  | BP62: =+'T&A'!#REF! ->  | BQ62: =+'T&A'!#REF! ->  | BR62: =+'T&A'!#REF! ->  | BS62: =+'T&A'!#REF! ->  | BT62: =+'T&A'!#REF! ->  | BU62: =+'T&A'!#REF! ->  | BV62: =+'T&A'!#REF! ->  | BW62: =+'T&A'!#REF! ->  | BX62: =+'T&A'!#REF! ->  | BY62: =+'T&A'!#REF! ->  | BZ62: =+'T&A'!#REF! ->  | CA62: =+'T&A'!#REF! ->  | CB62: =+'T&A'!#REF! ->  | CC62: =+'T&A'!#REF! ->  | CD62: =+'T&A'!#REF! ->  | CE62: =+'T&A'!#REF! ->  | CF62: =+'T&A'!#REF! ->  | CG62: =+'T&A'!#REF! ->  | CH62: =+'T&A'!#REF! ->  | CI62: =+'T&A'!#REF! ->  | CJ62: =+'T&A'!#REF! ->  | CK62: =+'T&A'!#REF! ->  | CL62: =+'T&A'!AA100 -> -4791.886132 | CM62: =+'T&A'!AB100 -> -10739.00079 | CN62: =+'T&A'!AC100 -> -4791.886132
D63: Altri debiti | J63: =-Op!#REF! ->  | K63: =-Op!#REF! ->  | L63: =-Op!#REF! ->  | M63: =-Op!#REF! ->  | N63: =-Op!#REF! ->  | O63: =-Op!#REF! ->  | P63: =-Op!#REF! ->  | Q63: =-Op!J154 -> 0 | R63: =-Op!K154 -> 0 | S63: =-Op!L154 -> 0 | T63: =-Op!M154 -> 0 | U63: =-Op!N154 -> 0 | V63: =-Op!O154 -> 0 | W63: =-Op!P154 -> 0 | X63: =-Op!Q154 -> 0 | Y63: =-Op!R154 -> 0 | Z63: =-Op!S154 -> 0 | AA63: =-Op!T154 -> 0 | AB63: =-Op!U154 -> 0 | AC63: =-Op!V154 -> 0 | AD63: =-Op!W154 -> 0 | AE63: =-Op!X154 -> 0 | AF63: =-Op!Y154 -> 0 | AG63: =-Op!Z154 -> 0 | AH63: =-Op!#REF! ->  | AI63: =-Op!#REF! ->  | AJ63: =-Op!#REF! ->  | AK63: =-Op!#REF! ->  | AL63: =-Op!#REF! ->  | AM63: =-Op!#REF! ->  | AN63: =-Op!#REF! ->  | AO63: =-Op!#REF! ->  | AP63: =-Op!#REF! ->  | AQ63: =-Op!#REF! ->  | AR63: =-Op!#REF! ->  | AS63: =-Op!#REF! ->  | AT63: =-Op!#REF! ->  | AU63: =-Op!#REF! ->  | AV63: =-Op!#REF! ->  | AW63: =-Op!#REF! ->  | AX63: =-Op!#REF! ->  | AY63: =-Op!#REF! ->  | AZ63: =-Op!#REF! ->  | BA63: =-Op!#REF! ->  | BB63: =-Op!#REF! ->  | BC63: =-Op!#REF! ->  | BD63: =-Op!#REF! ->  | BE63: =-Op!#REF! ->  | BF63: =-Op!#REF! ->  | BG63: =-Op!#REF! ->  | BH63: =-Op!#REF! ->  | BI63: =-Op!#REF! ->  | BJ63: =-Op!#REF! ->  | BK63: =-Op!#REF! ->  | BL63: =-Op!#REF! ->  | BM63: =-Op!#REF! ->  | BN63: =-Op!#REF! ->  | BO63: =-Op!#REF! ->  | BP63: =-Op!#REF! ->  | BQ63: =-Op!#REF! ->  | BR63: =-Op!#REF! ->  | BS63: =-Op!#REF! ->  | BT63: =-Op!#REF! ->  | BU63: =-Op!#REF! ->  | BV63: =-Op!#REF! ->  | BW63: =-Op!#REF! ->  | BX63: =-Op!#REF! ->  | BY63: =-Op!#REF! ->  | BZ63: =-Op!#REF! ->  | CA63: =-Op!#REF! ->  | CB63: =-Op!#REF! ->  | CC63: =-Op!#REF! ->  | CD63: =-Op!#REF! ->  | CE63: =-Op!#REF! ->  | CF63: =-Op!#REF! ->  | CG63: =-Op!#REF! ->  | CH63: =-Op!#REF! ->  | CI63: =-Op!#REF! ->  | CJ63: =-Op!#REF! ->  | CK63: =-Op!#REF! ->  | CL63: =-Op!#REF! ->  | CM63: =-Op!#REF! ->  | CN63: =-Op!#REF! -> 
D64: Capitale circolante operativo | E64: € | I64: =+SUM(I58:I62) -> 0 | J64: =+SUM(J58:J63) ->  | K64: =+SUM(K58:K63) ->  | Q64: -705.4671574 | R64: 25800.74103 | S64: 58058.2256 | T64: 59687.28865 | U64: 91095.42712 | V64: 95460.74704 | W64: 127739.796 | X64: 132150.396 | Y64: 165322.1283 | Z64: 169734.8858 | BW64: =+SUM(BW58:BW63) -> 
D66: Capitale investito netto | E66: € | J66: =+J56+J64 ->  | K66: =+K56+K64 ->  | Q66: 193375.3735 | R66: 204952.2862 | S66: 222280.4754 | T66: 208980.243 | U66: 225459.086 | V66: 214895.1105 | W66: 232244.8641 | X66: 221726.1686 | Y66: 239968.6055 | Z66: 229452.0675 | BV66: =+BV56+BV64 -> 
D68: Capitale sociale | E68: € | J68: =+Eq!J55 -> 301074.1246 | K68: =+Eq!K55 -> 301074.1246 | L68: =+Eq!L55 -> 301074.1246 | M68: =+Eq!M55 -> 301074.1246 | N68: =+Eq!N55 -> 301074.1246 | O68: =+Eq!O55 -> 301074.1246 | P68: =+Eq!P55 -> 301074.1246 | Q68: =+Eq!Q55 -> 301074.1246 | R68: =+Eq!R55 -> 301074.1246 | S68: =+Eq!S55 -> 301074.1246 | T68: =+Eq!T55 -> 301074.1246 | U68: =+Eq!U55 -> 301074.1246 | V68: =+Eq!V55 -> 301074.1246 | W68: =+Eq!W55 -> 301074.1246 | X68: =+Eq!X55 -> 301074.1246 | Y68: =+Eq!Y55 -> 301074.1246 | Z68: =+Eq!Z55 -> 301074.1246 | AA68: =+Eq!#REF! ->  | AB68: =+Eq!#REF! ->  | AC68: =+Eq!#REF! ->  | AD68: =+Eq!#REF! ->  | AE68: =+Eq!#REF! ->  | AF68: =+Eq!#REF! ->  | AG68: =+Eq!#REF! ->  | AH68: =+Eq!#REF! ->  | AI68: =+Eq!#REF! ->  | AJ68: =+Eq!#REF! ->  | AK68: =+Eq!#REF! ->  | AL68: =+Eq!#REF! ->  | AM68: =+Eq!#REF! ->  | AN68: =+Eq!#REF! ->  | AO68: =+Eq!#REF! ->  | AP68: =+Eq!#REF! ->  | AQ68: =+Eq!#REF! ->  | AR68: =+Eq!#REF! ->  | AS68: =+Eq!#REF! ->  | AT68: =+Eq!#REF! ->  | AU68: =+Eq!#REF! ->  | AV68: =+Eq!#REF! ->  | AW68: =+Eq!#REF! ->  | AX68: =+Eq!#REF! ->  | AY68: =+Eq!#REF! ->  | AZ68: =+Eq!#REF! ->  | BA68: =+Eq!#REF! ->  | BB68: =+Eq!#REF! ->  | BC68: =+Eq!#REF! ->  | BD68: =+Eq!#REF! ->  | BE68: =+Eq!#REF! ->  | BF68: =+Eq!#REF! ->  | BG68: =+Eq!#REF! ->  | BH68: =+Eq!#REF! ->  | BI68: =+Eq!#REF! ->  | BJ68: =+Eq!#REF! ->  | BK68: =+Eq!#REF! ->  | BL68: =+Eq!#REF! ->  | BM68: =+Eq!#REF! ->  | BN68: =+Eq!#REF! ->  | BO68: =+Eq!#REF! ->  | BP68: =+Eq!#REF! ->  | BQ68: =+Eq!#REF! ->  | BR68: =+Eq!#REF! ->  | BS68: =+Eq!#REF! ->  | BT68: =+Eq!#REF! ->  | BU68: =+Eq!#REF! ->  | BV68: =+Eq!#REF! ->  | BW68: =+Eq!#REF! ->  | BX68: =+Eq!#REF! ->  | BY68: =+Eq!#REF! ->  | BZ68: =+Eq!#REF! ->  | CA68: =+Eq!#REF! ->  | CB68: =+Eq!#REF! ->  | CC68: =+Eq!#REF! ->  | CD68: =+Eq!#REF! ->  | CE68: =+Eq!#REF! ->  | CF68: =+Eq!#REF! ->  | CG68: =+Eq!#REF! ->  | CH68: =+Eq!#REF! ->  | CI68: =+Eq!#REF! ->  | CJ68: =+Eq!#REF! ->  | CK68: =+Eq!#REF! ->  | CL68: =+Eq!#REF! ->  | CM68: =+Eq!#REF! ->  | CN68: =+Eq!#REF! -> 
D69: Riserva legale | E69: € | J69: =+Eq!J44 -> 34.48308426 | K69: =+Eq!K44 -> 34.48308426 | L69: =+Eq!L44 -> 448.2800954 | M69: =+Eq!M44 -> 448.2800954 | N69: =+Eq!N44 -> 583.4031765 | O69: =+Eq!O44 -> 583.4031765 | P69: =+Eq!P44 -> 1073.700234 | Q69: =+Eq!Q44 -> 1073.700234 | R69: =+Eq!R44 -> 1602.864575 | S69: =+Eq!S44 -> 1602.864575 | T69: =+Eq!T44 -> 2171.867881 | U69: =+Eq!U44 -> 2171.867881 | V69: =+Eq!V44 -> 2781.706127 | W69: =+Eq!W44 -> 2781.706127 | X69: =+Eq!X44 -> 3433.400185 | Y69: =+Eq!Y44 -> 3433.400185 | Z69: =+Eq!Z44 -> 4217.045348 | AA69: =+Eq!#REF! ->  | AB69: =+Eq!#REF! ->  | AC69: =+Eq!#REF! ->  | AD69: =+Eq!#REF! ->  | AE69: =+Eq!#REF! ->  | AF69: =+Eq!#REF! ->  | AG69: =+Eq!#REF! ->  | AH69: =+Eq!#REF! ->  | AI69: =+Eq!#REF! ->  | AJ69: =+Eq!#REF! ->  | AK69: =+Eq!#REF! ->  | AL69: =+Eq!#REF! ->  | AM69: =+Eq!#REF! ->  | AN69: =+Eq!#REF! ->  | AO69: =+Eq!#REF! ->  | AP69: =+Eq!#REF! ->  | AQ69: =+Eq!#REF! ->  | AR69: =+Eq!#REF! ->  | AS69: =+Eq!#REF! ->  | AT69: =+Eq!#REF! ->  | AU69: =+Eq!#REF! ->  | AV69: =+Eq!#REF! ->  | AW69: =+Eq!#REF! ->  | AX69: =+Eq!#REF! ->  | AY69: =+Eq!#REF! ->  | AZ69: =+Eq!#REF! ->  | BA69: =+Eq!#REF! ->  | BB69: =+Eq!#REF! ->  | BC69: =+Eq!#REF! ->  | BD69: =+Eq!#REF! ->  | BE69: =+Eq!#REF! ->  | BF69: =+Eq!#REF! ->  | BG69: =+Eq!#REF! ->  | BH69: =+Eq!#REF! ->  | BI69: =+Eq!#REF! ->  | BJ69: =+Eq!#REF! ->  | BK69: =+Eq!#REF! ->  | BL69: =+Eq!#REF! ->  | BM69: =+Eq!#REF! ->  | BN69: =+Eq!#REF! ->  | BO69: =+Eq!#REF! ->  | BP69: =+Eq!#REF! ->  | BQ69: =+Eq!#REF! ->  | BR69: =+Eq!#REF! ->  | BS69: =+Eq!#REF! ->  | BT69: =+Eq!#REF! ->  | BU69: =+Eq!#REF! ->  | BV69: =+Eq!#REF! ->  | BW69: =+Eq!#REF! ->  | BX69: =+Eq!#REF! ->  | BY69: =+Eq!#REF! ->  | BZ69: =+Eq!#REF! ->  | CA69: =+Eq!#REF! ->  | CB69: =+Eq!#REF! ->  | CC69: =+Eq!#REF! ->  | CD69: =+Eq!#REF! ->  | CE69: =+Eq!#REF! ->  | CF69: =+Eq!#REF! ->  | CG69: =+Eq!#REF! ->  | CH69: =+Eq!#REF! ->  | CI69: =+Eq!#REF! ->  | CJ69: =+Eq!#REF! ->  | CK69: =+Eq!#REF! ->  | CL69: =+Eq!#REF! ->  | CM69: =+Eq!#REF! ->  | CN69: =+Eq!#REF! -> 
D70: Utili portati a nuovo | E70: € | J70: =+Eq!J49-J69 -> 620.6955166 | K70: =+Eq!K49-K69 -> 6424.651817 | L70: =+Eq!L49-L69 -> 8069.041716 | M70: =+Eq!M49-M69 -> 14414.13523 | N70: =+Eq!N49-N69 -> 16846.35069 | O70: =+Eq!O49-O69 -> 23723.30394 | P70: =+Eq!P49-P69 -> 25671.69773 | Q70: =+Eq!Q49-Q69 -> 33093.80719 | R70: =+Eq!R49-R69 -> 35196.65587 | S70: =+Eq!S49-S69 -> 43177.55045 | T70: =+Eq!T49-T69 -> 45438.71538 | U70: =+Eq!U49-U69 -> 53992.36471 | V70: =+Eq!V49-V69 -> 56415.8038 | W70: =+Eq!W49-W69 -> 65556.52675 | X70: =+Eq!X49-X69 -> 68146.29685 | Y70: =+Eq!Y49-Y69 -> 77888.77026 | Z70: =+Eq!Z49-Z69 -> 80470.93185 | AA70: =+Eq!#REF!-AA69 ->  | AB70: =+Eq!#REF!-AB69 ->  | AC70: =+Eq!#REF!-AC69 ->  | AD70: =+Eq!#REF!-AD69 ->  | AE70: =+Eq!#REF!-AE69 ->  | AF70: =+Eq!#REF!-AF69 ->  | AG70: =+Eq!#REF!-AG69 ->  | AH70: =+Eq!#REF!-AH69 ->  | AI70: =+Eq!#REF!-AI69 ->  | AJ70: =+Eq!#REF!-AJ69 ->  | AK70: =+Eq!#REF!-AK69 ->  | AL70: =+Eq!#REF!-AL69 ->  | AM70: =+Eq!#REF!-AM69 ->  | AN70: =+Eq!#REF!-AN69 ->  | AO70: =+Eq!#REF!-AO69 ->  | AP70: =+Eq!#REF!-AP69 ->  | AQ70: =+Eq!#REF!-AQ69 ->  | AR70: =+Eq!#REF!-AR69 ->  | AS70: =+Eq!#REF!-AS69 ->  | AT70: =+Eq!#REF!-AT69 ->  | AU70: =+Eq!#REF!-AU69 ->  | AV70: =+Eq!#REF!-AV69 ->  | AW70: =+Eq!#REF!-AW69 ->  | AX70: =+Eq!#REF!-AX69 ->  | AY70: =+Eq!#REF!-AY69 ->  | AZ70: =+Eq!#REF!-AZ69 ->  | BA70: =+Eq!#REF!-BA69 ->  | BB70: =+Eq!#REF!-BB69 ->  | BC70: =+Eq!#REF!-BC69 ->  | BD70: =+Eq!#REF!-BD69 ->  | BE70: =+Eq!#REF!-BE69 ->  | BF70: =+Eq!#REF!-BF69 ->  | BG70: =+Eq!#REF!-BG69 ->  | BH70: =+Eq!#REF!-BH69 ->  | BI70: =+Eq!#REF!-BI69 ->  | BJ70: =+Eq!#REF!-BJ69 ->  | BK70: =+Eq!#REF!-BK69 ->  | BL70: =+Eq!#REF!-BL69 ->  | BM70: =+Eq!#REF!-BM69 ->  | BN70: =+Eq!#REF!-BN69 ->  | BO70: =+Eq!#REF!-BO69 ->  | BP70: =+Eq!#REF!-BP69 ->  | BQ70: =+Eq!#REF!-BQ69 ->  | BR70: =+Eq!#REF!-BR69 ->  | BS70: =+Eq!#REF!-BS69 ->  | BT70: =+Eq!#REF!-BT69 ->  | BU70: =+Eq!#REF!-BU69 ->  | BV70: =+Eq!#REF!-BV69 ->  | BW70: =+Eq!#REF!-BW69 ->  | BX70: =+Eq!#REF!-BX69 ->  | BY70: =+Eq!#REF!-BY69 ->  | BZ70: =+Eq!#REF!-BZ69 ->  | CA70: =+Eq!#REF!-CA69 ->  | CB70: =+Eq!#REF!-CB69 ->  | CC70: =+Eq!#REF!-CC69 ->  | CD70: =+Eq!#REF!-CD69 ->  | CE70: =+Eq!#REF!-CE69 ->  | CF70: =+Eq!#REF!-CF69 ->  | CG70: =+Eq!#REF!-CG69 ->  | CH70: =+Eq!#REF!-CH69 ->  | CI70: =+Eq!#REF!-CI69 ->  | CJ70: =+Eq!#REF!-CJ69 ->  | CK70: =+Eq!#REF!-CK69 ->  | CL70: =+Eq!#REF!-CL69 ->  | CM70: =+Eq!#REF!-CM69 ->  | CN70: =+Eq!#REF!-CN69 -> 
D71: Utile di esercizio | E71: € | J71: =+IF(MONTH(J5)=12,SUMIF($J$8:$CN$8,J8,$J$47:$CN$47),J47)*(J5<end_conc) ->  | AP71: =+IF(MONTH(AP5)=12,SUMIF($J$8:$CN$8,AP8,$J$47:$CN$47),AP47)*(AP5<end_conc) ->  | BV71: =+IF(MONTH(BV5)=12,SUMIF($J$8:$CN$8,BV8,$J$47:$CN$47),BV47)*(BV5<end_conc) -> 
D72: Finanziamento soci | E72: € | J72: =+Eq!J27 -> 0 | K72: =+Eq!K27 -> 0 | L72: =+Eq!L27 -> 0 | M72: =+Eq!M27 -> 0 | N72: =+Eq!N27 -> 0 | O72: =+Eq!O27 -> 0 | P72: =+Eq!P27 -> 0 | Q72: =+Eq!Q27 -> 0 | R72: =+Eq!R27 -> 0 | S72: =+Eq!S27 -> 0 | T72: =+Eq!T27 -> 0 | U72: =+Eq!U27 -> 0 | V72: =+Eq!V27 -> 0 | W72: =+Eq!W27 -> 0 | X72: =+Eq!X27 -> 0 | Y72: =+Eq!Y27 -> 0 | Z72: =+Eq!Z27 -> 0 | AA72: =+Eq!#REF! ->  | AB72: =+Eq!#REF! ->  | AC72: =+Eq!#REF! ->  | AD72: =+Eq!#REF! ->  | AE72: =+Eq!#REF! ->  | AF72: =+Eq!#REF! ->  | AG72: =+Eq!#REF! ->  | AH72: =+Eq!#REF! ->  | AI72: =+Eq!#REF! ->  | AJ72: =+Eq!#REF! ->  | AK72: =+Eq!#REF! ->  | AL72: =+Eq!#REF! ->  | AM72: =+Eq!#REF! ->  | AN72: =+Eq!#REF! ->  | AO72: =+Eq!#REF! ->  | AP72: =+Eq!#REF! ->  | AQ72: =+Eq!#REF! ->  | AR72: =+Eq!#REF! ->  | AS72: =+Eq!#REF! ->  | AT72: =+Eq!#REF! ->  | AU72: =+Eq!#REF! ->  | AV72: =+Eq!#REF! ->  | AW72: =+Eq!#REF! ->  | AX72: =+Eq!#REF! ->  | AY72: =+Eq!#REF! ->  | AZ72: =+Eq!#REF! ->  | BA72: =+Eq!#REF! ->  | BB72: =+Eq!#REF! ->  | BC72: =+Eq!#REF! ->  | BD72: =+Eq!#REF! ->  | BE72: =+Eq!#REF! ->  | BF72: =+Eq!#REF! ->  | BG72: =+Eq!#REF! ->  | BH72: =+Eq!#REF! ->  | BI72: =+Eq!#REF! ->  | BJ72: =+Eq!#REF! ->  | BK72: =+Eq!#REF! ->  | BL72: =+Eq!#REF! ->  | BM72: =+Eq!#REF! ->  | BN72: =+Eq!#REF! ->  | BO72: =+Eq!#REF! ->  | BP72: =+Eq!#REF! ->  | BQ72: =+Eq!#REF! ->  | BR72: =+Eq!#REF! ->  | BS72: =+Eq!#REF! ->  | BT72: =+Eq!#REF! ->  | BU72: =+Eq!#REF! ->  | BV72: =+Eq!#REF! ->  | BW72: =+Eq!#REF! ->  | BX72: =+Eq!#REF! ->  | BY72: =+Eq!#REF! ->  | BZ72: =+Eq!#REF! ->  | CA72: =+Eq!#REF! ->  | CB72: =+Eq!#REF! ->  | CC72: =+Eq!#REF! ->  | CD72: =+Eq!#REF! ->  | CE72: =+Eq!#REF! ->  | CF72: =+Eq!#REF! ->  | CG72: =+Eq!#REF! ->  | CH72: =+Eq!#REF! ->  | CI72: =+Eq!#REF! ->  | CJ72: =+Eq!#REF! ->  | CK72: =+Eq!#REF! ->  | CL72: =+Eq!#REF! ->  | CM72: =+Eq!#REF! ->  | CN72: =+Eq!#REF! -> 
D73: Patrimonio Netto | E73: € | I73: =SUM(I68:I70) -> 0 | J73: =SUM(J68:J72) ->  | K73: =SUM(K68:K72) ->  | BW73: =SUM(BW68:BW72) -> 
D75: Debiti finanziari | E75: € | J75: =+Fin!J76 -> 0 | K75: =+Fin!K76 -> 0 | L75: =+Fin!L76 -> 0 | M75: =+Fin!M76 -> 0 | N75: =+Fin!N76 -> 0 | O75: =+Fin!O76 -> 0 | P75: =+Fin!P76 -> 0 | Q75: =+Fin!Q76 -> 0 | R75: =+Fin!R76 -> 0 | S75: =+Fin!S76 -> 0 | T75: =+Fin!T76 -> 0 | U75: =+Fin!U76 -> 0 | V75: =+Fin!V76 -> 0 | W75: =+Fin!W76 -> 0 | X75: =+Fin!X76 -> 0 | Y75: =+Fin!Y76 -> 0 | Z75: =+Fin!Z76 -> 0 | AA75: =+Fin!#REF! ->  | AB75: =+Fin!#REF! ->  | AC75: =+Fin!#REF! ->  | AD75: =+Fin!#REF! ->  | AE75: =+Fin!#REF! ->  | AF75: =+Fin!#REF! ->  | AG75: =+Fin!#REF! ->  | AH75: =+Fin!#REF! ->  | AI75: =+Fin!#REF! ->  | AJ75: =+Fin!#REF! ->  | AK75: =+Fin!#REF! ->  | AL75: =+Fin!#REF! ->  | AM75: =+Fin!#REF! ->  | AN75: =+Fin!#REF! ->  | AO75: =+Fin!#REF! ->  | AP75: =+Fin!#REF! ->  | AQ75: =+Fin!#REF! ->  | AR75: =+Fin!#REF! ->  | AS75: =+Fin!#REF! ->  | AT75: =+Fin!#REF! ->  | AU75: =+Fin!#REF! ->  | AV75: =+Fin!#REF! ->  | AW75: =+Fin!#REF! ->  | AX75: =+Fin!#REF! ->  | AY75: =+Fin!#REF! ->  | AZ75: =+Fin!#REF! ->  | BA75: =+Fin!#REF! ->  | BB75: =+Fin!#REF! ->  | BC75: =+Fin!#REF! ->  | BD75: =+Fin!#REF! ->  | BE75: =+Fin!#REF! ->  | BF75: =+Fin!#REF! ->  | BG75: =+Fin!#REF! ->  | BH75: =+Fin!#REF! ->  | BI75: =+Fin!#REF! ->  | BJ75: =+Fin!#REF! ->  | BK75: =+Fin!#REF! ->  | BL75: =+Fin!#REF! ->  | BM75: =+Fin!#REF! ->  | BN75: =+Fin!#REF! ->  | BO75: =+Fin!#REF! ->  | BP75: =+Fin!#REF! ->  | BQ75: =+Fin!#REF! ->  | BR75: =+Fin!#REF! ->  | BS75: =+Fin!#REF! ->  | BT75: =+Fin!#REF! ->  | BU75: =+Fin!#REF! ->  | BV75: =+Fin!#REF! ->  | BW75: =+Fin!#REF! ->  | BX75: =+Fin!#REF! ->  | BY75: =+Fin!#REF! ->  | BZ75: =+Fin!#REF! ->  | CA75: =+Fin!#REF! ->  | CB75: =+Fin!#REF! ->  | CC75: =+Fin!#REF! ->  | CD75: =+Fin!#REF! ->  | CE75: =+Fin!#REF! ->  | CF75: =+Fin!#REF! ->  | CG75: =+Fin!#REF! ->  | CH75: =+Fin!#REF! ->  | CI75: =+Fin!#REF! ->  | CJ75: =+Fin!#REF! ->  | CK75: =+Fin!#REF! ->  | CL75: =+Fin!#REF! ->  | CM75: =+Fin!#REF! ->  | CN75: =+Fin!#REF! -> 
D76: Debito Banca Reale | E76: € | J76: =+Fin!J36 -> 0 | K76: =+Fin!K36 -> 0 | L76: =+Fin!L36 -> 0 | M76: =+Fin!M36 -> 0 | N76: =+Fin!N36 -> 0 | O76: =+Fin!O36 -> 0 | P76: =+Fin!P36 -> 0 | Q76: =+Fin!Q36 -> 0 | R76: =+Fin!R36 -> 0 | S76: =+Fin!S36 -> 0 | T76: =+Fin!T36 -> 0 | U76: =+Fin!U36 -> 0 | V76: =+Fin!V36 -> 0 | W76: =+Fin!W36 -> 0 | X76: =+Fin!X36 -> 0 | Y76: =+Fin!Y36 -> 0 | Z76: =+Fin!Z36 -> 0 | AA76: =+Fin!#REF! ->  | AB76: =+Fin!#REF! ->  | AC76: =+Fin!#REF! ->  | AD76: =+Fin!#REF! ->  | AE76: =+Fin!#REF! ->  | AF76: =+Fin!#REF! ->  | AG76: =+Fin!#REF! ->  | AH76: =+Fin!#REF! ->  | AI76: =+Fin!#REF! ->  | AJ76: =+Fin!#REF! ->  | AK76: =+Fin!#REF! ->  | AL76: =+Fin!#REF! ->  | AM76: =+Fin!#REF! ->  | AN76: =+Fin!#REF! ->  | AO76: =+Fin!#REF! ->  | AP76: =+Fin!#REF! ->  | AQ76: =+Fin!#REF! ->  | AR76: =+Fin!#REF! ->  | AS76: =+Fin!#REF! ->  | AT76: =+Fin!#REF! ->  | AU76: =+Fin!#REF! ->  | AV76: =+Fin!#REF! ->  | AW76: =+Fin!#REF! ->  | AX76: =+Fin!#REF! ->  | AY76: =+Fin!#REF! ->  | AZ76: =+Fin!#REF! ->  | BA76: =+Fin!#REF! ->  | BB76: =+Fin!#REF! ->  | BC76: =+Fin!#REF! ->  | BD76: =+Fin!#REF! ->  | BE76: =+Fin!#REF! ->  | BF76: =+Fin!#REF! ->  | BG76: =+Fin!#REF! ->  | BH76: =+Fin!#REF! ->  | BI76: =+Fin!#REF! ->  | BJ76: =+Fin!#REF! ->  | BK76: =+Fin!#REF! ->  | BL76: =+Fin!#REF! ->  | BM76: =+Fin!#REF! ->  | BN76: =+Fin!#REF! ->  | BO76: =+Fin!#REF! ->  | BP76: =+Fin!#REF! ->  | BQ76: =+Fin!#REF! ->  | BR76: =+Fin!#REF! ->  | BS76: =+Fin!#REF! ->  | BT76: =+Fin!#REF! ->  | BU76: =+Fin!#REF! ->  | BV76: =+Fin!#REF! ->  | BW76: =+Fin!#REF! ->  | BX76: =+Fin!#REF! ->  | BY76: =+Fin!#REF! ->  | BZ76: =+Fin!#REF! ->  | CA76: =+Fin!#REF! ->  | CB76: =+Fin!#REF! ->  | CC76: =+Fin!#REF! ->  | CD76: =+Fin!#REF! ->  | CE76: =+Fin!#REF! ->  | CF76: =+Fin!#REF! ->  | CG76: =+Fin!#REF! ->  | CH76: =+Fin!#REF! ->  | CI76: =+Fin!#REF! ->  | CJ76: =+Fin!#REF! ->  | CK76: =+Fin!#REF! ->  | CL76: =+Fin!#REF! ->  | CM76: =+Fin!#REF! ->  | CN76: =+Fin!#REF! -> 
D77: Linea IVA | E77: € | J77: =+Fin!J46 -> 0 | K77: =+Fin!K46 -> 0 | L77: =+Fin!L46 -> 0 | M77: =+Fin!M46 -> 0 | N77: =+Fin!N46 -> 0 | O77: =+Fin!O46 -> 0 | P77: =+Fin!P46 -> 0 | Q77: =+Fin!Q46 -> 0 | R77: =+Fin!R46 -> 0 | S77: =+Fin!S46 -> 0 | T77: =+Fin!T46 -> 0 | U77: =+Fin!U46 -> 0 | V77: =+Fin!V46 -> 0 | W77: =+Fin!W46 -> 0 | X77: =+Fin!X46 -> 0 | Y77: =+Fin!Y46 -> 0 | Z77: =+Fin!Z46 -> 0 | AA77: =+Fin!#REF! ->  | AB77: =+Fin!#REF! ->  | AC77: =+Fin!#REF! ->  | AD77: =+Fin!#REF! ->  | AE77: =+Fin!#REF! ->  | AF77: =+Fin!#REF! ->  | AG77: =+Fin!#REF! ->  | AH77: =+Fin!#REF! ->  | AI77: =+Fin!#REF! ->  | AJ77: =+Fin!#REF! ->  | AK77: =+Fin!#REF! ->  | AL77: =+Fin!#REF! ->  | AM77: =+Fin!#REF! ->  | AN77: =+Fin!#REF! ->  | AO77: =+Fin!#REF! ->  | AP77: =+Fin!#REF! ->  | AQ77: =+Fin!#REF! ->  | AR77: =+Fin!#REF! ->  | AS77: =+Fin!#REF! ->  | AT77: =+Fin!#REF! ->  | AU77: =+Fin!#REF! ->  | AV77: =+Fin!#REF! ->  | AW77: =+Fin!#REF! ->  | AX77: =+Fin!#REF! ->  | AY77: =+Fin!#REF! ->  | AZ77: =+Fin!#REF! ->  | BA77: =+Fin!#REF! ->  | BB77: =+Fin!#REF! ->  | BC77: =+Fin!#REF! ->  | BD77: =+Fin!#REF! ->  | BE77: =+Fin!#REF! ->  | BF77: =+Fin!#REF! ->  | BG77: =+Fin!#REF! ->  | BH77: =+Fin!#REF! ->  | BI77: =+Fin!#REF! ->  | BJ77: =+Fin!#REF! ->  | BK77: =+Fin!#REF! ->  | BL77: =+Fin!#REF! ->  | BM77: =+Fin!#REF! ->  | BN77: =+Fin!#REF! ->  | BO77: =+Fin!#REF! ->  | BP77: =+Fin!#REF! ->  | BQ77: =+Fin!#REF! ->  | BR77: =+Fin!#REF! ->  | BS77: =+Fin!#REF! ->  | BT77: =+Fin!#REF! ->  | BU77: =+Fin!#REF! ->  | BV77: =+Fin!#REF! ->  | BW77: =+Fin!#REF! ->  | BX77: =+Fin!#REF! ->  | BY77: =+Fin!#REF! ->  | BZ77: =+Fin!#REF! ->  | CA77: =+Fin!#REF! ->  | CB77: =+Fin!#REF! ->  | CC77: =+Fin!#REF! ->  | CD77: =+Fin!#REF! ->  | CE77: =+Fin!#REF! ->  | CF77: =+Fin!#REF! ->  | CG77: =+Fin!#REF! ->  | CH77: =+Fin!#REF! ->  | CI77: =+Fin!#REF! ->  | CJ77: =+Fin!#REF! ->  | CK77: =+Fin!#REF! ->  | CL77: =+Fin!#REF! ->  | CM77: =+Fin!#REF! ->  | CN77: =+Fin!#REF! -> 
D78: Cassa | E78: € | I78: =I118 -> 301074.1246 | J78: =-J118 ->  | K78: =-K118 ->  | BW78: =-BW118 -> 
D79: Posizione finanziaria netta | E79: € | I79: =+SUM(I75:I78) -> 301074.1246 | AO79: =+SUM(AO75:AO78) ->  | BO79: =+SUM(BO75:BO78) -> 
D81: Totale fonti | E81: € | I81: =+I73+I79 -> 301074.1246 | BU81: =+BU73+BU79 -> 
D83: Check | H83: =MIN(J83:CN83) ->  | I83: =I66-I81 -> -301074.1246 | BU83: =BU66-BU81 -> 
H84: =MIN(J84:CN84) ->  | J84: =J83-I83 ->  | K84: =K83-J83 ->  | L84: =L83-K83 ->  | M84: =M83-L83 ->  | N84: =N83-M83 ->  | BZ84: =BZ83-BY83 -> 
D86: Equity for minimum equity calculation | E86: € | H86: =MIN(L86:BC86) ->  | I86: =I68+I70 -> 0 | J86: 301694.8201 | K86: 307498.7764 | L86: 309143.1663 | M86: 315488.2598 | N86: 317920.4752 | O86: 324797.4285 | P86: 326745.8223 | Q86: 334167.9317 | R86: 336270.7804 | S86: 344251.675 | T86: 346512.8399 | U86: 355066.4893 | V86: 357489.9284 | W86: 366630.6513 | X86: 369220.4214 | Y86: 378962.8948 | Z86: 381545.0564 | AO86: =AO68+AO70 ->  | BU86: =BU68+BU70 -> 
A88: =A52+1 -> 4 | B88: Cash flow | J88: =IF(J$13=1,"Actual","Piano") -> Piano | K88: =IF(K$13=1,"Actual","Piano") -> Piano | L88: Piano | M88: Piano | N88: Piano | O88: Piano | P88: Piano | Q88: Piano | R88: Piano | S88: Piano | T88: Piano | U88: Piano | V88: Piano | W88: Piano | X88: Piano | Y88: Piano | Z88: Piano | BW88: =IF(BW$13=1,"Actual","Piano") -> 
D90: EBITDA | E90: € | H90: =SUM(J90:CN90) ->  | J90: =Op!#REF! ->  | K90: =Op!#REF! ->  | L90: =Op!#REF! ->  | M90: =Op!#REF! ->  | N90: =Op!#REF! ->  | O90: =Op!#REF! ->  | P90: =Op!#REF! ->  | Q90: =Op!J98 -> 3455.541955 | R90: =Op!K98 -> 20733.25173 | S90: =Op!L98 -> 20733.25173 | T90: =Op!M98 -> 21274.38895 | U90: =Op!N98 -> 21274.38895 | V90: =Op!O98 -> 21806.24867 | W90: =Op!P98 -> 21806.24867 | X90: =Op!Q98 -> 22351.40489 | Y90: =Op!R98 -> 22351.40489 | Z90: =Op!S98 -> 22910.19001 | AA90: =Op!T98 -> 22910.19001 | AB90: =Op!U98 -> 23482.94476 | AC90: =Op!V98 -> 23482.94476 | AD90: =Op!W98 -> 24070.01838 | AE90: =Op!X98 -> 24070.01838 | AF90: =Op!Y98 -> 24671.76884 | AG90: =Op!Z98 -> 24671.76884 | AH90: =Op!#REF! ->  | AI90: =Op!#REF! ->  | AJ90: =Op!#REF! ->  | AK90: =Op!#REF! ->  | AL90: =Op!#REF! ->  | AM90: =Op!#REF! ->  | AN90: =Op!#REF! ->  | AO90: =Op!#REF! ->  | AP90: =Op!#REF! ->  | AQ90: =Op!#REF! ->  | AR90: =Op!#REF! ->  | AS90: =Op!#REF! ->  | AT90: =Op!#REF! ->  | AU90: =Op!#REF! ->  | AV90: =Op!#REF! ->  | AW90: =Op!#REF! ->  | AX90: =Op!#REF! ->  | AY90: =Op!#REF! ->  | AZ90: =Op!#REF! ->  | BA90: =Op!#REF! ->  | BB90: =Op!#REF! ->  | BC90: =Op!#REF! ->  | BD90: =Op!#REF! ->  | BE90: =Op!#REF! ->  | BF90: =Op!#REF! ->  | BG90: =Op!#REF! ->  | BH90: =Op!#REF! ->  | BI90: =Op!#REF! ->  | BJ90: =Op!#REF! ->  | BK90: =Op!#REF! ->  | BL90: =Op!#REF! ->  | BM90: =Op!#REF! ->  | BN90: =Op!#REF! ->  | BO90: =Op!#REF! ->  | BP90: =Op!#REF! ->  | BQ90: =Op!#REF! ->  | BR90: =Op!#REF! ->  | BS90: =Op!#REF! ->  | BT90: =Op!#REF! ->  | BU90: =Op!#REF! ->  | BV90: =Op!#REF! ->  | BW90: =Op!#REF! ->  | BX90: =Op!#REF! ->  | BY90: =Op!#REF! ->  | BZ90: =Op!#REF! ->  | CA90: =Op!#REF! ->  | CB90: =Op!#REF! ->  | CC90: =Op!#REF! ->  | CD90: =Op!#REF! ->  | CE90: =Op!#REF! ->  | CF90: =Op!#REF! ->  | CG90: =Op!#REF! ->  | CH90: =Op!#REF! ->  | CI90: =Op!#REF! ->  | CJ90: =Op!#REF! ->  | CK90: =Op!#REF! ->  | CL90: =Op!#REF! ->  | CM90: =Op!#REF! ->  | CN90: =Op!#REF! -> 
D91: Variazione capitale circolante netto | E91: € | H91: =SUM(J91:CN91) ->  | J91: =+Op!#REF! ->  | K91: =+Op!#REF! ->  | L91: =+Op!#REF! ->  | M91: =+Op!#REF! ->  | N91: =+Op!#REF! ->  | O91: =+Op!#REF! ->  | P91: =+Op!#REF! ->  | Q91: =+Op!J156 -> -5393.570438 | R91: =+Op!K156 -> 12870.89973 | S91: =+Op!L156 -> 2214.214329 | T91: =+Op!M156 -> -27504.1803 | U91: =+Op!N156 -> 25982.1727 | V91: =+Op!O156 -> -23646.25127 | W91: =+Op!P156 -> 23850.48967 | X91: =+Op!Q156 -> -24215.55339 | Y91: =+Op!R156 -> 24424.89775 | Z91: =+Op!S156 -> -24843.34274 | AA91: =+Op!T156 -> 25057.92071 | AB91: =+Op!U156 -> -25464.4263 | AC91: =+Op!V156 -> 25684.36872 | AD91: =+Op!W156 -> -26101.03696 | AE91: =+Op!X156 -> 26326.47794 | AF91: =+Op!Y156 -> -26729.43999 | AG91: =+Op!Z156 -> 26960.51699 | AH91: =+Op!#REF! ->  | AI91: =+Op!#REF! ->  | AJ91: =+Op!#REF! ->  | AK91: =+Op!#REF! ->  | AL91: =+Op!#REF! ->  | AM91: =+Op!#REF! ->  | AN91: =+Op!#REF! ->  | AO91: =+Op!#REF! ->  | AP91: =+Op!#REF! ->  | AQ91: =+Op!#REF! ->  | AR91: =+Op!#REF! ->  | AS91: =+Op!#REF! ->  | AT91: =+Op!#REF! ->  | AU91: =+Op!#REF! ->  | AV91: =+Op!#REF! ->  | AW91: =+Op!#REF! ->  | AX91: =+Op!#REF! ->  | AY91: =+Op!#REF! ->  | AZ91: =+Op!#REF! ->  | BA91: =+Op!#REF! ->  | BB91: =+Op!#REF! ->  | BC91: =+Op!#REF! ->  | BD91: =+Op!#REF! ->  | BE91: =+Op!#REF! ->  | BF91: =+Op!#REF! ->  | BG91: =+Op!#REF! ->  | BH91: =+Op!#REF! ->  | BI91: =+Op!#REF! ->  | BJ91: =+Op!#REF! ->  | BK91: =+Op!#REF! ->  | BL91: =+Op!#REF! ->  | BM91: =+Op!#REF! ->  | BN91: =+Op!#REF! ->  | BO91: =+Op!#REF! ->  | BP91: =+Op!#REF! ->  | BQ91: =+Op!#REF! ->  | BR91: =+Op!#REF! ->  | BS91: =+Op!#REF! ->  | BT91: =+Op!#REF! ->  | BU91: =+Op!#REF! ->  | BV91: =+Op!#REF! ->  | BW91: =+Op!#REF! ->  | BX91: =+Op!#REF! ->  | BY91: =+Op!#REF! ->  | BZ91: =+Op!#REF! ->  | CA91: =+Op!#REF! ->  | CB91: =+Op!#REF! ->  | CC91: =+Op!#REF! ->  | CD91: =+Op!#REF! ->  | CE91: =+Op!#REF! ->  | CF91: =+Op!#REF! ->  | CG91: =+Op!#REF! ->  | CH91: =+Op!#REF! ->  | CI91: =+Op!#REF! ->  | CJ91: =+Op!#REF! ->  | CK91: =+Op!#REF! ->  | CL91: =+Op!#REF! ->  | CM91: =+Op!#REF! ->  | CN91: =+Op!#REF! -> 
D92: Imposte correnti | E92: € | H92: =SUM(J92:CN92) ->  | J92: =-SUM('T&A'!J29,'T&A'!J71) -> -277.6643648 | K92: =-SUM('T&A'!K29,'T&A'!K71) -> 0 | L92: =-SUM('T&A'!L29,'T&A'!L71) -> -3331.972378 | M92: =-SUM('T&A'!M29,'T&A'!M71) -> 0 | N92: =-SUM('T&A'!N29,'T&A'!N71) -> -3642.631895 | O92: =-SUM('T&A'!O29,'T&A'!O71) -> 0 | P92: =-SUM('T&A'!P29,'T&A'!P71) -> -3947.965329 | Q92: =-SUM('T&A'!Q29,'T&A'!Q71) -> 0 | R92: =-SUM('T&A'!R29,'T&A'!R71) -> -4260.932099 | S92: =-SUM('T&A'!S29,'T&A'!S71) -> 0 | T92: =-SUM('T&A'!T29,'T&A'!T71) -> -4581.723038 | U92: =-SUM('T&A'!U29,'T&A'!U71) -> 0 | V92: =-SUM('T&A'!V29,'T&A'!V71) -> -4910.533751 | W92: =-SUM('T&A'!W29,'T&A'!W71) -> 0 | X92: =-SUM('T&A'!X29,'T&A'!X71) -> -5247.564732 | Y92: =-SUM('T&A'!Y29,'T&A'!Y71) -> 0 | Z92: =-SUM('T&A'!Z29,'T&A'!Z71) -> -5593.021487 | AA92: =-SUM('T&A'!#REF!,'T&A'!#REF!) ->  | AB92: =-SUM('T&A'!#REF!,'T&A'!#REF!) ->  | AC92: =-SUM('T&A'!#REF!,'T&A'!#REF!) ->  | AD92: =-SUM('T&A'!#REF!,'T&A'!#REF!) ->  | AE92: =-SUM('T&A'!#REF!,'T&A'!#REF!) ->  | AF92: =-SUM('T&A'!#REF!,'T&A'!#REF!) ->  | AG92: =-SUM('T&A'!#REF!,'T&A'!#REF!) ->  | AH92: =-SUM('T&A'!#REF!,'T&A'!#REF!) ->  | AI92: =-SUM('T&A'!#REF!,'T&A'!#REF!) ->  | AJ92: =-SUM('T&A'!#REF!,'T&A'!#REF!) ->  | AK92: =-SUM('T&A'!#REF!,'T&A'!#REF!) ->  | AL92: =-SUM('T&A'!#REF!,'T&A'!#REF!) ->  | AM92: =-SUM('T&A'!#REF!,'T&A'!#REF!) ->  | AN92: =-SUM('T&A'!#REF!,'T&A'!#REF!) ->  | AO92: =-SUM('T&A'!#REF!,'T&A'!#REF!) ->  | AP92: =-SUM('T&A'!#REF!,'T&A'!#REF!) ->  | AQ92: =-SUM('T&A'!#REF!,'T&A'!#REF!) ->  | AR92: =-SUM('T&A'!#REF!,'T&A'!#REF!) ->  | AS92: =-SUM('T&A'!#REF!,'T&A'!#REF!) ->  | AT92: =-SUM('T&A'!#REF!,'T&A'!#REF!) ->  | AU92: =-SUM('T&A'!#REF!,'T&A'!#REF!) ->  | AV92: =-SUM('T&A'!#REF!,'T&A'!#REF!) ->  | AW92: =-SUM('T&A'!#REF!,'T&A'!#REF!) ->  | AX92: =-SUM('T&A'!#REF!,'T&A'!#REF!) ->  | AY92: =-SUM('T&A'!#REF!,'T&A'!#REF!) ->  | AZ92: =-SUM('T&A'!#REF!,'T&A'!#REF!) ->  | BA92: =-SUM('T&A'!#REF!,'T&A'!#REF!) ->  | BB92: =-SUM('T&A'!#REF!,'T&A'!#REF!) ->  | BC92: =-SUM('T&A'!#REF!,'T&A'!#REF!) ->  | BD92: =-SUM('T&A'!#REF!,'T&A'!#REF!) ->  | BE92: =-SUM('T&A'!#REF!,'T&A'!#REF!) ->  | BF92: =-SUM('T&A'!#REF!,'T&A'!#REF!) ->  | BG92: =-SUM('T&A'!#REF!,'T&A'!#REF!) ->  | BH92: =-SUM('T&A'!#REF!,'T&A'!#REF!) ->  | BI92: =-SUM('T&A'!#REF!,'T&A'!#REF!) ->  | BJ92: =-SUM('T&A'!#REF!,'T&A'!#REF!) ->  | BK92: =-SUM('T&A'!#REF!,'T&A'!#REF!) ->  | BL92: =-SUM('T&A'!#REF!,'T&A'!#REF!) ->  | BM92: =-SUM('T&A'!#REF!,'T&A'!#REF!) ->  | BN92: =-SUM('T&A'!#REF!,'T&A'!#REF!) ->  | BO92: =-SUM('T&A'!#REF!,'T&A'!#REF!) ->  | BP92: =-SUM('T&A'!#REF!,'T&A'!#REF!) ->  | BQ92: =-SUM('T&A'!#REF!,'T&A'!#REF!) ->  | BR92: =-SUM('T&A'!#REF!,'T&A'!#REF!) ->  | BS92: =-SUM('T&A'!#REF!,'T&A'!#REF!) ->  | BT92: =-SUM('T&A'!#REF!,'T&A'!#REF!) ->  | BU92: =-SUM('T&A'!#REF!,'T&A'!#REF!) ->  | BV92: =-SUM('T&A'!#REF!,'T&A'!#REF!) ->  | BW92: =-SUM('T&A'!#REF!,'T&A'!#REF!) ->  | BX92: =-SUM('T&A'!#REF!,'T&A'!#REF!) ->  | BY92: =-SUM('T&A'!#REF!,'T&A'!#REF!) ->  | BZ92: =-SUM('T&A'!#REF!,'T&A'!#REF!) ->  | CA92: =-SUM('T&A'!#REF!,'T&A'!#REF!) ->  | CB92: =-SUM('T&A'!#REF!,'T&A'!#REF!) ->  | CC92: =-SUM('T&A'!#REF!,'T&A'!#REF!) ->  | CD92: =-SUM('T&A'!#REF!,'T&A'!#REF!) ->  | CE92: =-SUM('T&A'!#REF!,'T&A'!#REF!) ->  | CF92: =-SUM('T&A'!#REF!,'T&A'!#REF!) ->  | CG92: =-SUM('T&A'!#REF!,'T&A'!#REF!) ->  | CH92: =-SUM('T&A'!#REF!,'T&A'!#REF!) ->  | CI92: =-SUM('T&A'!#REF!,'T&A'!#REF!) ->  | CJ92: =-SUM('T&A'!#REF!,'T&A'!#REF!) ->  | CK92: =-SUM('T&A'!#REF!,'T&A'!#REF!) ->  | CL92: =-SUM('T&A'!AA29,'T&A'!AA71) -> 0 | CM92: =-SUM('T&A'!AB29,'T&A'!AB71) -> -5947.114661 | CN92: =-SUM('T&A'!AC29,'T&A'!AC71) -> 0
D93: Delta circolante imposte | E93: € | H93: =SUM(J93:CN93) ->  | J93: =-'T&A'!J99+J46 -> 277.6643648 | K93: =-'T&A'!K99+K46 -> -1332.788951 | L93: =-'T&A'!L99+L46 -> -1999.183427 | M93: =-'T&A'!M99+M46 -> -1457.052758 | N93: =-'T&A'!N99+N46 -> 1457.052758 | O93: =-'T&A'!O99+O46 -> -1579.186132 | P93: =-'T&A'!P99+P46 -> 1579.186132 | Q93: =-'T&A'!Q99+Q46 -> -1704.37284 | R93: =-'T&A'!R99+R46 -> 1704.37284 | S93: =-'T&A'!S99+S46 -> -1832.689215 | T93: =-'T&A'!T99+T46 -> 1832.689215 | U93: =-'T&A'!U99+U46 -> -1964.2135 | V93: =-'T&A'!V99+V46 -> 1964.2135 | W93: =-'T&A'!W99+W46 -> -2099.025893 | X93: =-'T&A'!X99+X46 -> 2099.025893 | Y93: =-'T&A'!Y99+Y46 -> -2237.208595 | Z93: =-'T&A'!Z99+Z46 -> 2237.208595 | AA93: =-'T&A'!#REF!+AA46 ->  | AB93: =-'T&A'!#REF!+AB46 ->  | AC93: =-'T&A'!#REF!+AC46 ->  | AD93: =-'T&A'!#REF!+AD46 ->  | AE93: =-'T&A'!#REF!+AE46 ->  | AF93: =-'T&A'!#REF!+AF46 ->  | AG93: =-'T&A'!#REF!+AG46 ->  | AH93: =-'T&A'!#REF!+AH46 ->  | AI93: =-'T&A'!#REF!+AI46 ->  | AJ93: =-'T&A'!#REF!+AJ46 ->  | AK93: =-'T&A'!#REF!+AK46 ->  | AL93: =-'T&A'!#REF!+AL46 ->  | AM93: =-'T&A'!#REF!+AM46 ->  | AN93: =-'T&A'!#REF!+AN46 ->  | AO93: =-'T&A'!#REF!+AO46 ->  | AP93: =-'T&A'!#REF!+AP46 ->  | AQ93: =-'T&A'!#REF!+AQ46 ->  | AR93: =-'T&A'!#REF!+AR46 ->  | AS93: =-'T&A'!#REF!+AS46 ->  | AT93: =-'T&A'!#REF!+AT46 ->  | AU93: =-'T&A'!#REF!+AU46 ->  | AV93: =-'T&A'!#REF!+AV46 ->  | AW93: =-'T&A'!#REF!+AW46 ->  | AX93: =-'T&A'!#REF!+AX46 ->  | AY93: =-'T&A'!#REF!+AY46 ->  | AZ93: =-'T&A'!#REF!+AZ46 ->  | BA93: =-'T&A'!#REF!+BA46 ->  | BB93: =-'T&A'!#REF!+BB46 ->  | BC93: =-'T&A'!#REF!+BC46 ->  | BD93: =-'T&A'!#REF!+BD46 ->  | BE93: =-'T&A'!#REF!+BE46 ->  | BF93: =-'T&A'!#REF!+BF46 ->  | BG93: =-'T&A'!#REF!+BG46 ->  | BH93: =-'T&A'!#REF!+BH46 ->  | BI93: =-'T&A'!#REF!+BI46 ->  | BJ93: =-'T&A'!#REF!+BJ46 ->  | BK93: =-'T&A'!#REF!+BK46 ->  | BL93: =-'T&A'!#REF!+BL46 ->  | BM93: =-'T&A'!#REF!+BM46 ->  | BN93: =-'T&A'!#REF!+BN46 ->  | BO93: =-'T&A'!#REF!+BO46 ->  | BP93: =-'T&A'!#REF!+BP46 ->  | BQ93: =-'T&A'!#REF!+BQ46 ->  | BR93: =-'T&A'!#REF!+BR46 ->  | BS93: =-'T&A'!#REF!+BS46 ->  | BT93: =-'T&A'!#REF!+BT46 ->  | BU93: =-'T&A'!#REF!+BU46 ->  | BV93: =-'T&A'!#REF!+BV46 ->  | BW93: =-'T&A'!#REF!+BW46 ->  | BX93: =-'T&A'!#REF!+BX46 ->  | BY93: =-'T&A'!#REF!+BY46 ->  | BZ93: =-'T&A'!#REF!+BZ46 ->  | CA93: =-'T&A'!#REF!+CA46 ->  | CB93: =-'T&A'!#REF!+CB46 ->  | CC93: =-'T&A'!#REF!+CC46 ->  | CD93: =-'T&A'!#REF!+CD46 ->  | CE93: =-'T&A'!#REF!+CE46 ->  | CF93: =-'T&A'!#REF!+CF46 ->  | CG93: =-'T&A'!#REF!+CG46 ->  | CH93: =-'T&A'!#REF!+CH46 ->  | CI93: =-'T&A'!#REF!+CI46 ->  | CJ93: =-'T&A'!#REF!+CJ46 ->  | CK93: =-'T&A'!#REF!+CK46 ->  | CL93: =-'T&A'!AA99+CL46 -> 0 | CM93: =-'T&A'!AB99+CM46 -> 5947.114661 | CN93: =-'T&A'!AC99+CN46 -> -5947.114661
D94: Flusso di cassa operativo | E94: € | H94: =SUM(J94:CN94) ->  | J94: =SUM(J90:J93) ->  | K94: =SUM(K90:K93) ->  | Q94: -3642.401322 | R94: 31047.5922 | S94: 21114.77685 | T94: -8978.825177 | U94: 45292.34815 | V94: -4786.322843 | W94: 43557.71245 | X94: -5012.687343 | Y94: 44539.09405 | Z94: -5288.965615 | BW94: =SUM(BW90:BW93) -> 
D96: Investimenti | E96: € | H96: =SUM(J96:CN96) ->  | J96: =-SUMIF(Investimenti!$K$6:$CG$6,'CE-SP-CF semestrale PPT'!J5,Investimenti!$K$368:$CG$368)-'T&A'!J114+J35 ->  | K96: =-SUMIF(Investimenti!$K$6:$CG$6,'CE-SP-CF semestrale PPT'!K5,Investimenti!$K$368:$CG$368)-'T&A'!K114 -> 0 | L96: =-SUMIF(Investimenti!$K$6:$CG$6,'CE-SP-CF semestrale PPT'!L5,Investimenti!$K$368:$CG$368)-'T&A'!L114 -> 0 | M96: =-SUMIF(Investimenti!$K$6:$CG$6,'CE-SP-CF semestrale PPT'!M5,Investimenti!$K$368:$CG$368)-'T&A'!M114 -> 0 | N96: =-SUMIF(Investimenti!$K$6:$CG$6,'CE-SP-CF semestrale PPT'!N5,Investimenti!$K$368:$CG$368)-'T&A'!N114 -> 0 | O96: =-SUMIF(Investimenti!$K$6:$CG$6,'CE-SP-CF semestrale PPT'!O5,Investimenti!$K$368:$CG$368)-'T&A'!O114 -> 0 | P96: =-SUMIF(Investimenti!$K$6:$CG$6,'CE-SP-CF semestrale PPT'!P5,Investimenti!$K$368:$CG$368)-'T&A'!P114 -> 0 | Q96: =-SUMIF(Investimenti!$K$6:$CG$6,'CE-SP-CF semestrale PPT'!Q5,Investimenti!$K$368:$CG$368)-'T&A'!Q114 -> 0 | R96: =-SUMIF(Investimenti!$K$6:$CG$6,'CE-SP-CF semestrale PPT'!R5,Investimenti!$K$368:$CG$368)-'T&A'!R114 -> 0 | S96: =-SUMIF(Investimenti!$K$6:$CG$6,'CE-SP-CF semestrale PPT'!S5,Investimenti!$K$368:$CG$368)-'T&A'!S114 -> 0 | T96: =-SUMIF(Investimenti!$K$6:$CG$6,'CE-SP-CF semestrale PPT'!T5,Investimenti!$K$368:$CG$368)-'T&A'!T114 -> 0 | U96: =-SUMIF(Investimenti!$K$6:$CG$6,'CE-SP-CF semestrale PPT'!U5,Investimenti!$K$368:$CG$368)-'T&A'!U114 -> 0 | V96: =-SUMIF(Investimenti!$K$6:$CG$6,'CE-SP-CF semestrale PPT'!V5,Investimenti!$K$368:$CG$368)-'T&A'!V114 -> 0 | W96: =-SUMIF(Investimenti!$K$6:$CG$6,'CE-SP-CF semestrale PPT'!W5,Investimenti!$K$368:$CG$368)-'T&A'!W114 -> 0 | X96: =-SUMIF(Investimenti!$K$6:$CG$6,'CE-SP-CF semestrale PPT'!X5,Investimenti!$K$368:$CG$368)-'T&A'!X114 -> 0 | Y96: =-SUMIF(Investimenti!$K$6:$CG$6,'CE-SP-CF semestrale PPT'!Y5,Investimenti!$K$368:$CG$368)-'T&A'!Y114 -> 0 | Z96: =-SUMIF(Investimenti!$K$6:$CG$6,'CE-SP-CF semestrale PPT'!Z5,Investimenti!$K$368:$CG$368)-'T&A'!Z114 -> 0 | AA96: =-SUMIF(Investimenti!$K$6:$CG$6,'CE-SP-CF semestrale PPT'!AA5,Investimenti!$K$368:$CG$368)-'T&A'!#REF! ->  | AB96: =-SUMIF(Investimenti!$K$6:$CG$6,'CE-SP-CF semestrale PPT'!AB5,Investimenti!$K$368:$CG$368)-'T&A'!#REF! ->  | AC96: =-SUMIF(Investimenti!$K$6:$CG$6,'CE-SP-CF semestrale PPT'!AC5,Investimenti!$K$368:$CG$368)-'T&A'!#REF! ->  | AD96: =-SUMIF(Investimenti!$K$6:$CG$6,'CE-SP-CF semestrale PPT'!AD5,Investimenti!$K$368:$CG$368)-'T&A'!#REF! ->  | AE96: =-SUMIF(Investimenti!$K$6:$CG$6,'CE-SP-CF semestrale PPT'!AE5,Investimenti!$K$368:$CG$368)-'T&A'!#REF! ->  | AF96: =-SUMIF(Investimenti!$K$6:$CG$6,'CE-SP-CF semestrale PPT'!AF5,Investimenti!$K$368:$CG$368)-'T&A'!#REF! ->  | AG96: =-SUMIF(Investimenti!$K$6:$CG$6,'CE-SP-CF semestrale PPT'!AG5,Investimenti!$K$368:$CG$368)-'T&A'!#REF! ->  | AH96: =-SUMIF(Investimenti!$K$6:$CG$6,'CE-SP-CF semestrale PPT'!AH5,Investimenti!$K$368:$CG$368)-'T&A'!#REF! ->  | AI96: =-SUMIF(Investimenti!$K$6:$CG$6,'CE-SP-CF semestrale PPT'!AI5,Investimenti!$K$368:$CG$368)-'T&A'!#REF! ->  | AJ96: =-SUMIF(Investimenti!$K$6:$CG$6,'CE-SP-CF semestrale PPT'!AJ5,Investimenti!$K$368:$CG$368)-'T&A'!#REF! ->  | AK96: =-SUMIF(Investimenti!$K$6:$CG$6,'CE-SP-CF semestrale PPT'!AK5,Investimenti!$K$368:$CG$368)-'T&A'!#REF! ->  | AL96: =-SUMIF(Investimenti!$K$6:$CG$6,'CE-SP-CF semestrale PPT'!AL5,Investimenti!$K$368:$CG$368)-'T&A'!#REF! ->  | AM96: =-SUMIF(Investimenti!$K$6:$CG$6,'CE-SP-CF semestrale PPT'!AM5,Investimenti!$K$368:$CG$368)-'T&A'!#REF! ->  | AN96: =-SUMIF(Investimenti!$K$6:$CG$6,'CE-SP-CF semestrale PPT'!AN5,Investimenti!$K$368:$CG$368)-'T&A'!#REF! ->  | AO96: =-SUMIF(Investimenti!$K$6:$CG$6,'CE-SP-CF semestrale PPT'!AO5,Investimenti!$K$368:$CG$368)-'T&A'!#REF! ->  | AP96: =-SUMIF(Investimenti!$K$6:$CG$6,'CE-SP-CF semestrale PPT'!AP5,Investimenti!$K$368:$CG$368)-'T&A'!#REF! ->  | AQ96: =-SUMIF(Investimenti!$K$6:$CG$6,'CE-SP-CF semestrale PPT'!AQ5,Investimenti!$K$368:$CG$368)-'T&A'!#REF! ->  | AR96: =-SUMIF(Investimenti!$K$6:$CG$6,'CE-SP-CF semestrale PPT'!AR5,Investimenti!$K$368:$CG$368)-'T&A'!#REF! ->  | AS96: =-SUMIF(Investimenti!$K$6:$CG$6,'CE-SP-CF semestrale PPT'!AS5,Investimenti!$K$368:$CG$368)-'T&A'!#REF! ->  | AT96: =-SUMIF(Investimenti!$K$6:$CG$6,'CE-SP-CF semestrale PPT'!AT5,Investimenti!$K$368:$CG$368)-'T&A'!#REF! ->  | AU96: =-SUMIF(Investimenti!$K$6:$CG$6,'CE-SP-CF semestrale PPT'!AU5,Investimenti!$K$368:$CG$368)-'T&A'!#REF! ->  | AV96: =-SUMIF(Investimenti!$K$6:$CG$6,'CE-SP-CF semestrale PPT'!AV5,Investimenti!$K$368:$CG$368)-'T&A'!#REF! ->  | AW96: =-SUMIF(Investimenti!$K$6:$CG$6,'CE-SP-CF semestrale PPT'!AW5,Investimenti!$K$368:$CG$368)-'T&A'!#REF! ->  | AX96: =-SUMIF(Investimenti!$K$6:$CG$6,'CE-SP-CF semestrale PPT'!AX5,Investimenti!$K$368:$CG$368)-'T&A'!#REF! ->  | AY96: =-SUMIF(Investimenti!$K$6:$CG$6,'CE-SP-CF semestrale PPT'!AY5,Investimenti!$K$368:$CG$368)-'T&A'!#REF! ->  | AZ96: =-SUMIF(Investimenti!$K$6:$CG$6,'CE-SP-CF semestrale PPT'!AZ5,Investimenti!$K$368:$CG$368)-'T&A'!#REF! ->  | BA96: =-SUMIF(Investimenti!$K$6:$CG$6,'CE-SP-CF semestrale PPT'!BA5,Investimenti!$K$368:$CG$368)-'T&A'!#REF! ->  | BB96: =-SUMIF(Investimenti!$K$6:$CG$6,'CE-SP-CF semestrale PPT'!BB5,Investimenti!$K$368:$CG$368)-'T&A'!#REF! ->  | BC96: =-SUMIF(Investimenti!$K$6:$CG$6,'CE-SP-CF semestrale PPT'!BC5,Investimenti!$K$368:$CG$368)-'T&A'!#REF! ->  | BD96: =-SUMIF(Investimenti!$K$6:$CG$6,'CE-SP-CF semestrale PPT'!BD5,Investimenti!$K$368:$CG$368)-'T&A'!#REF! ->  | BE96: =-SUMIF(Investimenti!$K$6:$CG$6,'CE-SP-CF semestrale PPT'!BE5,Investimenti!$K$368:$CG$368)-'T&A'!#REF! ->  | BF96: =-SUMIF(Investimenti!$K$6:$CG$6,'CE-SP-CF semestrale PPT'!BF5,Investimenti!$K$368:$CG$368)-'T&A'!#REF! ->  | BG96: =-SUMIF(Investimenti!$K$6:$CG$6,'CE-SP-CF semestrale PPT'!BG5,Investimenti!$K$368:$CG$368)-'T&A'!#REF! ->  | BH96: =-SUMIF(Investimenti!$K$6:$CG$6,'CE-SP-CF semestrale PPT'!BH5,Investimenti!$K$368:$CG$368)-'T&A'!#REF! ->  | BI96: =-SUMIF(Investimenti!$K$6:$CG$6,'CE-SP-CF semestrale PPT'!BI5,Investimenti!$K$368:$CG$368)-'T&A'!#REF! ->  | BJ96: =-SUMIF(Investimenti!$K$6:$CG$6,'CE-SP-CF semestrale PPT'!BJ5,Investimenti!$K$368:$CG$368)-'T&A'!#REF! ->  | BK96: =-SUMIF(Investimenti!$K$6:$CG$6,'CE-SP-CF semestrale PPT'!BK5,Investimenti!$K$368:$CG$368)-'T&A'!#REF! ->  | BL96: =-SUMIF(Investimenti!$K$6:$CG$6,'CE-SP-CF semestrale PPT'!BL5,Investimenti!$K$368:$CG$368)-'T&A'!#REF! ->  | BM96: =-SUMIF(Investimenti!$K$6:$CG$6,'CE-SP-CF semestrale PPT'!BM5,Investimenti!$K$368:$CG$368)-'T&A'!#REF! ->  | BN96: =-SUMIF(Investimenti!$K$6:$CG$6,'CE-SP-CF semestrale PPT'!BN5,Investimenti!$K$368:$CG$368)-'T&A'!#REF! ->  | BO96: =-SUMIF(Investimenti!$K$6:$CG$6,'CE-SP-CF semestrale PPT'!BO5,Investimenti!$K$368:$CG$368)-'T&A'!#REF! ->  | BP96: =-SUMIF(Investimenti!$K$6:$CG$6,'CE-SP-CF semestrale PPT'!BP5,Investimenti!$K$368:$CG$368)-'T&A'!#REF! ->  | BQ96: =-SUMIF(Investimenti!$K$6:$CG$6,'CE-SP-CF semestrale PPT'!BQ5,Investimenti!$K$368:$CG$368)-'T&A'!#REF! ->  | BR96: =-SUMIF(Investimenti!$K$6:$CG$6,'CE-SP-CF semestrale PPT'!BR5,Investimenti!$K$368:$CG$368)-'T&A'!#REF! ->  | BS96: =-SUMIF(Investimenti!$K$6:$CG$6,'CE-SP-CF semestrale PPT'!BS5,Investimenti!$K$368:$CG$368)-'T&A'!#REF! ->  | BT96: =-SUMIF(Investimenti!$K$6:$CG$6,'CE-SP-CF semestrale PPT'!BT5,Investimenti!$K$368:$CG$368)-'T&A'!#REF! ->  | BU96: =-SUMIF(Investimenti!$K$6:$CG$6,'CE-SP-CF semestrale PPT'!BU5,Investimenti!$K$368:$CG$368)-'T&A'!#REF! ->  | BV96: =-SUMIF(Investimenti!$K$6:$CG$6,'CE-SP-CF semestrale PPT'!BV5,Investimenti!$K$368:$CG$368)-'T&A'!#REF! ->  | BW96: =-SUMIF(Investimenti!$K$6:$CG$6,'CE-SP-CF semestrale PPT'!BW5,Investimenti!$K$368:$CG$368)-'T&A'!#REF! ->  | BX96: =-SUMIF(Investimenti!$K$6:$CG$6,'CE-SP-CF semestrale PPT'!BX5,Investimenti!$K$368:$CG$368)-'T&A'!#REF! ->  | BY96: =-SUMIF(Investimenti!$K$6:$CG$6,'CE-SP-CF semestrale PPT'!BY5,Investimenti!$K$368:$CG$368)-'T&A'!#REF! ->  | BZ96: =-SUMIF(Investimenti!$K$6:$CG$6,'CE-SP-CF semestrale PPT'!BZ5,Investimenti!$K$368:$CG$368)-'T&A'!#REF! ->  | CA96: =-SUMIF(Investimenti!$K$6:$CG$6,'CE-SP-CF semestrale PPT'!CA5,Investimenti!$K$368:$CG$368)-'T&A'!#REF! ->  | CB96: =-SUMIF(Investimenti!$K$6:$CG$6,'CE-SP-CF semestrale PPT'!CB5,Investimenti!$K$368:$CG$368)-'T&A'!#REF! ->  | CC96: =-SUMIF(Investimenti!$K$6:$CG$6,'CE-SP-CF semestrale PPT'!CC5,Investimenti!$K$368:$CG$368)-'T&A'!#REF! ->  | CD96: =-SUMIF(Investimenti!$K$6:$CG$6,'CE-SP-CF semestrale PPT'!CD5,Investimenti!$K$368:$CG$368)-'T&A'!#REF! ->  | CE96: =-SUMIF(Investimenti!$K$6:$CG$6,'CE-SP-CF semestrale PPT'!CE5,Investimenti!$K$368:$CG$368)-'T&A'!#REF! ->  | CF96: =-SUMIF(Investimenti!$K$6:$CG$6,'CE-SP-CF semestrale PPT'!CF5,Investimenti!$K$368:$CG$368)-'T&A'!#REF! ->  | CG96: =-SUMIF(Investimenti!$K$6:$CG$6,'CE-SP-CF semestrale PPT'!CG5,Investimenti!$K$368:$CG$368)-'T&A'!#REF! ->  | CH96: =-SUMIF(Investimenti!$K$6:$CG$6,'CE-SP-CF semestrale PPT'!CH5,Investimenti!$K$368:$CG$368)-'T&A'!#REF! ->  | CI96: =-SUMIF(Investimenti!$K$6:$CG$6,'CE-SP-CF semestrale PPT'!CI5,Investimenti!$K$368:$CG$368)-'T&A'!#REF! ->  | CJ96: =-SUMIF(Investimenti!$K$6:$CG$6,'CE-SP-CF semestrale PPT'!CJ5,Investimenti!$K$368:$CG$368)-'T&A'!#REF! ->  | CK96: =-SUMIF(Investimenti!$K$6:$CG$6,'CE-SP-CF semestrale PPT'!CK5,Investimenti!$K$368:$CG$368)-'T&A'!#REF! ->  | CL96: =-SUMIF(Investimenti!$K$6:$CG$6,'CE-SP-CF semestrale PPT'!CL5,Investimenti!$K$368:$CG$368)-'T&A'!AA114 -> 0 | CM96: =-SUMIF(Investimenti!$K$6:$CG$6,'CE-SP-CF semestrale PPT'!CM5,Investimenti!$K$368:$CG$368)-'T&A'!AB114 -> 0 | CN96: =-SUMIF(Investimenti!$K$6:$CG$6,'CE-SP-CF semestrale PPT'!CN5,Investimenti!$K$368:$CG$368)-'T&A'!AC114 -> 0
D97: Flusso di investimenti | E97: € | H97: =SUM(J97:CN97) ->  | J97: =J96 ->  | K97: =K96 -> 0 | L97: 0 | M97: 0 | N97: 0 | O97: 0 | P97: 0 | Q97: 0 | R97: 0 | S97: 0 | T97: 0 | U97: 0 | V97: 0 | W97: 0 | X97: 0 | Y97: 0 | Z97: 0 | BW97: =BW96 ->  | CL97: 0 | CM97: 0 | CN97: 0
D99: CFADS | E99: € | H99: =SUM(J99:CN99) ->  | J99: =+J94+J97 ->  | K99: =+K94+K97 ->  | Q99: -3642.401322 | R99: 31047.5922 | S99: 21114.77685 | T99: -8978.825177 | U99: 45292.34815 | V99: -4786.322843 | W99: 43557.71245 | X99: -5012.687343 | Y99: 44539.09405 | Z99: -5288.965615 | BW99: =+BW94+BW97 -> 
D101: Interessi | E101: € | H101: =SUM(J101:CN101) ->  | J101: =+J38 -> 0 | K101: 0 | L101: 0 | M101: 0 | N101: 0 | O101: 0 | P101: 0 | Q101: 0 | R101: 0 | S101: 0 | T101: 0 | U101: 0 | V101: 0 | W101: 0 | X101: 0 | Y101: 0 | Z101: 0 | AP101: =+AP38 ->  | BV101: =+BV38 -> 
D102: Commissioni di primo utilizzo | E102: € | H102: =SUM(J102:CN102) ->  | J102: =+J39 -> 0 | K102: 0 | L102: 0 | M102: 0 | N102: 0 | O102: 0 | P102: 0 | Q102: 0 | R102: 0 | S102: 0 | T102: 0 | U102: 0 | V102: 0 | W102: 0 | X102: 0 | Y102: 0 | Z102: 0 | AP102: =+AP39 ->  | BV102: =+BV39 -> 
D103: Commitment fee | E103: € | H103: =SUM(J103:CN103) ->  | J103: =+J40 -> 0 | K103: 0 | L103: 0 | M103: 0 | N103: 0 | O103: 0 | P103: 0 | Q103: 0 | R103: 0 | S103: 0 | T103: 0 | U103: 0 | V103: 0 | W103: 0 | X103: 0 | Y103: 0 | Z103: 0 | AP103: =+AP40 ->  | BV103: =+BV40 -> 
D104: Imposta sostitutiva | E104: € | J104: =+J41 -> 0 | K104: 0 | L104: 0 | M104: 0 | N104: 0 | O104: 0 | P104: 0 | Q104: 0 | R104: 0 | S104: 0 | T104: 0 | U104: 0 | V104: 0 | W104: 0 | X104: 0 | Y104: 0 | Z104: 0 | AP104: =+AP41 ->  | BV104: =+BV41 -> 
D105: Commissioni di agenzia | E105: € | J105: =+J42 -> 0 | K105: 0 | L105: 0 | M105: 0 | N105: 0 | O105: 0 | P105: 0 | Q105: 0 | R105: 0 | S105: 0 | T105: 0 | U105: 0 | V105: 0 | W105: 0 | X105: 0 | Y105: 0 | Z105: 0 | BV105: =+BV42 -> 
D106: Variazione debito finanziario | E106: € | J106: =+Fin!J73+Fin!J75 -> 0 | K106: =+Fin!K73+Fin!K75 -> 0 | L106: =+Fin!L73+Fin!L75 -> 0 | M106: =+Fin!M73+Fin!M75 -> 0 | N106: =+Fin!N73+Fin!N75 -> 0 | O106: =+Fin!O73+Fin!O75 -> 0 | P106: =+Fin!P73+Fin!P75 -> 0 | Q106: =+Fin!Q73+Fin!Q75 -> 0 | R106: =+Fin!R73+Fin!R75 -> 0 | S106: =+Fin!S73+Fin!S75 -> 0 | T106: =+Fin!T73+Fin!T75 -> 0 | U106: =+Fin!U73+Fin!U75 -> 0 | V106: =+Fin!V73+Fin!V75 -> 0 | W106: =+Fin!W73+Fin!W75 -> 0 | X106: =+Fin!X73+Fin!X75 -> 0 | Y106: =+Fin!Y73+Fin!Y75 -> 0 | Z106: =+Fin!Z73+Fin!Z75 -> 0 | AA106: =+Fin!#REF!+Fin!#REF! ->  | AB106: =+Fin!#REF!+Fin!#REF! ->  | AC106: =+Fin!#REF!+Fin!#REF! ->  | AD106: =+Fin!#REF!+Fin!#REF! ->  | AE106: =+Fin!#REF!+Fin!#REF! ->  | AF106: =+Fin!#REF!+Fin!#REF! ->  | AG106: =+Fin!#REF!+Fin!#REF! ->  | AH106: =+Fin!#REF!+Fin!#REF! ->  | AI106: =+Fin!#REF!+Fin!#REF! ->  | AJ106: =+Fin!#REF!+Fin!#REF! ->  | AK106: =+Fin!#REF!+Fin!#REF! ->  | AL106: =+Fin!#REF!+Fin!#REF! ->  | AM106: =+Fin!#REF!+Fin!#REF! ->  | AN106: =+Fin!#REF!+Fin!#REF! ->  | AO106: =+Fin!#REF!+Fin!#REF! ->  | AP106: =+Fin!#REF!+Fin!#REF! ->  | AQ106: =+Fin!#REF!+Fin!#REF! ->  | AR106: =+Fin!#REF!+Fin!#REF! ->  | AS106: =+Fin!#REF!+Fin!#REF! ->  | AT106: =+Fin!#REF!+Fin!#REF! ->  | AU106: =+Fin!#REF!+Fin!#REF! ->  | AV106: =+Fin!#REF!+Fin!#REF! ->  | AW106: =+Fin!#REF!+Fin!#REF! ->  | AX106: =+Fin!#REF!+Fin!#REF! ->  | AY106: =+Fin!#REF!+Fin!#REF! ->  | AZ106: =+Fin!#REF!+Fin!#REF! ->  | BA106: =+Fin!#REF!+Fin!#REF! ->  | BB106: =+Fin!#REF!+Fin!#REF! ->  | BC106: =+Fin!#REF!+Fin!#REF! ->  | BD106: =+Fin!#REF!+Fin!#REF! ->  | BE106: =+Fin!#REF!+Fin!#REF! ->  | BF106: =+Fin!#REF!+Fin!#REF! ->  | BG106: =+Fin!#REF!+Fin!#REF! ->  | BH106: =+Fin!#REF!+Fin!#REF! ->  | BI106: =+Fin!#REF!+Fin!#REF! ->  | BJ106: =+Fin!#REF!+Fin!#REF! ->  | BK106: =+Fin!#REF!+Fin!#REF! ->  | BL106: =+Fin!#REF!+Fin!#REF! ->  | BM106: =+Fin!#REF!+Fin!#REF! ->  | BN106: =+Fin!#REF!+Fin!#REF! ->  | BO106: =+Fin!#REF!+Fin!#REF! ->  | BP106: =+Fin!#REF!+Fin!#REF! ->  | BQ106: =+Fin!#REF!+Fin!#REF! ->  | BR106: =+Fin!#REF!+Fin!#REF! ->  | BS106: =+Fin!#REF!+Fin!#REF! ->  | BT106: =+Fin!#REF!+Fin!#REF! ->  | BU106: =+Fin!#REF!+Fin!#REF! ->  | BV106: =+Fin!#REF!+Fin!#REF! ->  | BW106: =+Fin!#REF!+Fin!#REF! ->  | BX106: =+Fin!#REF!+Fin!#REF! ->  | BY106: =+Fin!#REF!+Fin!#REF! ->  | BZ106: =+Fin!#REF!+Fin!#REF! ->  | CA106: =+Fin!#REF!+Fin!#REF! ->  | CB106: =+Fin!#REF!+Fin!#REF! ->  | CC106: =+Fin!#REF!+Fin!#REF! ->  | CD106: =+Fin!#REF!+Fin!#REF! ->  | CE106: =+Fin!#REF!+Fin!#REF! ->  | CF106: =+Fin!#REF!+Fin!#REF! ->  | CG106: =+Fin!#REF!+Fin!#REF! ->  | CH106: =+Fin!#REF!+Fin!#REF! ->  | CI106: =+Fin!#REF!+Fin!#REF! ->  | CJ106: =+Fin!#REF!+Fin!#REF! ->  | CK106: =+Fin!#REF!+Fin!#REF! ->  | CL106: =+Fin!#REF!+Fin!#REF! ->  | CM106: =+Fin!#REF!+Fin!#REF! ->  | CN106: =+Fin!#REF!+Fin!#REF! -> 
D107: Variazione debito banca reale | E107: € | J107: =+Fin!J34+Fin!J35 -> 0 | K107: =+Fin!K34+Fin!K35 -> 0 | L107: =+Fin!L34+Fin!L35 -> 0 | M107: =+Fin!M34+Fin!M35 -> 0 | N107: =+Fin!N34+Fin!N35 -> 0 | O107: =+Fin!O34+Fin!O35 -> 0 | P107: =+Fin!P34+Fin!P35 -> 0 | Q107: =+Fin!Q34+Fin!Q35 -> 0 | R107: =+Fin!R34+Fin!R35 -> 0 | S107: =+Fin!S34+Fin!S35 -> 0 | T107: =+Fin!T34+Fin!T35 -> 0 | U107: =+Fin!U34+Fin!U35 -> 0 | V107: =+Fin!V34+Fin!V35 -> 0 | W107: =+Fin!W34+Fin!W35 -> 0 | X107: =+Fin!X34+Fin!X35 -> 0 | Y107: =+Fin!Y34+Fin!Y35 -> 0 | Z107: =+Fin!Z34+Fin!Z35 -> 0 | AA107: =+Fin!#REF!+Fin!#REF! ->  | AB107: =+Fin!#REF!+Fin!#REF! ->  | AC107: =+Fin!#REF!+Fin!#REF! ->  | AD107: =+Fin!#REF!+Fin!#REF! ->  | AE107: =+Fin!#REF!+Fin!#REF! ->  | AF107: =+Fin!#REF!+Fin!#REF! ->  | AG107: =+Fin!#REF!+Fin!#REF! ->  | AH107: =+Fin!#REF!+Fin!#REF! ->  | AI107: =+Fin!#REF!+Fin!#REF! ->  | AJ107: =+Fin!#REF!+Fin!#REF! ->  | AK107: =+Fin!#REF!+Fin!#REF! ->  | AL107: =+Fin!#REF!+Fin!#REF! ->  | AM107: =+Fin!#REF!+Fin!#REF! ->  | AN107: =+Fin!#REF!+Fin!#REF! ->  | AO107: =+Fin!#REF!+Fin!#REF! ->  | AP107: =+Fin!#REF!+Fin!#REF! ->  | AQ107: =+Fin!#REF!+Fin!#REF! ->  | AR107: =+Fin!#REF!+Fin!#REF! ->  | AS107: =+Fin!#REF!+Fin!#REF! ->  | AT107: =+Fin!#REF!+Fin!#REF! ->  | AU107: =+Fin!#REF!+Fin!#REF! ->  | AV107: =+Fin!#REF!+Fin!#REF! ->  | AW107: =+Fin!#REF!+Fin!#REF! ->  | AX107: =+Fin!#REF!+Fin!#REF! ->  | AY107: =+Fin!#REF!+Fin!#REF! ->  | AZ107: =+Fin!#REF!+Fin!#REF! ->  | BA107: =+Fin!#REF!+Fin!#REF! ->  | BB107: =+Fin!#REF!+Fin!#REF! ->  | BC107: =+Fin!#REF!+Fin!#REF! ->  | BD107: =+Fin!#REF!+Fin!#REF! ->  | BE107: =+Fin!#REF!+Fin!#REF! ->  | BF107: =+Fin!#REF!+Fin!#REF! ->  | BG107: =+Fin!#REF!+Fin!#REF! ->  | BH107: =+Fin!#REF!+Fin!#REF! ->  | BI107: =+Fin!#REF!+Fin!#REF! ->  | BJ107: =+Fin!#REF!+Fin!#REF! ->  | BK107: =+Fin!#REF!+Fin!#REF! ->  | BL107: =+Fin!#REF!+Fin!#REF! ->  | BM107: =+Fin!#REF!+Fin!#REF! ->  | BN107: =+Fin!#REF!+Fin!#REF! ->  | BO107: =+Fin!#REF!+Fin!#REF! ->  | BP107: =+Fin!#REF!+Fin!#REF! ->  | BQ107: =+Fin!#REF!+Fin!#REF! ->  | BR107: =+Fin!#REF!+Fin!#REF! ->  | BS107: =+Fin!#REF!+Fin!#REF! ->  | BT107: =+Fin!#REF!+Fin!#REF! ->  | BU107: =+Fin!#REF!+Fin!#REF! ->  | BV107: =+Fin!#REF!+Fin!#REF! ->  | BW107: =+Fin!#REF!+Fin!#REF! ->  | BX107: =+Fin!#REF!+Fin!#REF! ->  | BY107: =+Fin!#REF!+Fin!#REF! ->  | BZ107: =+Fin!#REF!+Fin!#REF! ->  | CA107: =+Fin!#REF!+Fin!#REF! ->  | CB107: =+Fin!#REF!+Fin!#REF! ->  | CC107: =+Fin!#REF!+Fin!#REF! ->  | CD107: =+Fin!#REF!+Fin!#REF! ->  | CE107: =+Fin!#REF!+Fin!#REF! ->  | CF107: =+Fin!#REF!+Fin!#REF! ->  | CG107: =+Fin!#REF!+Fin!#REF! ->  | CH107: =+Fin!#REF!+Fin!#REF! ->  | CI107: =+Fin!#REF!+Fin!#REF! ->  | CJ107: =+Fin!#REF!+Fin!#REF! ->  | CK107: =+Fin!#REF!+Fin!#REF! ->  | CL107: =+Fin!#REF!+Fin!#REF! ->  | CM107: =+Fin!#REF!+Fin!#REF! ->  | CN107: =+Fin!#REF!+Fin!#REF! -> 
D108: Finanziamento soci | E108: € | J108: =+Eq!J25+Eq!J26 -> 0 | K108: =+Eq!K25+Eq!K26 -> 0 | L108: =+Eq!L25+Eq!L26 -> 0 | M108: =+Eq!M25+Eq!M26 -> 0 | N108: =+Eq!N25+Eq!N26 -> 0 | O108: =+Eq!O25+Eq!O26 -> 0 | P108: =+Eq!P25+Eq!P26 -> 0 | Q108: =+Eq!Q25+Eq!Q26 -> 0 | R108: =+Eq!R25+Eq!R26 -> 0 | S108: =+Eq!S25+Eq!S26 -> 0 | T108: =+Eq!T25+Eq!T26 -> 0 | U108: =+Eq!U25+Eq!U26 -> 0 | V108: =+Eq!V25+Eq!V26 -> 0 | W108: =+Eq!W25+Eq!W26 -> 0 | X108: =+Eq!X25+Eq!X26 -> 0 | Y108: =+Eq!Y25+Eq!Y26 -> 0 | Z108: =+Eq!Z25+Eq!Z26 -> 0 | AA108: =+Eq!#REF!+Eq!#REF! ->  | AB108: =+Eq!#REF!+Eq!#REF! ->  | AC108: =+Eq!#REF!+Eq!#REF! ->  | AD108: =+Eq!#REF!+Eq!#REF! ->  | AE108: =+Eq!#REF!+Eq!#REF! ->  | AF108: =+Eq!#REF!+Eq!#REF! ->  | AG108: =+Eq!#REF!+Eq!#REF! ->  | AH108: =+Eq!#REF!+Eq!#REF! ->  | AI108: =+Eq!#REF!+Eq!#REF! ->  | AJ108: =+Eq!#REF!+Eq!#REF! ->  | AK108: =+Eq!#REF!+Eq!#REF! ->  | AL108: =+Eq!#REF!+Eq!#REF! ->  | AM108: =+Eq!#REF!+Eq!#REF! ->  | AN108: =+Eq!#REF!+Eq!#REF! ->  | AO108: =+Eq!#REF!+Eq!#REF! ->  | AP108: =+Eq!#REF!+Eq!#REF! ->  | AQ108: =+Eq!#REF!+Eq!#REF! ->  | AR108: =+Eq!#REF!+Eq!#REF! ->  | AS108: =+Eq!#REF!+Eq!#REF! ->  | AT108: =+Eq!#REF!+Eq!#REF! ->  | AU108: =+Eq!#REF!+Eq!#REF! ->  | AV108: =+Eq!#REF!+Eq!#REF! ->  | AW108: =+Eq!#REF!+Eq!#REF! ->  | AX108: =+Eq!#REF!+Eq!#REF! ->  | AY108: =+Eq!#REF!+Eq!#REF! ->  | AZ108: =+Eq!#REF!+Eq!#REF! ->  | BA108: =+Eq!#REF!+Eq!#REF! ->  | BB108: =+Eq!#REF!+Eq!#REF! ->  | BC108: =+Eq!#REF!+Eq!#REF! ->  | BD108: =+Eq!#REF!+Eq!#REF! ->  | BE108: =+Eq!#REF!+Eq!#REF! ->  | BF108: =+Eq!#REF!+Eq!#REF! ->  | BG108: =+Eq!#REF!+Eq!#REF! ->  | BH108: =+Eq!#REF!+Eq!#REF! ->  | BI108: =+Eq!#REF!+Eq!#REF! ->  | BJ108: =+Eq!#REF!+Eq!#REF! ->  | BK108: =+Eq!#REF!+Eq!#REF! ->  | BL108: =+Eq!#REF!+Eq!#REF! ->  | BM108: =+Eq!#REF!+Eq!#REF! ->  | BN108: =+Eq!#REF!+Eq!#REF! ->  | BO108: =+Eq!#REF!+Eq!#REF! ->  | BP108: =+Eq!#REF!+Eq!#REF! ->  | BQ108: =+Eq!#REF!+Eq!#REF! ->  | BR108: =+Eq!#REF!+Eq!#REF! ->  | BS108: =+Eq!#REF!+Eq!#REF! ->  | BT108: =+Eq!#REF!+Eq!#REF! ->  | BU108: =+Eq!#REF!+Eq!#REF! ->  | BV108: =+Eq!#REF!+Eq!#REF! ->  | BW108: =+Eq!#REF!+Eq!#REF! ->  | BX108: =+Eq!#REF!+Eq!#REF! ->  | BY108: =+Eq!#REF!+Eq!#REF! ->  | BZ108: =+Eq!#REF!+Eq!#REF! ->  | CA108: =+Eq!#REF!+Eq!#REF! ->  | CB108: =+Eq!#REF!+Eq!#REF! ->  | CC108: =+Eq!#REF!+Eq!#REF! ->  | CD108: =+Eq!#REF!+Eq!#REF! ->  | CE108: =+Eq!#REF!+Eq!#REF! ->  | CF108: =+Eq!#REF!+Eq!#REF! ->  | CG108: =+Eq!#REF!+Eq!#REF! ->  | CH108: =+Eq!#REF!+Eq!#REF! ->  | CI108: =+Eq!#REF!+Eq!#REF! ->  | CJ108: =+Eq!#REF!+Eq!#REF! ->  | CK108: =+Eq!#REF!+Eq!#REF! ->  | CL108: =+Eq!#REF!+Eq!#REF! ->  | CM108: =+Eq!#REF!+Eq!#REF! ->  | CN108: =+Eq!#REF!+Eq!#REF! -> 
D109: Linea IVA | E109: € | H109: =SUM(J109:CN109) ->  | J109: =+SUM(Fin!J44:J45) -> 0 | K109: =+SUM(Fin!K44:K45) -> 0 | L109: =+SUM(Fin!L44:L45) -> 0 | M109: =+SUM(Fin!M44:M45) -> 0 | N109: =+SUM(Fin!N44:N45) -> 0 | O109: =+SUM(Fin!O44:O45) -> 0 | P109: =+SUM(Fin!P44:P45) -> 0 | Q109: =+SUM(Fin!Q44:Q45) -> 0 | R109: =+SUM(Fin!R44:R45) -> 0 | S109: =+SUM(Fin!S44:S45) -> 0 | T109: =+SUM(Fin!T44:T45) -> 0 | U109: =+SUM(Fin!U44:U45) -> 0 | V109: =+SUM(Fin!V44:V45) -> 0 | W109: =+SUM(Fin!W44:W45) -> 0 | X109: =+SUM(Fin!X44:X45) -> 0 | Y109: =+SUM(Fin!Y44:Y45) -> 0 | Z109: =+SUM(Fin!Z44:Z45) -> 0 | AA109: =+SUM(Fin!#REF!) ->  | AB109: =+SUM(Fin!#REF!) ->  | AC109: =+SUM(Fin!#REF!) ->  | AD109: =+SUM(Fin!#REF!) ->  | AE109: =+SUM(Fin!#REF!) ->  | AF109: =+SUM(Fin!#REF!) ->  | AG109: =+SUM(Fin!#REF!) ->  | AH109: =+SUM(Fin!#REF!) ->  | AI109: =+SUM(Fin!#REF!) ->  | AJ109: =+SUM(Fin!#REF!) ->  | AK109: =+SUM(Fin!#REF!) ->  | AL109: =+SUM(Fin!#REF!) ->  | AM109: =+SUM(Fin!#REF!) ->  | AN109: =+SUM(Fin!#REF!) ->  | AO109: =+SUM(Fin!#REF!) ->  | AP109: =+SUM(Fin!#REF!) ->  | AQ109: =+SUM(Fin!#REF!) ->  | AR109: =+SUM(Fin!#REF!) ->  | AS109: =+SUM(Fin!#REF!) ->  | AT109: =+SUM(Fin!#REF!) ->  | AU109: =+SUM(Fin!#REF!) ->  | AV109: =+SUM(Fin!#REF!) ->  | AW109: =+SUM(Fin!#REF!) ->  | AX109: =+SUM(Fin!#REF!) ->  | AY109: =+SUM(Fin!#REF!) ->  | AZ109: =+SUM(Fin!#REF!) ->  | BA109: =+SUM(Fin!#REF!) ->  | BB109: =+SUM(Fin!#REF!) ->  | BC109: =+SUM(Fin!#REF!) ->  | BD109: =+SUM(Fin!#REF!) ->  | BE109: =+SUM(Fin!#REF!) ->  | BF109: =+SUM(Fin!#REF!) ->  | BG109: =+SUM(Fin!#REF!) ->  | BH109: =+SUM(Fin!#REF!) ->  | BI109: =+SUM(Fin!#REF!) ->  | BJ109: =+SUM(Fin!#REF!) ->  | BK109: =+SUM(Fin!#REF!) ->  | BL109: =+SUM(Fin!#REF!) ->  | BM109: =+SUM(Fin!#REF!) ->  | BN109: =+SUM(Fin!#REF!) ->  | BO109: =+SUM(Fin!#REF!) ->  | BP109: =+SUM(Fin!#REF!) ->  | BQ109: =+SUM(Fin!#REF!) ->  | BR109: =+SUM(Fin!#REF!) ->  | BS109: =+SUM(Fin!#REF!) ->  | BT109: =+SUM(Fin!#REF!) ->  | BU109: =+SUM(Fin!#REF!) ->  | BV109: =+SUM(Fin!#REF!) ->  | BW109: =+SUM(Fin!#REF!) ->  | BX109: =+SUM(Fin!#REF!) ->  | BY109: =+SUM(Fin!#REF!) ->  | BZ109: =+SUM(Fin!#REF!) ->  | CA109: =+SUM(Fin!#REF!) ->  | CB109: =+SUM(Fin!#REF!) ->  | CC109: =+SUM(Fin!#REF!) ->  | CD109: =+SUM(Fin!#REF!) ->  | CE109: =+SUM(Fin!#REF!) ->  | CF109: =+SUM(Fin!#REF!) ->  | CG109: =+SUM(Fin!#REF!) ->  | CH109: =+SUM(Fin!#REF!) ->  | CI109: =+SUM(Fin!#REF!) ->  | CJ109: =+SUM(Fin!#REF!) ->  | CK109: =+SUM(Fin!#REF!) ->  | CL109: =+SUM(Fin!#REF!) ->  | CM109: =+SUM(Fin!#REF!) ->  | CN109: =+SUM(Fin!#REF!) -> 
D110: Equity injection | E110: € | J110: =+Eq!J53+Eq!J52 -> 0 | K110: =+Eq!K53 -> 0 | L110: =+Eq!L53 -> 0 | M110: =+Eq!M53 -> 0 | N110: =+Eq!N53 -> 0 | O110: =+Eq!O53 -> 0 | P110: =+Eq!P53 -> 0 | Q110: =+Eq!Q53 -> 0 | R110: =+Eq!R53 -> 0 | S110: =+Eq!S53 -> 0 | T110: =+Eq!T53 -> 0 | U110: =+Eq!U53 -> 0 | V110: =+Eq!V53 -> 0 | W110: =+Eq!W53 -> 0 | X110: =+Eq!X53 -> 0 | Y110: =+Eq!Y53 -> 0 | Z110: =+Eq!Z53 -> 0 | AA110: =+Eq!#REF! ->  | AB110: =+Eq!#REF! ->  | AC110: =+Eq!#REF! ->  | AD110: =+Eq!#REF! ->  | AE110: =+Eq!#REF! ->  | AF110: =+Eq!#REF! ->  | AG110: =+Eq!#REF! ->  | AH110: =+Eq!#REF! ->  | AI110: =+Eq!#REF! ->  | AJ110: =+Eq!#REF! ->  | AK110: =+Eq!#REF! ->  | AL110: =+Eq!#REF! ->  | AM110: =+Eq!#REF! ->  | AN110: =+Eq!#REF! ->  | AO110: =+Eq!#REF! ->  | AP110: =+Eq!#REF! ->  | AQ110: =+Eq!#REF! ->  | AR110: =+Eq!#REF! ->  | AS110: =+Eq!#REF! ->  | AT110: =+Eq!#REF! ->  | AU110: =+Eq!#REF! ->  | AV110: =+Eq!#REF! ->  | AW110: =+Eq!#REF! ->  | AX110: =+Eq!#REF! ->  | AY110: =+Eq!#REF! ->  | AZ110: =+Eq!#REF! ->  | BA110: =+Eq!#REF! ->  | BB110: =+Eq!#REF! ->  | BC110: =+Eq!#REF! ->  | BD110: =+Eq!#REF! ->  | BE110: =+Eq!#REF! ->  | BF110: =+Eq!#REF! ->  | BG110: =+Eq!#REF! ->  | BH110: =+Eq!#REF! ->  | BI110: =+Eq!#REF! ->  | BJ110: =+Eq!#REF! ->  | BK110: =+Eq!#REF! ->  | BL110: =+Eq!#REF! ->  | BM110: =+Eq!#REF! ->  | BN110: =+Eq!#REF! ->  | BO110: =+Eq!#REF! ->  | BP110: =+Eq!#REF! ->  | BQ110: =+Eq!#REF! ->  | BR110: =+Eq!#REF! ->  | BS110: =+Eq!#REF! ->  | BT110: =+Eq!#REF! ->  | BU110: =+Eq!#REF! ->  | BV110: =+Eq!#REF! ->  | BW110: =+Eq!#REF! ->  | BX110: =+Eq!#REF! ->  | BY110: =+Eq!#REF! ->  | BZ110: =+Eq!#REF! ->  | CA110: =+Eq!#REF! ->  | CB110: =+Eq!#REF! ->  | CC110: =+Eq!#REF! ->  | CD110: =+Eq!#REF! ->  | CE110: =+Eq!#REF! ->  | CF110: =+Eq!#REF! ->  | CG110: =+Eq!#REF! ->  | CH110: =+Eq!#REF! ->  | CI110: =+Eq!#REF! ->  | CJ110: =+Eq!#REF! ->  | CK110: =+Eq!#REF! ->  | CL110: =+Eq!#REF! ->  | CM110: =+Eq!#REF! ->  | CN110: =+Eq!#REF! -> 
D111: Dividends and capital reduction | E111: € | J111: =+Eq!J54+Eq!J48 -> 0 | K111: =+Eq!K54+Eq!K48 -> 0 | L111: =+Eq!L54+Eq!L48 -> 0 | M111: =+Eq!M54+Eq!M48 -> 0 | N111: =+Eq!N54+Eq!N48 -> 0 | O111: =+Eq!O54+Eq!O48 -> 0 | P111: =+Eq!P54+Eq!P48 -> 0 | Q111: =+Eq!Q54+Eq!Q48 -> 0 | R111: =+Eq!R54+Eq!R48 -> 0 | S111: =+Eq!S54+Eq!S48 -> 0 | T111: =+Eq!T54+Eq!T48 -> 0 | U111: =+Eq!U54+Eq!U48 -> 0 | V111: =+Eq!V54+Eq!V48 -> 0 | W111: =+Eq!W54+Eq!W48 -> 0 | X111: =+Eq!X54+Eq!X48 -> 0 | Y111: =+Eq!Y54+Eq!Y48 -> 0 | Z111: =+Eq!Z54+Eq!Z48 -> 0 | AA111: =+Eq!#REF!+Eq!#REF! ->  | AB111: =+Eq!#REF!+Eq!#REF! ->  | AC111: =+Eq!#REF!+Eq!#REF! ->  | AD111: =+Eq!#REF!+Eq!#REF! ->  | AE111: =+Eq!#REF!+Eq!#REF! ->  | AF111: =+Eq!#REF!+Eq!#REF! ->  | AG111: =+Eq!#REF!+Eq!#REF! ->  | AH111: =+Eq!#REF!+Eq!#REF! ->  | AI111: =+Eq!#REF!+Eq!#REF! ->  | AJ111: =+Eq!#REF!+Eq!#REF! ->  | AK111: =+Eq!#REF!+Eq!#REF! ->  | AL111: =+Eq!#REF!+Eq!#REF! ->  | AM111: =+Eq!#REF!+Eq!#REF! ->  | AN111: =+Eq!#REF!+Eq!#REF! ->  | AO111: =+Eq!#REF!+Eq!#REF! ->  | AP111: =+Eq!#REF!+Eq!#REF! ->  | AQ111: =+Eq!#REF!+Eq!#REF! ->  | AR111: =+Eq!#REF!+Eq!#REF! ->  | AS111: =+Eq!#REF!+Eq!#REF! ->  | AT111: =+Eq!#REF!+Eq!#REF! ->  | AU111: =+Eq!#REF!+Eq!#REF! ->  | AV111: =+Eq!#REF!+Eq!#REF! ->  | AW111: =+Eq!#REF!+Eq!#REF! ->  | AX111: =+Eq!#REF!+Eq!#REF! ->  | AY111: =+Eq!#REF!+Eq!#REF! ->  | AZ111: =+Eq!#REF!+Eq!#REF! ->  | BA111: =+Eq!#REF!+Eq!#REF! ->  | BB111: =+Eq!#REF!+Eq!#REF! ->  | BC111: =+Eq!#REF!+Eq!#REF! ->  | BD111: =+Eq!#REF!+Eq!#REF! ->  | BE111: =+Eq!#REF!+Eq!#REF! ->  | BF111: =+Eq!#REF!+Eq!#REF! ->  | BG111: =+Eq!#REF!+Eq!#REF! ->  | BH111: =+Eq!#REF!+Eq!#REF! ->  | BI111: =+Eq!#REF!+Eq!#REF! ->  | BJ111: =+Eq!#REF!+Eq!#REF! ->  | BK111: =+Eq!#REF!+Eq!#REF! ->  | BL111: =+Eq!#REF!+Eq!#REF! ->  | BM111: =+Eq!#REF!+Eq!#REF! ->  | BN111: =+Eq!#REF!+Eq!#REF! ->  | BO111: =+Eq!#REF!+Eq!#REF! ->  | BP111: =+Eq!#REF!+Eq!#REF! ->  | BQ111: =+Eq!#REF!+Eq!#REF! ->  | BR111: =+Eq!#REF!+Eq!#REF! ->  | BS111: =+Eq!#REF!+Eq!#REF! ->  | BT111: =+Eq!#REF!+Eq!#REF! ->  | BU111: =+Eq!#REF!+Eq!#REF! ->  | BV111: =+Eq!#REF!+Eq!#REF! ->  | BW111: =+Eq!#REF!+Eq!#REF! ->  | BX111: =+Eq!#REF!+Eq!#REF! ->  | BY111: =+Eq!#REF!+Eq!#REF! ->  | BZ111: =+Eq!#REF!+Eq!#REF! ->  | CA111: =+Eq!#REF!+Eq!#REF! ->  | CB111: =+Eq!#REF!+Eq!#REF! ->  | CC111: =+Eq!#REF!+Eq!#REF! ->  | CD111: =+Eq!#REF!+Eq!#REF! ->  | CE111: =+Eq!#REF!+Eq!#REF! ->  | CF111: =+Eq!#REF!+Eq!#REF! ->  | CG111: =+Eq!#REF!+Eq!#REF! ->  | CH111: =+Eq!#REF!+Eq!#REF! ->  | CI111: =+Eq!#REF!+Eq!#REF! ->  | CJ111: =+Eq!#REF!+Eq!#REF! ->  | CK111: =+Eq!#REF!+Eq!#REF! ->  | CL111: =+Eq!#REF!+Eq!#REF! ->  | CM111: =+Eq!#REF!+Eq!#REF! ->  | CN111: =+Eq!#REF!+Eq!#REF! -> 
D112: Financing cash flows | E112: € | J112: =SUM(J101:J111) -> 0 | K112: 0 | L112: 0 | M112: 0 | N112: 0 | O112: 0 | P112: 0 | Q112: 0 | R112: 0 | S112: 0 | T112: 0 | U112: 0 | V112: 0 | W112: 0 | X112: 0 | Y112: 0 | Z112: 0 | AP112: =SUM(AP101:AP111) -> 
D114: Variazione di cassa | E114: € | H114: =SUM(J114:CN114) ->  | J114: =J99+J112 ->  | Q114: -3642.401322 | R114: 31047.5922 | S114: 21114.77685 | T114: -8978.825177 | U114: 45292.34815 | V114: -4786.322843 | W114: 43557.71245 | X114: -5012.687343 | Y114: 44539.09405 | Z114: -5288.965615 | BV114: =BV99+BV112 -> 
D116: Cash balance - BoP | E116: € | J116: =I118 -> 301074.1246 | K116: =J118 ->  | BW116: =BV118 -> 
D117: Variazione di cassa | E117: € | H117: =SUM(J117:CN117) ->  | J117: =J114 ->  | Q117: -3642.401322 | R117: 31047.5922 | S117: 21114.77685 | T117: -8978.825177 | U117: 45292.34815 | V117: -4786.322843 | W117: 43557.71245 | X117: -5012.687343 | Y117: 44539.09405 | Z117: -5288.965615 | BV117: =BV114 -> 
D118: Cash balance - EoP | E118: € | I118: =+Eq!I55 -> 301074.1246 | J118: =SUM(J116:J117) ->  | K118: =SUM(K116:K117) ->  | L118: =SUM(L116:L117) ->  | M118: =SUM(M116:M117) ->  | BY118: =SUM(BY116:BY117) -> 
J120: =Eq!J64 -> -1938.028482 | K120: =Eq!K64 -> 6572.923637 | L120: =Eq!L64 -> 9068.972734 | M120: =Eq!M64 -> 45450.33434 | N120: =Eq!N64 -> 52707.25838 | O120: =Eq!O64 -> 89166.10757 | P120: =Eq!P64 -> 96475.89412 | Q120: =Eq!Q64 -> 128870.6784 | R120: =Eq!R64 -> 136212.7948 | S120: =Eq!S64 -> 169309.3411 | T120: =Eq!T64 -> 176728.8504 | U120: =Eq!U64 -> 210567.1033 | V120: =Eq!V64 -> 218043.5398 | W120: =Eq!W64 -> 252642.0419 | X120: =Eq!X64 -> 260176.8287 | Y120: =Eq!Y64 -> 295578.7093 | Z120: =Eq!Z64 -> 303149.1823 | AA120: =Eq!#REF! ->  | AB120: =Eq!#REF! ->  | AC120: =Eq!#REF! ->  | AD120: =Eq!#REF! ->  | AE120: =Eq!#REF! ->  | AF120: =Eq!#REF! ->  | AG120: =Eq!#REF! ->  | AH120: =Eq!#REF! ->  | AI120: =Eq!#REF! ->  | AJ120: =Eq!#REF! ->  | AK120: =Eq!#REF! ->  | AL120: =Eq!#REF! ->  | AM120: =Eq!#REF! ->  | AN120: =Eq!#REF! ->  | AO120: =Eq!#REF! ->  | AP120: =Eq!#REF! ->  | AQ120: =Eq!#REF! ->  | AR120: =Eq!#REF! ->  | AS120: =Eq!#REF! ->  | AT120: =Eq!#REF! ->  | AU120: =Eq!#REF! ->  | AV120: =Eq!#REF! ->  | AW120: =Eq!#REF! ->  | AX120: =Eq!#REF! ->  | AY120: =Eq!#REF! ->  | AZ120: =Eq!#REF! ->  | BA120: =Eq!#REF! ->  | BB120: =Eq!#REF! ->  | BC120: =Eq!#REF! ->  | BD120: =Eq!#REF! ->  | BE120: =Eq!#REF! ->  | BF120: =Eq!#REF! ->  | BG120: =Eq!#REF! ->  | BH120: =Eq!#REF! ->  | BI120: =Eq!#REF! ->  | BJ120: =Eq!#REF! ->  | BK120: =Eq!#REF! ->  | BL120: =Eq!#REF! ->  | BM120: =Eq!#REF! ->  | BN120: =Eq!#REF! ->  | BO120: =Eq!#REF! ->  | BP120: =Eq!#REF! ->  | BQ120: =Eq!#REF! ->  | BR120: =Eq!#REF! ->  | BS120: =Eq!#REF! ->  | BT120: =Eq!#REF! ->  | BU120: =Eq!#REF! ->  | BV120: =Eq!#REF! ->  | BW120: =Eq!#REF! ->  | BX120: =Eq!#REF! ->  | BY120: =Eq!#REF! ->  | BZ120: =Eq!#REF! ->  | CA120: =Eq!#REF! ->  | CB120: =Eq!#REF! ->  | CC120: =Eq!#REF! ->  | CD120: =Eq!#REF! ->  | CE120: =Eq!#REF! ->  | CF120: =Eq!#REF! ->  | CG120: =Eq!#REF! ->  | CH120: =Eq!#REF! ->  | CI120: =Eq!#REF! ->  | CJ120: =Eq!#REF! ->  | CK120: =Eq!#REF! ->  | CL120: =Eq!#REF! ->  | CM120: =Eq!#REF! ->  | CN120: =Eq!#REF! -> 
D121: Check | H121: =SUM(J121:CN121) ->  | J121: =J118-J120 ->  | BV121: =BV118-BV120 -> 

Sheet Disclaimer

Sheet Dashboard
A2: Project RED - Dashboard
A4: 1 | B4: Macro | J4: =A4+1 -> 2 | K4: Fonti e Impieghi | U4: 3 | V4: Ratio
U5: =U4+1 -> 4
B6: =A4+0.1 -> 1.1 | C6: Macro | K6: =J4+0.1 -> 2.1 | L6: Fonti e impieghi | V6: =+U4+0.1 -> 3.1 | W6: Progetto
X7: IRR Progetto | Y7: =Ratios!G18 -> 4.302196611
L8: Fonti e Impieghi | X8: WACC (@28.02.22) | Y8: ='Stima WACC'!B27 -> 0.0829
L9: Fonti | N9: % | P9: Impieghi | Q9: €mm | R9: % | X9: Payback period del Progetto | Y9: =Ratios!G21 -> 0.5 | Z9: anni
L10: =+'Fonti - Impieghi'!D32 -> Equity | M10: =+'Fonti - Impieghi'!H32/1000 -> 301.0741246 | N10: =+M10/$M$22 -> 1 | P10: =+'Fonti - Impieghi'!D20 -> Capex | Q10: =+'Fonti - Impieghi'!H20/1000 -> 301.0741246 | R10: =+Q10/$Q$22 -> 1
L11: =+'Fonti - Impieghi'!D33 -> Finanziamento soci | M11: =+'Fonti - Impieghi'!H33/1000 -> 0 | N11: =+M11/$M$22 -> 0 | P11: =+'Fonti - Impieghi'!D23 -> FCFO (escl. IVA e Capex) | Q11: =+'Fonti - Impieghi'!H23/1000 -> -161.2042445 | R11: =+Q11/$Q$22 -> -0.5354304184 | V11: =+V6+0.1 -> 3.2 | W11: Equity
L12: Debito Fase 1 | M12: =+'Fonti - Impieghi'!H34/1000 -> 0 | N12: =+M12/$M$22 -> 0 | P12: =+'Fonti - Impieghi'!D22 -> Costi finanziari | Q12: =+'Fonti - Impieghi'!H22/1000+'Fonti - Impieghi'!H21/1000 -> 0 | R12: =+Q12/$Q$22 -> 0 | X12: IRR Equity | Y12: =Ratios!G27 -> 
L13: =+'Fonti - Impieghi'!D35 -> Debito Fase 2 | M13: =+'Fonti - Impieghi'!H35/1000 -> 0 | N13: =+M13/$M$22 -> 0 | P13: Cassa finale | Q13: =+'Fonti - Impieghi'!H43/1000 -> 136.2127948 | R13: =+Q13/$Q$22 -> 0.452422788 | X13: Payback Period Equity | Y13: =Ratios!G30 -> 0 | Z13: anni
L14: Cassa iniziale | M14: =+'Fonti - Impieghi'!H41/1000 -> 0 | N14: =+M14/$M$22 -> 0 | P14: Dividendi | Q14: =+'Fonti - Impieghi'!H24/1000 -> 0 | R14: =+Q14/$Q$22 -> 0
V15: =V11+0.1 -> 3.3 | W15: Debito
C16: Macro check | X16: Min DSCR | Y16: =Fin!F109 -> 0
C17: Macro | E17: =+Total_Check -> OK | X17: Durata finanziamento | Y17: =+Fin!H78 -> 0 | Z17: anni
C18: Prospetti semestrali | E18: =+'CE-SP-CF semestrale'!A1 -> OK | L18: Totale fonti escl. IVA | M18: =+SUM(M10:M16) -> 301.0741246 | N18: =M18/M$22 -> 1 | P18: Totale impieghi escl. IVA | Q18: =+SUM(Q10:Q16) -> 276.0826749 | R18: =Q18/Q$22 -> 0.9169923697 | X18: Scadenza | Y18: =+In!G404 -> 1900-12-29
C19: Prospetti annuali | E19: =+'CE-SP-CF annuale'!A1 -> OK
C20: Fonti - impieghi | E20: =+'Fonti - Impieghi'!A1 -> OK | L20: Linea IVA | M20: =+SUM('Fonti - Impieghi'!H37:H38)/1000 -> 0 | N20: =+M20/$M$22 -> 0 | P20: IVA | Q20: =+SUM('Fonti - Impieghi'!H26:H27)/1000 -> 24.99144964 | R20: =+Q20/Q22 -> 0.08300763034 | V20: =V15+0.1 -> 3.4 | W20: Area di investimento | Y20: Investimento | Z20: Ricavi | AA20: Cash on cash | AB20: Rend. medio annuo | AC20: Payback (anni)
Y21: =Investimenti!E19/1000 -> 0 | Z21: =Investimenti!F19/1000 -> 0 | AA21: =Investimenti!G19/1000 -> 0 | AB21: =Investimenti!H19/1000 -> 0 | AC21: =Investimenti!I19/1000 -> 0
L22: Totale | M22: =+M18+M20 -> 301.0741246 | N22: =M22/M$22 -> 1 | P22: Totale | Q22: =+Q18+Q20 -> 301.0741246 | R22: =Q22/Q$22 -> 1 | Y22: =(Investimenti!E20+Investimenti!E21)/1000 -> 0 | Z22: =(Investimenti!F20+Investimenti!F21)/1000 -> 0 | AA22: =(Investimenti!G20+Investimenti!G21)/1000 -> 0 | AB22: =(Investimenti!H20+Investimenti!H21)/1000 -> 0 | AC22: =(Investimenti!I20+Investimenti!I21)/1000 -> 0

Sheet Inputs>>

Sheet Stima WACC
A1: Stima WACC | E1: Fonte: Damoradan 14 dicembre 2022
A3: Formule ed Input
A5: WACC= | B5: (E/(E+D))*Ke + (D/E+D)*Kd)
A7: Ke= | B7: rf + beta*(erp)
A9: rf= | B9: Btp a 10 anni
A11: btp 10 anni= | B11: 0.0181 | E11: fonte: Asta BTP 10 anni del 28.10.2022
A13: Beta= | B13: 1.08 | C13: (damodaran - Recreation - Business & Consumer Services)
A15: erp= | B15: 0.06 | C15: (damodaran Equity Risk Premium febbraio 2022)
A17: Kd= | B17: 0.0625 | C17: (damodaran - costo del debito - Febbraio 2022)
A19: Calcoli
A21: Ke (btp 10 a)= | B21: =+B11+B13*B15 -> 0.0829
A24: E= | B24: =Eq!I55/1000 -> 301.0741246 | C24: K€
A25: D= | B25: ='Mutuo fase 1'!H2/1000 -> 0 | C25: K€
A27: WACC btp 10a= | B27: =+B24/(B24+B25)*B21+B25/(B24+B25)*B17 -> 0.0829

Sheet In
A2: PEF CEM - Input
D4: Scenario selezionato | G4: ="Scenario "&1 -> Scenario 1 | I4: Scenario 1
D5: Scenari | G5: =MATCH(G4,I4:I4,0) -> 1 | I5: 1
A7: 1 | B7: Modello
D9: Data inizio modello | E9: data | G9: =INDEX(I9:I9,,G$5) -> 2024-12-01 | I9: 2024-12-01
D10: Mesi nel semestre | E10: mese | G10: =INDEX(I10:I10,,G$5) -> 6 | I10: 6
D11: Semestri nell'anno | E11: # | G11: =INDEX(I11:I11,,G$5) -> 2 | I11: 2
D13: Termine dati storici | E13: data | G13: =INDEX(I13:I13,,G$5) -> 2023-12-31 | I13: 2023-12-31
D15: Ottimizzazione del modello | E15: # | G15: =INDEX(I15:I15,,G$5) -> 2 | I15: 2
A17: =A7+1 -> 2 | B17: Macroeconomici
B19: =A17+0.1 -> 2.1 | C19: Inflazione | I19: =+I4 -> Scenario 1
D20: Inflazione | E20: testo | G20: =INDEX(I20:I20,,G$5) -> Inflazione | I20: Inflazione
D21: Mese incremento inflativo | E21: =$E$10 -> mese | G21: =INDEX(I21:I21,,G$5) -> 1 | I21: 1
A23: =A17+1 -> 3 | B23: Concessione
B25: =A23+0.1 -> 3.1 | C25: Timing
D26: Inizio concessione | E26: =$E$9 -> data | G26: =INDEX(I26:I26,,G$5) -> 2024-12-01 | I26: =I9 -> 2024-12-01
D27: Termine concessione | E27: =$E$9 -> data | G27: =INDEX(I27:I27,,G$5) -> 2034-11-30 | I27: 2034-11-30
D29: Inizio periodo di operatività | E29: =$E$9 -> data | G29: =G26 -> 2024-12-01
A31: =A23+1 -> 4 | B31: Ricavi
B33: =A31+0.1 -> 4.1 | C33: Comune di Salerano
C34: Ricavi annuali da #inizio concessione
D35: Ricavi servizi igiene urbana 2024 | E35: € | G35: =INDEX(I35:I35,,G$5) -> 0 | I35: 0
D36: Ricavi servizi igiene urbana 2025 | E36: € | G36: 0 | I36: 0
D37: #Abitanti | E37: # | G37: 0 | I37: 0
D38: Maggiorazione | E38: € | G38: 0 | I38: 0
D39: Da distribuire | E39: € | G39: 0 | I39: 0
C41: Ricavi annuali da CONAI
D42: Ricavi da CONAI 2024 | G42: =INDEX(I42:I42,,G$5) -> 33759.39 | I42: =I43*I44+I45*I46+I47*I48+I49*I50+I51*I52+I53*I54+I55*I56+I57*I58+I59*I60+I61*I62+I63*I64+I65*I66+I67*I68+I69*I70+I71*I72+I73*I74+I75*I76 -> 33759.39
D43: Multipck | E43: # | G43: 59.5 | I43: ='[1]Ricavi Conai'!$D$3 -> 59.5
D44: Multipck | E44: € | G44: 235 | I44: ='[1]Ricavi Conai'!$C$3 -> 235
D45: Carta e cartone | E45: # | G45: 97.35 | I45: ='[1]Ricavi Conai'!$D$4 -> 97.35
D46: Carta e cartone | E46: € | G46: 100 | I46: ='[1]Ricavi Conai'!$C$4 -> 100
D47: Cartone | E47: # | G47: 0 | I47: ='[1]Ricavi Conai'!$D$5 -> 0
D48: Cartone | E48: € | G48: 132 | I48: ='[1]Ricavi Conai'!$C$5 -> 132
D49: Vetro | E49: # | G49: 100.71 | I49: ='[1]Ricavi Conai'!$D$6 -> 100.71
D50: Vetro | E50: € | G50: 70 | I50: ='[1]Ricavi Conai'!$C$6 -> 70
D51: Vetro in lastre | E51: # | G51: 0 | I51: ='[1]Ricavi Conai'!$D$7 -> 0
D52: Vetro in lastre | E52: € | G52: 20 | I52: ='[1]Ricavi Conai'!$C$7 -> 20
D53: Polisterolo | E53: # | G53: 0 | I53: ='[1]Ricavi Conai'!$D$8 -> 0
D54: Polisterolo | E54: € | G54: 90.64 | I54: ='[1]Ricavi Conai'!$C$8 -> 90.64
D55: Altre plastiche | E55: # | G55: 0 | I55: ='[1]Ricavi Conai'!$D$9 -> 0
D56: Altre plastiche | E56: € | G56: 90.64 | I56: ='[1]Ricavi Conai'!$C$9 -> 90.64
D57: Ferro | E57: # | G57: 18.8 | I57: ='[1]Ricavi Conai'!$D$19 -> 18.8
D58: Ferro | E58: € | G58: 115 | I58: ='[1]Ricavi Conai'!$C$19 -> 115
D59: Frigoriferi | E59: # | G59: 3.93 | I59: ='[1]Ricavi Conai'!$D$10 -> 3.93
D60: Frigoriferi | E60: € | G60: 29 | I60: ='[1]Ricavi Conai'!$C$10 -> 29
D61: Grandi bianchi | E61: # | G61: 5.23 | I61: ='[1]Ricavi Conai'!$D$11 -> 5.23
D62: Grandi bianchi | E62: € | G62: 30 | I62: ='[1]Ricavi Conai'!$C$11 -> 30
D63: Televisori | E63: # | G63: 1.55 | I63: ='[1]Ricavi Conai'!$D$12 -> 1.55
D64: Televisori | E64: € | G64: 25 | I64: ='[1]Ricavi Conai'!$C$12 -> 25
D65: Compomenti elettronici | E65: # | G65: 4.73 | I65: ='[1]Ricavi Conai'!$D$13 -> 4.73
D66: Compomenti elettronici | E66: € | G66: 54 | I66: ='[1]Ricavi Conai'!$C$13 -> 54
D67: Neon | E67: # | G67: 0.15 | I67: ='[1]Ricavi Conai'!$D$14 -> 0.15
D68: Neon | E68: € | G68: 105 | I68: ='[1]Ricavi Conai'!$C$14 -> 105
D69: Pile | E69: # | G69: 0.14 | I69: ='[1]Ricavi Conai'!$D$15 -> 0.14
D70: Pile | E70: € | G70: 170 | I70: ='[1]Ricavi Conai'!$C$15 -> 170
D71: Accumulatori di piombo | E71: # | G71: 0 | I71: ='[1]Ricavi Conai'!$D$16 -> 0
D72: Accumulatori di piombo | E72: € | G72: 0 | I72: ='[1]Ricavi Conai'!$C$16 -> 0
D73: Olio vegetale | E73: # | G73: 0.48 | I73: ='[1]Ricavi Conai'!$D$17 -> 0.48
D74: Olio vegetale | E74: € | G74: 470 | I74: ='[1]Ricavi Conai'!$C$17 -> 470
D75: Olio minerale | E75: # | G75: 0.55 | I75: ='[1]Ricavi Conai'!$D$18 -> 0.55
D76: Olio minerale | E76: € | G76: 0 | I76: ='[1]Ricavi Conai'!$C$18 -> 0
D78: Ricavi da CONAI 2025 | G78: =INDEX(I78:I78,,G$5) -> 42548.165 | I78: =I79*I80+I81*I82+I83*I84+I85*I86+I87*I88+I89*I90+I91*I92+I93*I94+I95*I96+I97*I98+I99*I100+I101*I102+I103*I104+I105*I106+I107*I108+I109*I110+I111*I112 -> 42548.165
D79: Multipck | E79: # | G79: 93.065 | I79: ='[1]Ricavi Conai'!$F$3 -> 93.065
D80: Multipck | E80: € | G80: 235 | I80: =I44 -> 235
D81: Carta e cartone | E81: # | G81: 106.36 | I81: ='[1]Ricavi Conai'!$F$4 -> 106.36
D82: Carta e cartone | E82: € | G82: 100 | I82: 100
D83: Cartone | E83: # | G83: 0 | I83: ='[1]Ricavi Conai'!$F$5 -> 0
D84: Cartone | E84: € | G84: 132 | I84: 132
D85: Vetro | E85: # | G85: 100.71 | I85: ='[1]Ricavi Conai'!$F$6 -> 100.71
D86: Vetro | E86: € | G86: 70 | I86: 70
D87: Vetro in lastre | E87: # | G87: 0 | I87: ='[1]Ricavi Conai'!$F$7 -> 0
D88: Vetro in lastre | E88: € | G88: 20 | I88: 20
D89: Polisterolo | E89: # | G89: 0 | I89: ='[1]Ricavi Conai'!$F$8 -> 0
D90: Polisterolo | E90: € | G90: 90.64 | I90: 90.64
D91: Altre plastiche | E91: # | G91: 0 | I91: ='[1]Ricavi Conai'!$F$9 -> 0
D92: Altre plastiche | E92: € | G92: 90.64 | I92: 90.64
D93: Ferro | E93: # | G93: 18.8 | I93: ='[1]Ricavi Conai'!$F$19 -> 18.8
D94: Ferro | E94: € | G94: 115 | I94: 115
D95: Frigoriferi | E95: # | G95: 3.93 | I95: ='[1]Ricavi Conai'!$F$10 -> 3.93
D96: Frigoriferi | E96: € | G96: 29 | I96: 29
D97: Grandi bianchi | E97: # | G97: 5.23 | I97: ='[1]Ricavi Conai'!$F$11 -> 5.23
D98: Grandi bianchi | E98: € | G98: 30 | I98: 30
D99: Televisori | E99: # | G99: 1.55 | I99: ='[1]Ricavi Conai'!$F$12 -> 1.55
D100: Televisori | E100: € | G100: 25 | I100: 25
D101: Compomenti elettronici | E101: # | G101: 4.73 | I101: ='[1]Ricavi Conai'!$F$13 -> 4.73
D102: Compomenti elettronici | E102: € | G102: 54 | I102: 54
D103: Neon | E103: # | G103: 0.15 | I103: ='[1]Ricavi Conai'!$F$14 -> 0.15
D104: Neon | E104: € | G104: 105 | I104: 105
D105: Pile | E105: # | G105: 0.14 | I105: ='[1]Ricavi Conai'!$F$15 -> 0.14
D106: Pile | E106: € | G106: 170 | I106: 170
D107: Accumulatori di piombo | E107: # | G107: 0 | I107: ='[1]Ricavi Conai'!$F$16 -> 0
D108: Accumulatori di piombo | E108: € | G108: 0 | I108: 0
D109: Olio vegetale | E109: # | G109: 0.48 | I109: ='[1]Ricavi Conai'!$F$17 -> 0.48
D110: Olio vegetale | E110: € | G110: 470 | I110: 470
D111: Olio minerale | E111: # | G111: 0.55 | I111: ='[1]Ricavi Conai'!$F$18 -> 0.55
D112: Olio minerale | E112: € | G112: 0 | I112: 0
C114: Data di fine
D115: =D35 -> Ricavi servizi igiene urbana 2024 | E115: date | G115: =INDEX(I115:I115,,G$5) -> 2034-11-30 | I115: =I$27 -> 2034-11-30
D116: =D36 -> Ricavi servizi igiene urbana 2025 | E116: date | G116: 2034-11-30 | I116: =I$27 -> 2034-11-30
D117: Cartellonistica pubblicitaria | E117: date | G117: =INDEX(I117:I117,,G$5) -> 2034-11-30 | I117: 2034-11-30
D118: =D38 -> Maggiorazione | E118: date | G118: 2034-11-30 | I118: 2034-11-30
D119: =D39 -> Da distribuire | E119: date | G119: 2034-11-30 | I119: 2034-11-30
C121: Indicizzazione all'inflazione
D122: =D35 -> Ricavi servizi igiene urbana 2024 | E122: flag | G122: =INDEX(I122:I122,,G$5) -> 1 | I122: 1
D123: =D36 -> Ricavi servizi igiene urbana 2025 | E123: flag | G123: 1 | I123: 1
D124: =D37 -> #Abitanti | E124: flag | G124: 1 | I124: 1
D125: =D38 -> Maggiorazione | E125: flag | G125: 1 | I125: 1
D126: =D39 -> Da distribuire | E126: flag | G126: 1 | I126: 1
C128: Percentuale di indicizzazione
D129: =D35 -> Ricavi servizi igiene urbana 2024 | E129: % | G129: =INDEX(I129:I129,,G$5) -> 1 | I129: 1
D130: =D36 -> Ricavi servizi igiene urbana 2025 | E130: % | G130: 1 | I130: 1
D131: =D37 -> #Abitanti | E131: % | G131: =INDEX(I131:I131,,G$5) -> 1 | I131: 1
D132: =D38 -> Maggiorazione | E132: % | G132: 1 | I132: 1
D133: =D39 -> Da distribuire | E133: % | G133: 1 | I133: 1
B135: =B33+0.1 -> 4.2 | C135: Comune di XXXXX
C136: Ricavi annuali da #inizio concessione
D137: Ricavi servizi igiene urbana | E137: € | G137: =INDEX(I137:I137,,G$5) -> 0 | I137: 0
D138: Ricavi da smaltimenti | E138: € | G138: 0 | I138: 0
D139: #Abitanti | E139: # | G139: 0 | I139: 0
D140: Maggiorazione | E140: € | G140: 0 | I140: 0
D141: Da distribuire | E141: € | G141: 0 | I141: 0
C143: Data di fine
D144: =D137 -> Ricavi servizi igiene urbana | E144: date | G144: =INDEX(I144:I144,,G$5) -> 2034-11-30 | I144: =I$27 -> 2034-11-30
D145: =D138 -> Ricavi da smaltimenti | E145: date | G145: 2034-11-30 | I145: =I$27 -> 2034-11-30
D146: Cartellonistica pubblicitaria | E146: date | G146: =INDEX(I146:I146,,G$5) -> 2034-11-30 | I146: 2034-11-30
D147: =D140 -> Maggiorazione | E147: date | G147: =INDEX(I147:I147,,G$5) -> 2034-11-30 | I147: 2034-11-30
D148: =D141 -> Da distribuire | E148: date | G148: 2034-11-30 | I148: 2034-11-30
C150: Indicizzazione all'inflazione
D151: =D137 -> Ricavi servizi igiene urbana | E151: flag | G151: =INDEX(I151:I151,,G$5) -> 1 | I151: 1
D152: =D138 -> Ricavi da smaltimenti | E152: flag | G152: 1 | I152: 1
D153: =D139 -> #Abitanti | E153: flag | G153: 1 | I153: 1
D154: =D140 -> Maggiorazione | E154: flag | G154: 1 | I154: 1
D155: =D141 -> Da distribuire | E155: flag | G155: 1 | I155: 1
C157: Percentuale di indicizzazione
D158: =D137 -> Ricavi servizi igiene urbana | E158: % | G158: =INDEX(I158:I158,,G$5) -> 1 | I158: 1
D159: =D138 -> Ricavi da smaltimenti | E159: % | G159: 1 | I159: 1
D160: =D139 -> #Abitanti | E160: % | G160: =INDEX(I160:I160,,G$5) -> 1 | I160: 1
D161: =D140 -> Maggiorazione | E161: % | G161: =INDEX(I161:I161,,G$5) -> 1 | I161: 1
D162: =D141 -> Da distribuire | E162: % | G162: 1 | I162: 1
A165: =A31+1 -> 5 | B165: Costi
B167: =+A165+0.1 -> 5.1 | C167: Acquisti beni e forniture
C168: Costo annuo
D169: Compattatori | E169: # | G169: =INDEX(I169:I169,,G$5) -> 0.3 | I169: ='[2]Acquisto Beni e forniture'!B5 -> 0.3
D170: Costipatori | I170: ='[2]Acquisto Beni e forniture'!B6 -> 0
D171: Vasche | E171: # | G171: =INDEX(I171:I171,,G$5) -> 0.5 | I171: ='[2]Acquisto Beni e forniture'!B7 -> 0.5
D172: Porter (manuale) | E172: # | G172: =INDEX(I172:I172,,G$5) -> 0 | I172: ='[2]Acquisto Beni e forniture'!B8 -> 0
D173: Scarrabile con ragno | E173: # | G173: 0.1 | I173: ='[2]Acquisto Beni e forniture'!B9 -> 0.1
D174: Spazzatrice | E174: # | G174: 0.1 | I174: ='[2]Acquisto Beni e forniture'!B10 -> 0.1
C176: Carburante
D177: =D169 -> Compattatori | E177: € | G177: =INDEX(I177:I177,,G$5) -> 16355.94714 | I177: ='[2]Base costo Mezzi e Personale'!H12 -> 16355.94714
D178: Costipatori | G178: =INDEX(I178:I178,,G$5) -> 8346.496815 | I178: ='[2]Base costo Mezzi e Personale'!H13 -> 8346.496815
D179: Vasche | E179: € | G179: =INDEX(I179:I179,,G$5) -> 4680 | I179: ='[2]Base costo Mezzi e Personale'!H14 -> 4680
D180: Porter (manuale) | E180: € | G180: =INDEX(I180:I180,,G$5) -> 2730 | I180: ='[2]Base costo Mezzi e Personale'!H15 -> 2730
D181: Scarrabile con ragno | E181: € | G181: =INDEX(I181:I181,,G$5) -> 28311.11111 | I181: ='[2]Base costo Mezzi e Personale'!H16 -> 28311.11111
D182: Spazzatrice | E182: € | G182: 15724.8 | I182: ='[2]Base costo Mezzi e Personale'!H17 -> 15724.8
C184: Indicizzazione all'inflazione
D185: Carburante | E185: flag | G185: =INDEX(I185:I185,,G$5) -> 1 | I185: 1
C187: Percentuale di indicizzazione
D188: =D185 -> Carburante | E188: % | G188: =INDEX(I188:I188,,G$5) -> 1 | I188: 1
C190: Pneumatici
D191: =D177 -> Compattatori | E191: € | G191: =INDEX(I191:I191,,G$5) -> 1750 | I191: 1750
D193: =D179 -> Vasche | E193: € | G193: =INDEX(I193:I193,,G$5) -> 1000 | I193: 1000
D194: =D180 -> Porter (manuale) | E194: € | G194: =INDEX(I194:I194,,G$5) -> 600 | I194: 600
D195: =D181 -> Scarrabile con ragno | E195: € | G195: =INDEX(I195:I195,,G$5) -> 375 | I195: 375
D196: =D182 -> Spazzatrice | E196: € | G196: 0 | I196: 0
C198: Indicizzazione all'inflazione
D199: Pneumatici | E199: flag | G199: =INDEX(I199:I199,,G$5) -> 1 | I199: 1
C201: Percentuale di indicizzazione
D202: =D199 -> Pneumatici | E202: % | G202: =INDEX(I202:I202,,G$5) -> 1 | I202: 1
B205: =B167+0.1 -> 5.2 | C205: Costi per servizi vari
C206: Manutenzioni ordinarie
D207: =D193 -> Vasche | E207: € | G207: =INDEX(I207:I207,,G$5) -> 4375 | I207: 4375
D208: =D194 -> Porter (manuale) | E208: € | G208: =INDEX(I208:I208,,G$5) -> 1000 | I208: 1000
D209: Scarrabile con ragno | E209: € | G209: =INDEX(I209:I209,,G$5) -> 1000 | I209: 1000
D210: Spazzatrice | E210: € | G210: =INDEX(I210:I210,,G$5) -> 375 | I210: 375
D211: 0 | E211: € | G211: 14249.43 | I211: 14249.43
C213: Indicizzazione all'inflazione
D214: =C206 -> Manutenzioni ordinarie | E214: flag | G214: =INDEX(I214:I214,,G$5) -> 1 | I214: 1
C216: Percentuale di indicizzazione
D217: =D214 -> Manutenzioni ordinarie | E217: % | G217: =INDEX(I217:I217,,G$5) -> 1 | I217: 1
C219: Manutenzioni straordinarie
D220: =D207 -> Vasche | E220: € | G220: =INDEX(I220:I220,,G$5) -> 2975 | I220: 2975
D221: =D208 -> Porter (manuale) | E221: € | G221: =INDEX(I221:I221,,G$5) -> 800 | I221: 800
D222: Scarrabile con ragno | E222: € | G222: =INDEX(I222:I222,,G$5) -> 1400 | I222: 1400
D223: Spazzatrice | E223: € | G223: =INDEX(I223:I223,,G$5) -> 255 | I223: 255
D224: 0 | E224: € | G224: 1249.95 | I224: 1249.95
C226: Indicizzazione all'inflazione
D227: =C219 -> Manutenzioni straordinarie | E227: flag | G227: =INDEX(I227:I227,,G$5) -> 1 | I227: 1
C229: Percentuale di indicizzazione
D230: =D227 -> Manutenzioni straordinarie | E230: % | G230: =INDEX(I230:I230,,G$5) -> 1 | I230: 1
C232: Bolli e Assicurazioni
D233: =D220 -> Vasche | E233: € | G233: =INDEX(I233:I233,,G$5) -> 5250 | I233: 5250
D234: =D221 -> Porter (manuale) | E234: € | G234: =INDEX(I234:I234,,G$5) -> 1300 | I234: 1300
D235: Scarrabile con ragno | E235: € | G235: =INDEX(I235:I235,,G$5) -> 1100 | I235: 1100
D236: Spazzatrice | E236: € | G236: =INDEX(I236:I236,,G$5) -> 360 | I236: 360
D237: 0 | E237: € | G237: 2500 | I237: 2500
C239: Indicizzazione all'inflazione
D240: =C232 -> Bolli e Assicurazioni | E240: flag | G240: =INDEX(I240:I240,,G$5) -> 1 | I240: 1
C242: Percentuale di indicizzazione
... 148 more rows

Sheet In_Lin
A2: Project CEM - Input Lineari
D4: BoP | J4: =In!G9 -> 2024-12-01 | K4: =J5+1 -> 2025-01-01 | L4: =K5+1 -> 2025-07-01 | M4: 2026-01-01 | N4: 2026-07-01 | O4: 2027-01-01 | P4: 2027-07-01 | Q4: 2028-01-01 | R4: 2028-07-01 | S4: 2029-01-01 | T4: 2029-07-01 | U4: 2030-01-01 | V4: 2030-07-01 | W4: 2031-01-01 | X4: 2031-07-01 | Y4: 2032-01-01 | Z4: 2032-07-01 | AA4: =Z5+1 -> 2033-01-01 | AB4: =AA5+1 -> 2033-07-01 | AC4: =AB5+1 -> 2034-01-01 | AD4: =AC5+1 -> 2034-07-01
D5: EoP | G5: =In!G10 -> 6 | J5: 2024-12-31 | K5: =EOMONTH(K4,$G5-1) -> 2025-06-30 | L5: 2025-12-31 | M5: 2026-06-30 | N5: 2026-12-31 | O5: 2027-06-30 | P5: 2027-12-31 | Q5: 2028-06-30 | R5: 2028-12-31 | S5: 2029-06-30 | T5: 2029-12-31 | U5: 2030-06-30 | V5: 2030-12-31 | W5: 2031-06-30 | X5: 2031-12-31 | Y5: 2032-06-30 | Z5: =EOMONTH(Z4,$G5-1) -> 2032-12-31 | AA5: =EOMONTH(AA4,$G5-1) -> 2033-06-30 | AB5: 2033-12-31 | AC5: 2034-06-30 | AD5: =EOMONTH(AD4,$G5-2) -> 2034-11-30
D6: Giorni nell'anno | J6: =SUMIF($J$8:$AD$8,J$8,$J$7:$AD$7) -> 31 | K6: =SUMIF($J$8:$AD$8,K$8,$J$7:$AD$7) -> 365 | L6: =SUMIF($J$8:$AD$8,L$8,$J$7:$AD$7) -> 365 | M6: 365 | N6: 365 | O6: 365 | P6: 365 | Q6: 366 | R6: 366 | S6: 365 | T6: 365 | U6: 365 | V6: 365 | W6: 365 | X6: 365 | Y6: 366 | Z6: 366 | AA6: 365 | AB6: 365 | AC6: 334 | AD6: 334
D7: Giorni nel periodo | J7: =J5-J4+1 -> 31 | K7: =K5-K4+1 -> 181 | L7: 184 | M7: 181 | N7: 184 | O7: 181 | P7: 184 | Q7: 182 | R7: 184 | S7: 181 | T7: 184 | U7: 181 | V7: 184 | W7: 181 | X7: 184 | Y7: 182 | Z7: 184 | AA7: =AA5-AA4+1 -> 181 | AB7: 184 | AC7: 181 | AD7: 153
D8: Anno | J8: =YEAR(J5) -> 2024 | K8: =YEAR(K5) -> 2025 | L8: 2025 | M8: 2026 | N8: 2026 | O8: 2027 | P8: 2027 | Q8: 2028 | R8: 2028 | S8: 2029 | T8: 2029 | U8: 2030 | V8: 2030 | W8: 2031 | X8: 2031 | Y8: 2032 | Z8: 2032 | AA8: =YEAR(AA5) -> 2033 | AB8: 2033 | AC8: 2034 | AD8: 2034
A10: 1 | B10: Dati macroeconomici e di mercato
B12: =A10+0.1 -> 1.1 | C12: Inflazione
D13: Scenario selezionato | G13: =In!G20 -> Inflazione
J14: 2023 | K14: =J14+1 -> 2024 | L14: 2025 | M14: 2026 | N14: 2027 | O14: 2028 | P14: 2029 | Q14: 2030 | R14: 2031 | S14: 2032 | T14: =S14+1 -> 2033 | U14: =T14+1 -> 2034
D15: Inflazione | E15: % | J15: 0 | K15: 0.025 | L15: 0.025 | M15: 0.025 | N15: 0.025 | O15: 0.025 | P15: 0.025 | Q15: 0.025 | R15: 0.025 | S15: 0.025 | T15: 0.025 | U15: 0.025
D16: [NULL] | E16: %
D17: [NULL] | E17: %
D18: Selected scenario | E18: % | G18: =MATCH(G13,In_Lin!D15:D17,0) -> 1 | J18: =INDEX(J15:J17,$G18) -> 0 | K18: 0.025 | L18: 0.025 | M18: 0.025 | N18: 0.025 | O18: 0.025 | P18: 0.025 | Q18: 0.025 | R18: 0.025 | S18: =INDEX(S15:S17,$G18) -> 0.025 | T18: 0.025 | U18: 0.025
B20: =B12+0.1 -> 1.2 | C20: EURIBOR
D21: EURIBOR 6-month @04/10/2019 | E21: % | J21: -0.0006815106044 | K21: -0.0006815106044 | L21: -0.00237 | M21: -0.0044472 | N21: -0.0044266 | O21: -0.0049556 | P21: -0.0050772 | Q21: -0.0049848 | R21: -0.0047011 | S21: -0.0043573 | T21: -0.0039971 | U21: -0.0036257 | V21: -0.003061 | W21: -0.0024877 | X21: -0.0018932 | Y21: -0.0012471 | Z21: -0.0005401 | AA21: 0.9994599 | AB21: 1.9994599 | AC21: 2.9994599 | AD21: 3.9994599
A23: =A10+1 -> 2 | B23: Ricavi
B25: =A23+0.1 -> 2.1 | C25: Canone contratti in essere
D26: PR5 | E26: € | J26: 0 | K26: 0 | L26: 0 | M26: 0 | N26: 0 | O26: 0 | P26: 0 | Q26: 0 | R26: 0 | S26: 0 | T26: 0 | U26: 0 | V26: 0 | W26: 0 | X26: 0 | Y26: 0
A28: =+A23+1 -> 3 | B28: Prop. and facility mgmt
B30: =A28+0.1 -> 3.1 | C30: Prop. and facility mgmt
D31: Costo | E31: € | J31: 0 | K31: 30000 | L31: 30000 | M31: 30000 | N31: 30000 | O31: 43500 | P31: =O31 -> 43500 | Q31: =P31 -> 43500 | R31: =Q31 -> 43500 | S31: =R31 -> 43500 | T31: 43500 | U31: 43500 | V31: 43500 | W31: 43500 | X31: 43500 | Y31: 43500 | Z31: 43500 | AA31: =Z31 -> 43500 | AB31: =AA31 -> 43500 | AC31: =AB31 -> 43500 | AD31: =AC31 -> 43500
D32: Ribaltamento costo | E32: € | G32: 0.3 | J32: 0 | K32: =+K31*$G$32 -> 9000 | L32: 9000 | M32: 9000 | N32: 9000 | O32: 13050 | P32: 13050 | Q32: 13050 | R32: 13050 | S32: 13050 | T32: 13050 | U32: 13050 | V32: 13050 | W32: 13050 | X32: 13050 | Y32: 13050 | Z32: 13050 | AA32: =+AA31*$G$32 -> 13050 | AB32: 13050 | AC32: 13050 | AD32: 13050
A34: =A23+1 -> 3 | B34: Fotovoltaico
B36: =A34+0.1 -> 3.1 | C36: Baseload Centro-Sud Italia
C37: High | E37: €/MWh
C38: Central | E38: €/MWh
C39: Low | E39: €/MWh
A41: =+A34+1 -> 4 | B41: Piano ammortamento Debito Fase 1
B43: =A41+0.1 -> 4.1 | C43: =+B41 -> Piano ammortamento Debito Fase 1
C44: Quota capitale | E44: € | J44: =+IFERROR(VLOOKUP(J4,'Mutuo fase 1'!$B$18:$J$132,9,0),0) -> 0 | K44: =+IFERROR(VLOOKUP(K4,'Mutuo fase 1'!$B$18:$J$132,9,0),0) -> 0 | L44: =+IFERROR(VLOOKUP(L4,'Mutuo fase 1'!$B$18:$J$132,9,0),0) -> 0 | M44: =+IFERROR(VLOOKUP(M4,'Mutuo fase 1'!$B$18:$J$132,9,0),0) -> 0 | N44: =+IFERROR(VLOOKUP(N4,'Mutuo fase 1'!$B$18:$J$132,9,0),0) -> 0 | O44: =+IFERROR(VLOOKUP(O4,'Mutuo fase 1'!$B$18:$J$132,9,0),0) -> 0 | P44: =+IFERROR(VLOOKUP(P4,'Mutuo fase 1'!$B$18:$J$132,9,0),0) -> 0 | Q44: =+IFERROR(VLOOKUP(Q4,'Mutuo fase 1'!$B$18:$J$132,9,0),0) -> 0 | R44: =+IFERROR(VLOOKUP(R4,'Mutuo fase 1'!$B$18:$J$132,9,0),0) -> 0 | S44: =+IFERROR(VLOOKUP(S4,'Mutuo fase 1'!$B$18:$J$132,9,0),0) -> 0 | T44: =+IFERROR(VLOOKUP(T4,'Mutuo fase 1'!$B$18:$J$132,9,0),0) -> 0 | U44: =+IFERROR(VLOOKUP(U4,'Mutuo fase 1'!$B$18:$J$132,9,0),0) -> 0 | V44: =+IFERROR(VLOOKUP(V4,'Mutuo fase 1'!$B$18:$J$132,9,0),0) -> 0 | W44: =+IFERROR(VLOOKUP(W4,'Mutuo fase 1'!$B$18:$J$132,9,0),0) -> 0 | X44: =+IFERROR(VLOOKUP(X4,'Mutuo fase 1'!$B$18:$J$132,9,0),0) -> 0 | Y44: =+IFERROR(VLOOKUP(Y4,'Mutuo fase 1'!$B$18:$J$132,9,0),0) -> 0 | Z44: =+IFERROR(VLOOKUP(Z4,'Mutuo fase 1'!$B$18:$J$132,9,0),0) -> 0 | AA44: =+IFERROR(VLOOKUP(AA4,'Mutuo fase 1'!$B$18:$J$132,9,0),0) -> 0 | AB44: =+IFERROR(VLOOKUP(AB4,'Mutuo fase 1'!$B$18:$J$132,9,0),0) -> 0 | AC44: =+IFERROR(VLOOKUP(AC4,'Mutuo fase 1'!$B$18:$J$132,9,0),0) -> 0 | AD44: =+IFERROR(VLOOKUP(AD4,'Mutuo fase 1'!$B$18:$J$132,9,0),0) -> 0
C45: Interessi | E45: € | J45: =+IFERROR(VLOOKUP(J4,'Mutuo fase 1'!$B$18:$I$132,8,0),0) -> 0 | K45: =+IFERROR(VLOOKUP(K4,'Mutuo fase 1'!$B$18:$I$132,8,0),0) -> 0 | L45: =+IFERROR(VLOOKUP(L4,'Mutuo fase 1'!$B$18:$I$132,8,0),0) -> 0 | M45: =+IFERROR(VLOOKUP(M4,'Mutuo fase 1'!$B$18:$I$132,8,0),0) -> 0 | N45: =+IFERROR(VLOOKUP(N4,'Mutuo fase 1'!$B$18:$I$132,8,0),0) -> 0 | O45: =+IFERROR(VLOOKUP(O4,'Mutuo fase 1'!$B$18:$I$132,8,0),0) -> 0 | P45: =+IFERROR(VLOOKUP(P4,'Mutuo fase 1'!$B$18:$I$132,8,0),0) -> 0 | Q45: =+IFERROR(VLOOKUP(Q4,'Mutuo fase 1'!$B$18:$I$132,8,0),0) -> 0 | R45: =+IFERROR(VLOOKUP(R4,'Mutuo fase 1'!$B$18:$I$132,8,0),0) -> 0 | S45: =+IFERROR(VLOOKUP(S4,'Mutuo fase 1'!$B$18:$I$132,8,0),0) -> 0 | T45: =+IFERROR(VLOOKUP(T4,'Mutuo fase 1'!$B$18:$I$132,8,0),0) -> 0 | U45: =+IFERROR(VLOOKUP(U4,'Mutuo fase 1'!$B$18:$I$132,8,0),0) -> 0 | V45: =+IFERROR(VLOOKUP(V4,'Mutuo fase 1'!$B$18:$I$132,8,0),0) -> 0 | W45: =+IFERROR(VLOOKUP(W4,'Mutuo fase 1'!$B$18:$I$132,8,0),0) -> 0 | X45: =+IFERROR(VLOOKUP(X4,'Mutuo fase 1'!$B$18:$I$132,8,0),0) -> 0 | Y45: =+IFERROR(VLOOKUP(Y4,'Mutuo fase 1'!$B$18:$I$132,8,0),0) -> 0 | Z45: =+IFERROR(VLOOKUP(Z4,'Mutuo fase 1'!$B$18:$I$132,8,0),0) -> 0 | AA45: =+IFERROR(VLOOKUP(AA4,'Mutuo fase 1'!$B$18:$I$132,8,0),0) -> 0 | AB45: =+IFERROR(VLOOKUP(AB4,'Mutuo fase 1'!$B$18:$I$132,8,0),0) -> 0 | AC45: =+IFERROR(VLOOKUP(AC4,'Mutuo fase 1'!$B$18:$I$132,8,0),0) -> 0 | AD45: =+IFERROR(VLOOKUP(AD4,'Mutuo fase 1'!$B$18:$I$132,8,0),0) -> 0

Sheet Mutuo fase 1
F2: Importo del mutuo | H2: =+In!G392 -> 0
F3: Contributo ministeriale | H3: 0
A4: Analisi | F4: Somma erogata | H4: =H2-H3 -> 0
F5: Interesse annuo (p. es.: 8,5) | H5: 7
F6: Durata del prestito (anni) | H6: 10
F7: Data di decorrenza del prestito | H7: 2025-01-01
F9: Rata mensile | H9: =IF(AND(H4,H5,H6),PMT((H5/12)/100,H10,-H4),"") -> 
F10: Numero rate | H10: =IF(AND(H4,H5,H6),H6*12,"") -> 
F11: Quota capitale + interessi | H11: =IF(H9,H9*12,"") -> 
F13: Quota capitale da ammortizzare | H13: =IF(H4,H4,"") -> 
B14: =IF($H$9,IF(TRUNC(MAX($H$18:$H$738))>=$H$4,"","Per visualizzare i valori di ogni mese estendere"),"") ->  | F14: Interessi o oneri accessori | H14: =IF(H11,IF(H11-H4,H11*H6-H4,""),"") -> 
B15: =IF($H$9,IF(TRUNC(MAX($H$18:$H$738))>=$H$4,"","la tabella fino alla riga"),"") ->  | D15: =IF($H$9,IF(TRUNC(MAX($H$18:$H$738))>=$H$4,"",$H$10+14),"") ->  | F15: Totale complessivo | H15: =IF(H14+H13,H14+H13,"") -> 
A17: N. RATA | B17: DATA VERS.TO | C17: DEBITO INIZIALE | D17: QUOTA INTERESSI | E17: QUOTA CAPITALE | F17: DEBITO RESIDUO | G17: INTERESSI PROGRESSIVI | H17: QUOTA CAPITALE PROGRESSIVA
A18: 1 | B18: =IF(H7,H7,"") -> 2025-01-01 | C18: =IF($H$9,H4,"") ->  | D18: =IF(C18,($H$5/12)/100*C18,"") ->  | E18: =IF($H$9,$H$9-D18,"") ->  | F18: =IF(AND(C18,E18),C18-E18,"") ->  | G18: =IF(D18,D18,"") ->  | H18: =IF(E18,E18,"") ->  | I18: =SUM(D18:D23) ->  | J18: =SUM(E18:E23) -> 
A19: =A18+1 -> 2 | B19: =IF(B18,DATE((YEAR(B18)-1900),MONTH(B18)+1,1),"") -> 2025-02-01 | C19: =IF(C18,F18,"") ->  | E19: =IF(C19,($H$9-D19)*(D19>0),"") ->  | G19: =IF(G18,G18+D19,"") ->  | H19: =IF(E19,E19+H18,"") -> 
A20: 3 | B20: 2025-03-01
A21: 4 | B21: 2025-04-01
A22: 5 | B22: 2025-05-01
A23: 6 | B23: 2025-06-01
A24: 7 | B24: 2025-07-01 | I24: =SUM(D24:D29) ->  | J24: =SUM(E24:E29) -> 
A25: 8 | B25: 2025-08-01
A26: 9 | B26: 2025-09-01
A27: 10 | B27: 2025-10-01
A28: 11 | B28: 2025-11-01
A29: 12 | B29: 2025-12-01
A30: 13 | B30: 2026-01-01 | I30: =SUM(D30:D35) ->  | J30: =SUM(E30:E35) -> 
A31: 14 | B31: 2026-02-01
A32: 15 | B32: 2026-03-01
A33: 16 | B33: 2026-04-01
A34: 17 | B34: 2026-05-01
A35: 18 | B35: 2026-06-01
A36: 19 | B36: 2026-07-01 | I36: =SUM(D36:D41) ->  | J36: =SUM(E36:E41) -> 
A37: 20 | B37: 2026-08-01
A38: 21 | B38: 2026-09-01
A39: 22 | B39: 2026-10-01
A40: 23 | B40: 2026-11-01
A41: 24 | B41: 2026-12-01
A42: 25 | B42: 2027-01-01 | I42: =SUM(D42:D47) ->  | J42: =SUM(E42:E47) -> 
A43: 26 | B43: 2027-02-01
A44: 27 | B44: 2027-03-01
A45: 28 | B45: 2027-04-01
A46: 29 | B46: 2027-05-01
A47: 30 | B47: 2027-06-01
A48: 31 | B48: 2027-07-01 | I48: =SUM(D48:D53) ->  | J48: =SUM(E48:E53) -> 
A49: 32 | B49: 2027-08-01
A50: 33 | B50: 2027-09-01
A51: 34 | B51: 2027-10-01
A52: 35 | B52: 2027-11-01
A53: 36 | B53: 2027-12-01
A54: 37 | B54: 2028-01-01 | I54: =SUM(D54:D59) ->  | J54: =SUM(E54:E59) -> 
A55: 38 | B55: 2028-02-01
A56: 39 | B56: 2028-03-01
A57: 40 | B57: 2028-04-01
A58: 41 | B58: 2028-05-01
A59: 42 | B59: 2028-06-01
A60: 43 | B60: 2028-07-01 | I60: =SUM(D60:D65) ->  | J60: =SUM(E60:E65) -> 
A61: 44 | B61: 2028-08-01
A62: 45 | B62: 2028-09-01
A63: 46 | B63: 2028-10-01
A64: 47 | B64: 2028-11-01
A65: 48 | B65: 2028-12-01
A66: 49 | B66: 2029-01-01 | I66: =SUM(D66:D71) ->  | J66: =SUM(E66:E71) -> 
A67: 50 | B67: 2029-02-01
A68: 51 | B68: 2029-03-01
A69: 52 | B69: 2029-04-01
A70: 53 | B70: 2029-05-01
A71: 54 | B71: 2029-06-01
A72: 55 | B72: 2029-07-01 | I72: =SUM(D72:D77) ->  | J72: =SUM(E72:E77) -> 
A73: 56 | B73: 2029-08-01
A74: 57 | B74: 2029-09-01
A75: 58 | B75: 2029-10-01
A76: 59 | B76: 2029-11-01
A77: 60 | B77: 2029-12-01
A78: 61 | B78: 2030-01-01 | I78: =SUM(D78:D83) ->  | J78: =SUM(E78:E83) -> 
A79: 62 | B79: 2030-02-01
A80: 63 | B80: 2030-03-01
A81: 64 | B81: 2030-04-01
A82: 65 | B82: 2030-05-01 | D82: =IF(C82,($H$5/12)/100*C82,"") ->  | F82: =IF(AND(C82,E82),C82-E82,"") -> 
A83: =A82+1 -> 66 | B83: =IF(B82,DATE((YEAR(B82)-1900),MONTH(B82)+1,1),"") -> 2030-06-01 | C83: =IF(C82,F82,"") ->  | E83: =IF(C83,($H$9-D83)*(D83>0),"") ->  | G83: =IF(G82,G82+D83,"") ->  | H83: =IF(E83,E83+H82,"") -> 
A84: 67 | B84: 2030-07-01 | I84: =SUM(D84:D89) ->  | J84: =SUM(E84:E89) -> 
A85: 68 | B85: 2030-08-01
A86: 69 | B86: 2030-09-01
A87: 70 | B87: 2030-10-01
A88: 71 | B88: 2030-11-01
A89: 72 | B89: 2030-12-01
A90: 73 | B90: 2031-01-01 | I90: =SUM(D90:D95) ->  | J90: =SUM(E90:E95) -> 
A91: 74 | B91: 2031-02-01
A92: 75 | B92: 2031-03-01
A93: 76 | B93: 2031-04-01
A94: 77 | B94: 2031-05-01
A95: 78 | B95: 2031-06-01
A96: 79 | B96: 2031-07-01 | I96: =SUM(D96:D101) ->  | J96: =SUM(E96:E101) -> 
A97: 80 | B97: 2031-08-01
A98: 81 | B98: 2031-09-01
A99: 82 | B99: 2031-10-01
A100: 83 | B100: 2031-11-01
A101: 84 | B101: 2031-12-01
A102: 85 | B102: 2032-01-01 | I102: =SUM(D102:D107) ->  | J102: =SUM(E102:E107) -> 
A103: 86 | B103: 2032-02-01
A104: 87 | B104: 2032-03-01
A105: 88 | B105: 2032-04-01
A106: 89 | B106: 2032-05-01
A107: 90 | B107: 2032-06-01
A108: 91 | B108: 2032-07-01 | I108: =SUM(D108:D113) ->  | J108: =SUM(E108:E113) -> 
A109: 92 | B109: 2032-08-01
A110: 93 | B110: 2032-09-01
A111: 94 | B111: 2032-10-01
A112: 95 | B112: 2032-11-01
A113: 96 | B113: 2032-12-01
A114: 97 | B114: 2033-01-01 | I114: =SUM(D114:D119) ->  | J114: =SUM(E114:E119) -> 
A115: 98 | B115: 2033-02-01
A116: 99 | B116: 2033-03-01
A117: 100 | B117: 2033-04-01
A118: 101 | B118: 2033-05-01
A119: 102 | B119: 2033-06-01
A120: 103 | B120: 2033-07-01 | I120: =SUM(D120:D125) ->  | J120: =SUM(E120:E125) -> 
A121: 104 | B121: 2033-08-01
A122: 105 | B122: 2033-09-01
A123: 106 | B123: 2033-10-01
A124: 107 | B124: 2033-11-01
A125: 108 | B125: 2033-12-01
A126: 109 | B126: 2034-01-01 | I126: =SUM(D126:D131) ->  | J126: =SUM(E126:E131) -> 
A127: 110 | B127: 2034-02-01
A128: 111 | B128: 2034-03-01
A129: 112 | B129: 2034-04-01
A130: 113 | B130: 2034-05-01
A131: 114 | B131: 2034-06-01
A132: 115 | B132: 2034-07-01 | I132: =SUM(D132:D137) ->  | J132: =SUM(E132:E137) -> 
A133: 116 | B133: 2034-08-01
A134: 117 | B134: 2034-09-01
A135: 118 | B135: 2034-10-01
A136: 119 | B136: 2034-11-01
A137: 120 | B137: 2034-12-01

Sheet QE
B3: Quadro Economico
B4: Allegati v02.01.2020
B6: Recap - Dati in Euro
A7: # | B7: Area | C7: Categoria delle opere | E7: Importi | F7: Importi considerati | G7: Fine lavori | H7: Fase
B8: =$B$40 -> Interventi eseguiti | C8: Interventi già eseguiti | E8: =E43 -> 605091 | F8: =F43 -> 0
B9: =$B$40 -> Interventi eseguiti | C9: Manutenzioni straordinarie | E9: =E49 -> 0 | F9: =F49 -> 0
A10: =A40 -> 0 | B10: Totale | E10: =E8+E9 -> 605091 | F10: =F8+F9 -> 0 | G10: =Investimenti!H13 -> 2024-11-30 | H10: 0
B11: =$B$53 -> XXXXXXX | C11: Lavori edili e impiantistici | E11: =E72 -> 0 | F11: =F72 -> 0
B12: =$B$53 -> XXXXXXX | C12: Arredi e attrezzature | E12: =E80 -> 0 | F12: =F80 -> 0
A13: =A53 -> 1 | B13: Totale | E13: =E11+E12 -> 0 | F13: =F11+F12 -> 0 | G13: =Investimenti!H14 -> 00:00:00 | H13: 2
B14: =$B$84 -> XXXXXXX | C14: Lavori edili e impiantistici | E14: =E102 -> 0 | F14: =F102 -> 0
B15: =$B$84 -> XXXXXXX | C15: Arredi e attrezzature | E15: =E111 -> 0 | F15: =F111 -> 0
A16: =A84 -> 2 | B16: Totale | E16: =E14+E15 -> 0 | F16: =F14+F15 -> 0 | G16: =Investimenti!H15 -> 00:00:00 | H16: 2
B17: =$B$115 -> XXXXXXX | C17: Lavori edili e impiantistici | E17: =E129 -> 0 | F17: =F129 -> 0
B18: =$B$115 -> XXXXXXX | C18: Arredi e attrezzature | E18: =E137 -> 0 | F18: =F137 -> 0
A19: =A115 -> 3 | B19: Totale | E19: =E17+E18 -> 0 | F19: =F17+F18 -> 0 | G19: =Investimenti!H16 -> 00:00:00 | H19: 2
B20: =$B$141 -> XXXXXXX | C20: Lavori edili e impiantistici | E20: =E160 -> 0 | F20: =F160 -> 0
B21: =$B$141 -> XXXXXXX | C21: Arredi e attrezzature | E21: =E162 -> 0 | F21: =F162 -> 0
A22: =A141 -> 4 | B22: Totale | E22: =E20+E21 -> 0 | F22: =F20+F21 -> 0 | G22: =Investimenti!H17 -> 00:00:00 | H22: 2
B23: =$B$166 -> XXXXXXX | C23: Lavori edili e impiantistici | E23: =E185 -> 0 | F23: =F185 -> 0
B24: =$B$166 -> XXXXXXX | C24: Arredi e attrezzature | E24: =E193 -> 0 | F24: =F193 -> 0
A25: =A166 -> 5 | B25: Totale | E25: =E23+E24 -> 0 | F25: =F23+F24 -> 0 | G25: =Investimenti!H18 -> 00:00:00 | H25: 2
B26: =$B$197 -> XXXXXXX | C26: Lavori edili e impiantistici | E26: =E216 -> 0 | F26: =F216 -> 0
B27: =$B$197 -> XXXXXXX | C27: Arredi e attrezzature | E27: =E221 -> 0 | F27: =F221 -> 0
A28: =A197 -> 6 | B28: Totale | E28: =E26+E27 -> 0 | F28: =F26+F27 -> 0 | G28: =Investimenti!H19 -> 00:00:00 | H28: 1
B29: =$B$225 -> XXXXXXX | C29: Lavori edili e impiantistici | E29: =E244 -> 0 | F29: =F244 -> 0
B30: =$B$225 -> XXXXXXX | C30: Fari stadio | E30: =E246 -> 0 | F30: =F246 -> 0
A31: =A225 -> 7 | B31: Totale | E31: =E29+E30 -> 0 | F31: =F29+F30 -> 0 | G31: =Investimenti!H20 -> 00:00:00 | H31: 1
B32: Totale Opere | E32: =E10+E13+E16+E19+E22+E25+E28+E31 -> 605091 | F32: =F10+F13+F16+F19+F22+F25+F28+F31 -> 0
A33: =A250 -> 8 | B33: =$B$250 -> XXXXXXX | E33: =E262 -> 0 | F33: =F262 -> 0 | G33: =Investimenti!H21 -> 00:00:00 | H33: 2
A34: =A266 -> 9 | B34: =$B$266 -> XXXXXXX | E34: =E275 -> 0 | F34: =F275 -> 0 | G34: =Investimenti!H22 -> 00:00:00 | H34: 1
B35: Totale Investimenti | E35: =E32+E33+E34 -> 605091 | F35: =F32+F33+F34 -> 0
B39: Dettagli
A40: 0 | B40: Interventi eseguiti
B41: Trigger | C41: Categoria delle opere | E41: Importi | F41: Importi considerati | G41: IVA | H41: Ammortamento
B42: 1 | C42: Interventi già eseguiti | E42: =642909-37818 -> 605091 | F42: 0 | G42: 0.22 | H42: Fine concessione
C43: Totale interventi già eseguiti | E43: =SUM(E42:E42) -> 605091 | F43: =SUM(F42:F42) -> 0
B44: 0 | E44: 0 | F44: =E44*B44 -> 0 | G44: 0.22 | H44: Fine concessione
B45: 1 | E45: 0 | F45: 0 | G45: 0.22 | H45: Fine concessione
B46: 0 | E46: 0 | F46: 0 | G46: 0.22 | H46: 0.1
B47: 0 | E47: 0 | F47: 0 | G47: 0.22 | H47: 0.1
B48: 0 | E48: 0 | F48: 0 | G48: 0.22 | H48: 0.1
C49: Totale interventi programmati | E49: =SUM(E44:E48) -> 0 | F49: =SUM(F44:F48) -> 0
A53: 1 | B53: XXXXXXX
B54: Piano terra - I° livello | Su = mq 405
B55: TEMPISTICA = T1 - T16
B56: nota esplicativa | L’incidenza [in %] degli impianti si riferisce a un costo medio pari a €/mq 1.400,00
B57: nota esplicativa | L’incidenza [in %] dei lavori edili e finitura si riferisce a un costo medio pari a €/mq 700,00
B59: Trigger | C59: Categoria delle opere | D59: % | E59: Importi | F59: Importi considerati | G59: IVA | H59: Ammortamento
B60: 1 | D60: 1.5 | E60: 0 | F60: 0 | G60: 0.22 | H60: Fine concessione
B61: 1 | D61: 5 | E61: 0 | F61: 0 | G61: 0.22 | H61: Fine concessione
B62: 1 | D62: 6 | E62: 0 | F62: 0 | G62: 0.22 | H62: Fine concessione
B63: 1 | D63: a corpo | E63: 0 | F63: 0 | G63: 0.22 | H63: Fine concessione
B64: 1 | D64: 8 | E64: 0 | F64: 0 | G64: 0.22 | H64: Fine concessione
B65: 1 | D65: 15 | E65: 0 | F65: 0 | G65: 0.22 | H65: Fine concessione
B66: 1 | D66: 10 | E66: 0 | F66: 0 | G66: 0.22 | H66: Fine concessione
B67: 1 | D67: 5 | E67: 0 | F67: 0 | G67: 0.22 | H67: Fine concessione
B68: 1 | D68: 20 | E68: 0 | F68: 0 | G68: 0.22 | H68: Fine concessione
B69: 1 | D69: 2 | E69: 0 | F69: 0 | G69: 0.22 | H69: Fine concessione
B70: 1 | D70: a corpo | E70: 0 | F70: 0 | G70: 0.22 | H70: Fine concessione
B71: 1 | D71: 10 | E71: 0 | F71: 0 | G71: 0.22 | H71: Fine concessione
C72: Totale lavori edili e impiantistici | E72: =SUM(E60:E71) -> 0 | F72: =SUM(F60:F71) -> 0
B73: 0 | E73: 0 | F73: 0 | G73: 0.22 | H73: 0.1
E74: 0 | F74: 0
B75: 0 | E75: 0 | F75: 0 | G75: 0.22 | H75: 0.1
B76: 0 | E76: 0 | F76: 0 | G76: 0.22 | H76: 0.1
B77: 0 | E77: 0 | F77: 0 | G77: 0.22 | H77: 0.1
B78: 1 | E78: 0 | F78: 0 | G78: 0.22 | H78: 0.1
B79: 1 | E79: 0 | F79: 0 | G79: 0.22 | H79: 0.1
C80: Totale arredi e attrezzature | E80: =E73+E74 -> 0 | F80: =SUM(F73:F79) -> 0
A84: 2 | B84: XXXXXXX
B85: Piano terra - I° livello | S = mq 600,00
B86: TEMPISTICA = T17 - T32
B87: nota esplicativa | L’incidenza [in %] degli impianti si riferisce a un costo medio pari a €/mq 1.400,00
B88: nota esplicativa | L’incidenza [in %] dei lavori edili e finitura si riferisce a un costo medio pari a €/mq 700,00
B90: Trigger | C90: Categoria delle opere | D90: % | E90: Importi | F90: Importi considerati | G90: IVA | H90: Ammortamento
B91: 1 | D91: 1.5 | F91: 0 | G91: 0.22 | H91: Fine concessione
B92: 1 | D92: 5 | F92: 0 | G92: 0.22 | H92: Fine concessione
B93: 1 | D93: 6 | F93: 0 | G93: 0.22 | H93: Fine concessione
B94: 1 | D94: a corpo | F94: 0 | G94: 0.22 | H94: Fine concessione
B95: 1 | D95: 8 | F95: 0 | G95: 0.22 | H95: Fine concessione
B96: 1 | D96: 15 | F96: 0 | G96: 0.22 | H96: Fine concessione
B97: 1 | D97: 10 | F97: 0 | G97: 0.22 | H97: Fine concessione
B98: 1 | D98: 5 | F98: 0 | G98: 0.22 | H98: Fine concessione
B99: 1 | D99: 16 | F99: 0 | G99: 0.22 | H99: Fine concessione
B100: 1 | D100: 9 | F100: 0 | G100: 0.22 | H100: Fine concessione
B101: 1 | D101: 1.5 | F101: 0 | G101: 0.22 | H101: Fine concessione
C102: Totale lavori edili e impiantistici | E102: =SUM(E91:E101) -> 0 | F102: =SUM(F91:F101) -> 0
B103: 1 | F103: 0 | G103: 0.22 | H103: 0.1
B104: 1 | F104: 0 | G104: 0.22 | H104: 0.1
B105: 0 | F105: 0 | G105: 0.22 | H105: 0.1
B106: 0 | F106: 0 | G106: 0.22 | H106: 0.1
B107: 0 | F107: =E107*B107 -> 0 | G107: 0.22 | H107: 0.1
B108: 0 | F108: 0 | G108: 0.22 | H108: 0.1
B109: 0 | F109: 0 | G109: 0.22 | H109: 0.1
B110: 0 | F110: 0 | G110: 0.22 | H110: 0.1
C111: Totale arredi e attrezzature | E111: =SUM(E103:E110) -> 0 | F111: =SUM(F103:F110) -> 0
A115: 3 | B115: XXXXXXX
B116: Piano terra - I° livello | S = 600,00 di cui mq 300,00 coperti | biosfere
B117: TEMPISTICA = T17 - T32
B118: nota esplicativa | L’incidenza [in %] degli impianti si riferisce a un costo medio pari a €/mq 1.200,00
B119: nota esplicativa | L’incidenza [in %] dei lavori edili e finitura si riferisce a un costo medio pari a €/mq 700,00
B121: Trigger | C121: Categoria delle opere | D121: % | E121: Importi | F121: Importi considerati | G121: IVA | H121: Ammortamento
B122: 1 | D122: 1.5 | F122: 0 | G122: 0.22 | H122: Fine concessione
B123: 1 | D123: 25 | F123: 0 | G123: 0.22 | H123: Fine concessione
B124: 1 | D124: a corpo | F124: 0 | G124: 0.22 | H124: Fine concessione
B125: 1 | D125: 8 | F125: 0 | G125: 0.22 | H125: Fine concessione
B126: 1 | D126: 15 | F126: 0 | G126: 0.22 | H126: Fine concessione
B127: 1 | D127: 10 | F127: 0 | G127: 0.22 | H127: Fine concessione
B128: 1 | D128: 5 | F128: 0 | G128: 0.22 | H128: Fine concessione
E129: =SUM(E122:E128) -> 0 | F129: =SUM(F122:F128) -> 0
B130: 1 | F130: 0 | G130: 0.22 | H130: 0.1
B131: 1 | F131: 0 | G131: 0.22 | H131: 0.1
C137: Totale arredi e attrezzature | E137: =E130+E131 -> 0 | F137: =SUM(F130:F136) -> 0
A141: 4 | B141: XXXXXXX
B142: Piano 1° - II° livello | Su = mq 1.543,00
B143: TEMPISTICA = T17 - T32
B144: nota esplicativa | L’incidenza [in %] degli impianti si riferisce a un costo medio pari a €/mq 1.200,00
B145: nota esplicativa | L’incidenza [in %] dei lavori edili e finitura si riferisce a un costo medio pari a €/mq 700,00
B147: Trigger | C147: Categoria delle opere | D147: % | E147: Importi | F147: Importi considerati | G147: IVA | H147: Ammortamento
B148: 1 | D148: 1.5 | F148: 0 | G148: 0.22 | H148: Fine concessione
B149: 1 | D149: 4 | F149: 0 | G149: 0.22 | H149: Fine concessione
B150: 1 | D150: 6 | F150: 0 | G150: 0.22 | H150: Fine concessione
B151: 1 | D151: a corpo | F151: 0 | G151: 0.22 | H151: Fine concessione
B152: 1 | D152: 8 | F152: 0 | G152: 0.22 | H152: Fine concessione
B153: 1 | D153: 15 | F153: 0 | G153: 0.22 | H153: Fine concessione
B154: 1 | D154: 10 | F154: 0 | G154: 0.22 | H154: Fine concessione
B155: 1 | D155: 5 | F155: 0 | G155: 0.22 | H155: Fine concessione
B156: 1 | D156: 20 | F156: 0 | G156: 0.22 | H156: Fine concessione
B157: 1 | D157: 2 | F157: 0 | G157: 0.22 | H157: Fine concessione
B158: 1 | D158: 9 | F158: 0 | G158: 0.22 | H158: Fine concessione
B159: 1 | D159: 1.5 | F159: 0 | G159: 0.22 | H159: Fine concessione
C160: Totale lavori edili e impiantistici | E160: =SUM(E148:E159) -> 0 | F160: =SUM(F148:F159) -> 0
B161: 1 | F161: 0 | G161: 0.22 | H161: 0.1
C162: Totale arredi e attrezzature | E162: =E161 -> 0 | F162: =SUM(F161) -> 0
A166: 5 | B166: XXXXXXX
B167: Piano 2° - III° livello | Su = mq 1.203,63
B168: TEMPISTICA = T1 - T16
B169: nota esplicativa | L’incidenza [in %] degli impianti si riferisce a un costo medio pari a €/mq 1.400,00
B170: nota esplicativa | L’incidenza [in %] dei lavori edili e finitura si riferisce a un costo medio pari a €/mq 700,00
B172: Trigger | C172: Categoria delle opere | D172: % | E172: Importi | F172: Importi considerati | G172: IVA | H172: Ammortamento
B173: 1 | D173: 1.5 | F173: 0 | G173: 0.22 | H173: Fine concessione
B174: 1 | D174: 5 | F174: 0 | G174: 0.22 | H174: Fine concessione
B175: 1 | D175: 6 | F175: 0 | G175: 0.22 | H175: Fine concessione
B176: 1 | D176: a corpo | F176: 0 | G176: 0.22 | H176: Fine concessione
B177: 1 | D177: 8 | F177: 0 | G177: 0.22 | H177: Fine concessione
B178: 1 | D178: 15 | F178: 0 | G178: 0.22 | H178: Fine concessione
B179: 1 | D179: 10 | F179: 0 | G179: 0.22 | H179: Fine concessione
B180: 1 | D180: 5 | F180: 0 | G180: 0.22 | H180: Fine concessione
B181: 1 | D181: 20 | F181: 0 | G181: 0.22 | H181: Fine concessione
B182: 1 | D182: 2 | F182: 0 | G182: 0.22 | H182: Fine concessione
B183: 1 | D183: 6 | F183: 0 | G183: 0.22 | H183: Fine concessione
B184: 1 | D184: 10 | F184: 0 | G184: 0.22 | H184: Fine concessione
C185: Totale lavori edili e impiantistici | E185: =SUM(E173:E184) -> 0 | F185: =SUM(F173:F184) -> 0
B186: 1 | F186: 0 | G186: 0.22 | H186: 0.1
B187: 0 | F187: =E187*B187 -> 0 | G187: 0.22 | H187: 0.1
F188: =SUM(F189:F192) -> 0
B189: 0 | F189: 0 | G189: 0.22 | H189: 0.1
B190: 0 | F190: 0 | G190: 0.22 | H190: 0.1
B191: 0 | F191: 0 | G191: 0.22 | H191: 0.1
B192: 0 | F192: 0 | G192: 0.22 | H192: 0.1
C193: Totale arredi e attrezzature | E193: =E186+E187+E188 -> 0 | F193: =SUM(F186:F192) -> 0
A197: 6 | B197: XXXXXXX
B198: Piano 1° - sotto-tribuna | Slp = mq 440 di cui mq 75 soppalco
B199: TEMPISTICA = T1 - T16
B200: nota esplicativa | L’incidenza [in %] degli impianti si riferisce a un costo medio pari a €/mq 1.200,00
B201: nota esplicativa | L’incidenza [in %] dei lavori edili e finitura si riferisce a un costo medio pari a €/mq 700,00
B203: Trigger | C203: Categoria delle opere | D203: % | E203: Importi | F203: Importi considerati | G203: IVA | H203: Ammortamento
B204: 1 | D204: 1.5 | F204: =E204*B204 -> 0 | G204: 0.22 | H204: Fine concessione
B205: 1 | D205: 5 | F205: 0 | G205: 0.22 | H205: Fine concessione
B206: 1 | D206: 6 | F206: 0 | G206: 0.22 | H206: Fine concessione
B207: 1 | D207: a corpo | F207: 0 | G207: 0.22 | H207: Fine concessione
B208: 1 | D208: 8 | F208: 0 | G208: 0.22 | H208: Fine concessione
B209: 1 | D209: 15 | F209: 0 | G209: 0.22 | H209: Fine concessione
B210: 1 | D210: 10 | F210: 0 | G210: 0.22 | H210: Fine concessione
B211: 1 | D211: 5 | F211: 0 | G211: 0.22 | H211: Fine concessione
B212: 1 | D212: 20 | F212: 0 | G212: 0.22 | H212: Fine concessione
B213: 1 | D213: 2 | F213: 0 | G213: 0.22 | H213: Fine concessione
B214: 1 | D214: a corpo | F214: 0 | G214: 0.22 | H214: Fine concessione
B215: 1 | D215: 10.5 | F215: 0 | G215: 0.22 | H215: Fine concessione
C216: Totale lavori edili e impiantistici | E216: =SUM(E204:E215) -> 0 | F216: =SUM(F204:F215) -> 0
B217: 1 | D217: - | F217: =E217*B217 -> 0 | G217: 0.22 | H217: 0.1
B218: 0 | F218: =E218*B218 -> 0 | G218: 0.22 | H218: 0.1
B219: 0 | F219: =E219*B219 -> 0 | G219: 0.22 | H219: 0.1
B220: 1 | F220: =E220*B220 -> 0 | G220: 0.22 | H220: 0.1
C221: Totale arredi e attrezzature | E221: =E217+E220 -> 0 | F221: =F217+F220 -> 0
A225: 7 | B225: XXXXXXX
B226: Piano 1° - sotto-tribuna | Slp = mq 555 di cui mq 115 soppalco
B227: TEMPISTICA = T1 - T16
B228: nota esplicativa | L’incidenza [in %] degli impianti si riferisce a un costo medio pari a €/mq 1.200,00
B229: nota esplicativa | L’incidenza [in %] dei lavori edili e finitura si riferisce a un costo medio pari a €/mq 700,00
B231: Trigger | C231: Categoria delle opere | D231: % | E231: Importi | F231: Importi considerati | G231: IVA | H231: Ammortamento
B232: 1 | D232: 1.5 | F232: 0 | G232: 0.22 | H232: Fine concessione
B233: 1 | D233: 5 | F233: 0 | G233: 0.22 | H233: Fine concessione
B234: 1 | D234: 6 | F234: 0 | G234: 0.22 | H234: Fine concessione
B235: 1 | D235: a corpo | F235: 0 | G235: 0.22 | H235: Fine concessione
B236: 1 | D236: 8 | F236: 0 | G236: 0.22 | H236: Fine concessione
B237: 1 | D237: 15 | F237: 0 | G237: 0.22 | H237: Fine concessione
B238: 1 | D238: 10 | F238: 0 | G238: 0.22 | H238: Fine concessione
B239: 1 | D239: 5 | F239: 0 | G239: 0.22 | H239: Fine concessione
... 28 more rows

Sheet Calc>>

Sheet Op
A2: PEF CEM - Operation
D4: =In_Lin!D4 -> BoP | J4: =In_Lin!J4 -> 2024-12-01 | K4: =In_Lin!K4 -> 2025-01-01 | L4: =In_Lin!L4 -> 2025-07-01 | M4: =In_Lin!M4 -> 2026-01-01 | N4: =In_Lin!N4 -> 2026-07-01 | O4: =In_Lin!O4 -> 2027-01-01 | P4: =In_Lin!P4 -> 2027-07-01 | Q4: =In_Lin!Q4 -> 2028-01-01 | R4: =In_Lin!R4 -> 2028-07-01 | S4: =In_Lin!S4 -> 2029-01-01 | T4: =In_Lin!T4 -> 2029-07-01 | U4: =In_Lin!U4 -> 2030-01-01 | V4: =In_Lin!V4 -> 2030-07-01 | W4: =In_Lin!W4 -> 2031-01-01 | X4: =In_Lin!X4 -> 2031-07-01 | Y4: =In_Lin!Y4 -> 2032-01-01 | Z4: =In_Lin!Z4 -> 2032-07-01 | AA4: =In_Lin!AA4 -> 2033-01-01 | AB4: =In_Lin!AB4 -> 2033-07-01 | AC4: =In_Lin!AC4 -> 2034-01-01 | AD4: =In_Lin!AD4 -> 2034-07-01
D5: =In_Lin!D5 -> EoP | J5: =In_Lin!J5 -> 2024-12-31 | K5: =In_Lin!K5 -> 2025-06-30 | L5: =In_Lin!L5 -> 2025-12-31 | M5: =In_Lin!M5 -> 2026-06-30 | N5: =In_Lin!N5 -> 2026-12-31 | O5: =In_Lin!O5 -> 2027-06-30 | P5: =In_Lin!P5 -> 2027-12-31 | Q5: =In_Lin!Q5 -> 2028-06-30 | R5: =In_Lin!R5 -> 2028-12-31 | S5: =In_Lin!S5 -> 2029-06-30 | T5: =In_Lin!T5 -> 2029-12-31 | U5: =In_Lin!U5 -> 2030-06-30 | V5: =In_Lin!V5 -> 2030-12-31 | W5: =In_Lin!W5 -> 2031-06-30 | X5: =In_Lin!X5 -> 2031-12-31 | Y5: =In_Lin!Y5 -> 2032-06-30 | Z5: =In_Lin!Z5 -> 2032-12-31 | AA5: =In_Lin!AA5 -> 2033-06-30 | AB5: =In_Lin!AB5 -> 2033-12-31 | AC5: =In_Lin!AC5 -> 2034-06-30 | AD5: =In_Lin!AD5 -> 2034-11-30
